Workbook

Sheet Version log
B6: Shipping CO2 - UK Cost Estimation Study
B7: BEIS CO2 shipping cost tool
B8: V103
B9: 04/01/2019
B11: For further queries please contact:
B12: Emrah.Durusut@element-energy.co.uk | C12: Emrah.Durusut@element-energy.co.uk
B13: Foaad.Tahir@element-energy.co.uk | C13: Emrah.Durusut@element-energy.co.uk
B14: Michael.Joos@element-energy.co.uk | C14: Emrah.Durusut@element-energy.co.uk
C18: Version | D18: Changes
C19: V100 | D19: Draft cost model was issued to BEIS
C20: V101 | D20: Minor error regarding data validation of shipping fuel cost input has been corrected
D21: Sheet Main control: acronyms expanded, description of workbook added to make usage easier
D22: Sheet Predefined Scenarios: number formats changed in table displaying pipeline sizes (was £, now number format)
C23: V102 | D23: Sheets protected for BEIS publication
C24: V103 | D24: Front page disclaimer has been revised

Sheet Summary sheet
B6: ='Version log'!B6:O6 -> Shipping CO2 - UK Cost Estimation Study
B7: ='Version log'!B7:O7 -> BEIS CO2 shipping cost tool
B8: ='Version log'!B8:O8 -> V103
B9: ='Version log'!B9:O9 -> 04/01/2019
B11: For further queries please contact:
B12: Emrah.Durusut@element-energy.co.uk | C12: Emrah.Durusut@element-energy.co.uk
B13: Foaad.Tahir@element-energy.co.uk | C13: Emrah.Durusut@element-energy.co.uk
B14: Michael.Joos@element-energy.co.uk | C14: Emrah.Durusut@element-energy.co.uk
B18: Tab name | C18: Type | D18: Comments
B19: =MID(CELL("filename",'Front page'!A1),FIND("]",CELL("filename",'Front page'!A1))+1,255) -> Front page | C19: User interface | D19: This tab is automatically shown to the user when the file is opened
B20: =MID(CELL("filename",'Main control'!A1),FIND("]",CELL("filename",'Main control'!A1))+1,255) -> Main control | C20: User interface | D20: This tab includes all of the key user inputs and navigation buttons to the outputs
B21: =MID(CELL("filename",'Modelling inputs'!A2),FIND("]",CELL("filename",'Modelling inputs'!A2))+1,255) -> Modelling inputs | C21: Detailed input tables | D21: Input ranges are defined here
B22: =MID(CELL("filename",'Shipping infrastructure'!A3),FIND("]",CELL("filename",'Shipping infrastructure'!A3))+1,255) -> Shipping infrastructure | C22: Detailed input tables | D22: Input tables regarding shipping infrastructure are included in this tab
B23: =MID(CELL("filename",'Port distances'!A4),FIND("]",CELL("filename",'Port distances'!A4))+1,255) -> Port distances | C23: Detailed input tables | D23: Port distances can be defined in this tab
B24: =MID(CELL("filename",'Storage locations'!A5),FIND("]",CELL("filename",'Storage locations'!A5))+1,255) -> Storage locations | C24: Detailed input tables | D24: Locations of storage sites can be defined in this tab
B25: =MID(CELL("filename",'Engineering inputs'!A6),FIND("]",CELL("filename",'Engineering inputs'!A6))+1,255) -> Engineering inputs | C25: Detailed input tables | D25: All of the key engineering inputs that are being used for calculations are shown here
B26: =MID(CELL("filename",'Pipeline costs'!A7),FIND("]",CELL("filename",'Pipeline costs'!A7))+1,255) -> Pipeline costs | C26: Detailed input tables | D26: Pipeline cost inputs are defined here
B27: =MID(CELL("filename",'Pipeline infrastructure costs'!A8),FIND("]",CELL("filename",'Pipeline infrastructure costs'!A8))+1,255) -> Pipeline infrastructure costs | C27: Calculation tab | D27: This tab includes all of the calculation steps for pipeline costs
B28: =MID(CELL("filename",'Shipping infrastructure costs'!A9),FIND("]",CELL("filename",'Shipping infrastructure costs'!A9))+1,255) -> Shipping infrastructure costs | C28: Calculation tab | D28: This tab includes all of the calculation steps for shipping costs
B29: =MID(CELL("filename",'Results Active scenario'!A10),FIND("]",CELL("filename",'Results Active scenario'!A10))+1,255) -> Results Active scenario | C29: Output tab | D29: Detailed outputs for the active scenario are shown in this tab
B30: =MID(CELL("filename",'Results Pre-defined scenarios'!A11),FIND("]",CELL("filename",'Results Pre-defined scenarios'!A11))+1,255) -> Results Pre-defined scenarios | C30: Output tab | D30: Outputs for a range of pre-defined scenarios are shown in this tab
B32: Note: See the final project report for the key data sources, assumptions and modelling methodology

Sheet Front page
C2: BEIS CO2 shipping cost tool
C4: ='Version log'!B8&" - "&'Version log'!B9 -> V103 - 04/01/2019
D8: Disclaimer
D10: Important note:
D11: The results produced by this model rely entirely on the inputs entered and underlying assumptions. All results should be challenged and checked before publication or off-model use. Element Energy accepts no responsibility for the use of custom model runs. Element Energy Limited gives no guarantee, nor should any be implied, with regards to the result of this model. This model should not be used for research or commercial purposes without the permission of Element Energy.
D28: For further queries please contact:
D29: Emrah.Durusut@element-energy.co.uk
D30: Foaad.Tahir@element-energy.co.uk | M30: Produced for
D31: © Element Energy 2018

Sheet Main control
D2: CO2 shipping cost tool
D4: =MID(CELL("filename",B1),FIND("]",CELL("filename",B1))+1,255) -> Main control
D7: Scenario definition
E9: Financial inputs | J9: Notes:
E10: Discount rate | G10: 0 | J10: This sheet contains the main user inputs, which are "white". User can either create a scenario by choosing a flow rate, a start port and an end port or a storage site ("Active Scenario") or assess a range of scenarios based on predefined inputs ("Predefined Scenarios")
E11: Shipping project lifetime | G11: 20
E12: Pipeline project lifetime | G12: 20
E13: Liquefaction and compression fuel price | G13: Central
E14: Ship fuel type: Liquefied Natural Gas (LNG) or Marine Diesel Oil (MDO) | G14: LNG | J14: Active scenario: The results for the "Active scenario" are shown on sheet "Results Active Scenario" tab, which can be accessed by clicking the button "Show results for the active scenario"
E15: Ship fuel price | G15: Central
E17: Project inputs | J17: Predefined scenarios: Instead of looking at a particular scenario, the user can obtain cost results for a range of flow rates and distances, as defined in sheet "Modelling Inputs". In this case, the values chosen for flow-rate and start/end locations are irrelevant. The calculated results for the pre-defined scenarios are shown in sheet "Results Predefined Scenarios", which can be accessed by clicking the button "Show results for the pre-defined scenario".
E18: Flow rate (Megatonnes CO2/year) | G18: 5
E19: CO2 inlet pressure | G19: Pre-pressurised
E20: Unloading option for shipping | G20: Onshore | H20: =IF(Selected_unloading_option="Onshore","Onshore","Offshore") -> Onshore
E21: Pipeline pressure drop (megapascal/MPa) | G21: 15
H23: Latitude | I23: Longitude
E24: Select starting port/hub | G24: Teesside | H24: =SUMIFS(PortLocation[Latitude],PortLocation[Port],$G24)+SUMIFS(StorageSiteLocation[Latitude],StorageSiteLocation[Description],$G24) -> 54.61 | I24: =SUMIFS(PortLocation[Longitude],PortLocation[Port],$G24)+SUMIFS(StorageSiteLocation[Longitude],StorageSiteLocation[Description],$G24) -> -1.19
E25: Select end port/hub (if onshore unloading is selected) | G25: St Fergus | H25: =SUMIFS(PortLocation[Latitude],PortLocation[Port],$G25)+SUMIFS(StorageSiteLocation[Latitude],StorageSiteLocation[Description],$G25) -> 57.58 | I25: =SUMIFS(PortLocation[Longitude],PortLocation[Port],$G25)+SUMIFS(StorageSiteLocation[Longitude],StorageSiteLocation[Description],$G25) -> -1.84
E26: Select storage site (if offshore unloading is selected) | G26: CNS site | H26: =SUMIFS(PortLocation[Latitude],PortLocation[Port],$G26)+SUMIFS(StorageSiteLocation[Latitude],StorageSiteLocation[Description],$G26) -> 58.004065 | I26: =SUMIFS(PortLocation[Longitude],PortLocation[Port],$G26)+SUMIFS(StorageSiteLocation[Longitude],StorageSiteLocation[Description],$G26) -> -0.364826
E27: CNS = Central North Sea, SNS = Southern North Sea, EIS = Eastern Irish Sea
E29: Calculate active scenario (If "No", model calculates pre-defined scenarios) | G29: Yes
F31: Calculated distance | G31: User defined | H31: Final used
E32: Distance (km) - user can overwrite calculated distance | F32: =IF(H20="Onshore",SUMIFS(InterPortDistance[Distance (km)],InterPortDistance[Start port],G24,InterPortDistance[End port],G25)+SUMIFS(InterPortDistance[Distance (km)],InterPortDistance[Start port],G25,InterPortDistance[End port],G24),ACOS(SIN(RADIANS(H26))*SIN(RADIANS(H24))+COS(RADIANS(H26))*COS(RADIANS(H24))*COS(RADIANS(I26-I24)))*Earth_radius*Routing_factor/10^3) -> 476 | H32: =IF(ISBLANK(G32),F32,G32) -> 476

Sheet Modelling inputs
C2: CO2 shipping cost tool
C4: =MID(CELL("filename",A1),FIND("]",CELL("filename",A1))+1,255) -> Modelling inputs
C7: Total terminals | E7: Total pipeline sizes | G7: Total transportation distances | I7: Total flow rates | K7: Total CO2 pressure | M7: Total CO2 ships | O7: Total ship unloading | Q7: Total pressure drop | S7: Total durations | U7: Total CO2 inlet pressures | W7: Fuel price scenarios
C8: =COUNTA(ShorelineTerminals[Shoreline terminal]) -> 12 | E8: =COUNTA(PipelineSizes[Pipeline diameter (inches)]) -> 20 | G8: =IF(Active_scenario_switch="Yes",1,COUNTA(TransportationDistances[Transportation distance (km)])) -> 1 | I8: =COUNTA(FlowRates[Flow rate (Mt CO2/y)]) -> 7 | K8: =COUNTA(TransportCO2Pressure[Transport CO2 pressure]) -> 3 | M8: =COUNTA(ShipSize[Ship size (t CO2)]) -> 9 | O8: =COUNTA(ShipUnloading[Ship unloading]) -> 4 | Q8: =COUNTA(PressureDrop[Pressure drop (MPa)]) -> 4 | S8: =COUNTA(InjectionDurations[Injection duration (years)]) -> 4 | U8: =COUNTA(CO2inlet[CO2 inlet pressure]) -> 2 | W8: =COUNTA(Fuelprices[Fuel price scenarios]) -> 3
C10: Shoreline terminal | E10: Pipeline diameter (inches) | G10: Transportation distance (km) | I10: Flow rate (Mt CO2/y) | K10: Transport CO2 pressure | M10: Ship size (t CO2) | O10: Ship unloading | Q10: Pressure drop (MPa) | S10: Injection duration (years) | U10: CO2 inlet pressure | W10: Fuel price scenarios
C11: Teesside | E11: 4.5 | G11: 200 | I11: 0.1 | K11: Low | M11: 1000 | O11: Onshore | Q11: 1 | S11: 10 | U11: Non-pressurised | W11: Low
C12: St Fergus | E12: 6 | G12: 400 | I12: 0.2 | K12: Medium | M12: 2000 | O12: Direct injection | Q12: 5 | S12: 20 | U12: Pre-pressurised | W12: Central
C13: Grangemouth | E13: 8 | G13: 600 | I13: 0.5 | K13: High | M13: 4000 | O13: Platform with storage | Q13: 10 | S13: 30 | W13: High
C14: Merseyside | E14: 10 | G14: 800 | I14: 1 | M14: 8000 | O14: Existing platform with storage | Q14: 15 | S14: 40
C15: Humberside | E15: 12 | G15: 1000 | I15: 2 | M15: 10000
C16: South Wales | E16: 14 | I16: 5 | M16: 20000
C17: Thames Estuary | E17: 16 | I17: 10 | M17: 30000
C18: Rotterdam | E18: 18 | M18: 40000
C19: Porsgrunn | E19: 20 | M19: 50000
C20: Duisburg | E20: 22
C21: Le Havre | E21: 24
C22: Antwerp | E22: 26
E23: 28
E24: 32
E25: 36
E26: 40
E27: 44
E28: 48
E29: 52
E30: 56

Sheet Shipping infrastructure
C2: CO2 shipping cost tool
C4: =MID(CELL("filename",A1),FIND("]",CELL("filename",A1))+1,255) -> Shipping infrastructure
G7: Liquefaction fuel
C8: Liquefaction cost table | G8: Electricity | I8: Temporary CO2 storage cost table | N8: Loading infrastructure cost table | Q8: Ship cost table | X8: Unloading cost table | AH8: Gasification cost table | AP8: Ship operational parameters table | AZ8: Fuel cost table
C10: Transport CO2 pressure | D10: Inlet pressure | E10: Capex (£/(t CO2/y)) | F10: Fixed Opex (% of Capex) | G10: Energy (kWh/t CO2) | I10: Transport CO2 pressure | J10: Storage factor (relative to ship size) | K10: Capex (£/t CO2) | L10: Opex (% of Capex) | N10: Capex (£/(t CO2/y)) | O10: Opex (% of Capex) | Q10: Transport CO2 pressure | R10: Fixed capex (£) | S10: Capex constant (£/t CO2) | T10: Capex exponent | U10: Opex (% of Capex) | V10: Maximum ship size (t CO2) | X10: Unloading option | Y10: Capex (£/(t CO2/y)) | Z10: Fixed Capex (£) | AA10: Opex (£/y/(t CO2/y)) | AB10: Opex (% of Capex) | AC10: Storage required | AD10: Harbor fees | AE10: Unloading duration (hours) | AF10: Connection duration (hours) | AH10: Transport CO2 pressure | AI10: Unloading option | AJ10: Fixed Capex (£) | AK10: Capex (£/(t CO2/y)) | AL10: Opex (% of Capex) | AM10: Opex (£/t CO2) | AN10: Energy (kWh/t) | AP10: Ship speed (km/h) | AQ10: Fixed fuel consumption (MWh/d) | AR10: Marginal fuel consumption (MWh/d/t CO2) | AS10: Fixed harbour fees (£/stop) | AT10: Marginal harbour fees (£/t CO2/stop) | AU10: Loading time (hours) | AV10: Port entry/exit (hours) | AW10: Availbility (%) | AX10: Electricity generator efficiency [%] | AZ10: Fuel | BA10: Scenario | BB10: Carbon intensity (t/MWh) | BC10: Cost (£/kWh)
C11: Low | D11: Pre-pressurised | E11: 9.773452245 | F11: 0.1 | G11: 24.5524 | I11: Low | J11: 1.2 | K11: 516 | L11: 0.05 | N11: 1.376629139 | O11: 0.03 | Q11: Low | S11: =0.1981*10^6 -> 198100 | T11: =0.5369 -> 0.5369 | U11: 0.05 | V11: 50000 | X11: Onshore | Y11: 1.376629139 | AB11: 0.03 | AC11: 1 | AD11: 1 | AE11: =15 -> 15 | AF11: 0 | AH11: Low | AI11: Onshore | AK11: 0.8333345802 | AM11: 0.3303184767 | AP11: 28 | AQ11: 225.15 | AR11: 0.0038 | AS11: 5559.3 | AT11: 0.4635 | AU11: 15 | AV11: 2 | AW11: 0.95 | AX11: 0.35 | AZ11: Electricity | BA11: Low | BB11: 0.23 | BC11: 0.06
C12: Low | D12: Non-pressurised | E12: 19.45285424 | F12: 0.1 | G12: 104.244 | I12: Medium | J12: 1.2 | K12: 795 | L12: 0.05 | Q12: Medium | S12: =0.5864*10^6 -> 586400 | T12: =0.4982 -> 0.4982 | U12: 0.05 | V12: 10000 | X12: Direct injection | Z12: 16389600 | AB12: 0.05 | AC12: 0 | AD12: 0 | AE12: 36 | AF12: 4 | AH12: Medium | AI12: Onshore | AK12: 0.7785099367 | AM12: 0.3138710836 | AZ12: Electricity | BA12: Central | BB12: 0.23 | BC12: 0.08
C13: Medium | D13: Pre-pressurised | E13: 7.601532525 | F13: 0.1 | G13: 19.5666636 | I13: High | J13: 1.2 | K13: 3073 | L13: 0.05 | Q13: High | S13: =0.5864*2.01994302*10^6 -> 1184494.587 | T13: =0.4982 -> 0.4982 | U13: 0.05 | V13: 10000 | X13: Platform with storage | Z13: 69142800 | AB13: 0.05 | AC13: 1 | AD13: 0 | AE13: 15 | AF13: 4 | AH13: High | AI13: Onshore | AK13: 0.5043867196 | AM13: 0.2302635024 | AZ13: Electricity | BA13: High | BB13: 0.23 | BC13: 0.1
C14: Medium | D14: Non-pressurised | E14: 15.12991526 | F14: 0.1 | G14: 83.07567816 | X14: Existing platform with storage | Z14: 0 | AB14: 0.05 | AC14: 1 | AD14: 0 | AE14: 15 | AF14: 4 | AH14: Low | AI14: Direct injection | AK14: 4.32787875 | AL14: 0.05 | AN14: 6.755 | AZ14: LNG | BA14: Low | BB14: 0.1810757408 | BC14: =0.0175810520419201*0+0.0195345022688001*0.75 -> 0.0146508767
C15: High | D15: Pre-pressurised | E15: 4.866771167 | F15: 0.1 | G15: 16.55640766 | AH15: Medium | AI15: Direct injection | AK15: 4.32787875 | AL15: 0.05 | AN15: 6.475 | AZ15: LNG | BA15: Central | BB15: 0.1810757408 | BC15: 0.01953450227
C16: High | D16: Non-pressurised | E16: 9.686709237 | F16: 0.1 | G16: 70.2948046 | AH16: High | AI16: Direct injection | AK16: 4.32787875 | AL16: 0.05 | AN16: 5.425 | AZ16: LNG | BA16: High | BB16: 0.1810757408 | BC16: =0.0214879524956801*0+0.0195345022688001*1.25 -> 0.02441812784
AH17: Low | AI17: Platform with storage | AK17: 6.668097534 | AL17: 0.05 | AN17: 10.255 | AZ17: MDO | BA17: Low | BB17: 0.2494821317 | BC17: =0.0216186025939604*0+0.0236631526067226*0.75 -> 0.01774736446
AH18: Medium | AI18: Platform with storage | AK18: 6.668097534 | AL18: 0.05 | AN18: 9.975 | AZ18: MDO | BA18: Central | BB18: 0.2494821317 | BC18: 0.02366315261
AH19: High | AI19: Platform with storage | AK19: 6.668097534 | AL19: 0.05 | AN19: 8.925 | AZ19: MDO | BA19: High | BB19: 0.2494821317 | BC19: =0.0260093575394004*0+0.0236631526067226*1.25 -> 0.02957894076
AH20: Low | AI20: Existing platform with storage | AK20: 6.668097534 | AL20: 0.05 | AN20: 10.255
AH21: Medium | AI21: Existing platform with storage | AK21: 6.668097534 | AL21: 0.05 | AN21: 9.975
AH22: High | AI22: Existing platform with storage | AK22: 6.668097534 | AL22: 0.05 | AN22: 8.925

Sheet Port distances
C2: CO2 shipping cost tool
C4: =MID(CELL("filename",A1),FIND("]",CELL("filename",A1))+1,255) -> Port distances
C7: Distances between ports | G7: Port locations
C8: Start port | D8: End port | E8: Distance (km) | G8: ID | H8: Port | I8: Latitude | J8: Longitude
C9: Teesside | D9: St Fergus | E9: 476 | G9: 1 | H9: St Fergus | I9: 57.58 | J9: -1.84
C10: Teesside | D10: Grangemouth | E10: 272 | G10: 2 | H10: Teesside | I10: 54.61 | J10: -1.19
C11: Teesside | D11: Merseyside | E11: 1354 | G11: 3 | H11: Grangemouth | I11: 56.01 | J11: -3.69
C12: Teesside | D12: Humberside | E12: 248 | G12: 4 | H12: Merseyside | I12: 53.34 | J12: -3.32
C13: Teesside | D13: South Wales | E13: 1265 | G13: 5 | H13: Humberside | I13: 53.36 | J13: 0.23
C14: Teesside | D14: Thames Estuary | E14: 522 | G14: 6 | H14: South Wales | I14: 51.7 | J14: -5.08
C15: Teesside | D15: Rotterdam | E15: 467 | G15: 7 | H15: Thames Estuary | I15: 51.44 | J15: 0.69
C16: Teesside | D16: Porsgrunn | E16: 874 | G16: 8 | H16: Rotterdam | I16: 51.9496 | J16: 4.1453
C17: St Fergus | D17: Grangemouth | E17: 232 | G17: 9 | H17: Porsgrunn | I17: 59.1386 | J17: 9.6555
C18: St Fergus | D18: Merseyside | E18: 1033 | G18: 10 | H18: Duisburg | I18: 51.4455 | J18: 6.7475
C19: St Fergus | D19: Humberside | E19: 463 | G19: 11 | H19: Le Havre | I19: 49.472655 | J19: 0.14620419
C20: St Fergus | D20: South Wales | E20: 1302 | G20: 12 | H20: Antwerp | I20: 51.30249 | J20: 4.3114605
C21: St Fergus | D21: Thames Estuary | E21: 820
C22: St Fergus | D22: Rotterdam | E22: 765
C23: St Fergus | D23: Porsgrunn | E23: 1791
C24: Grangemouth | D24: Merseyside | E24: 1267
C25: Grangemouth | D25: Humberside | E25: 465
C26: Grangemouth | D26: South Wales | E26: 1515
C27: Grangemouth | D27: Thames Estuary | E27: 776
C28: Grangemouth | D28: Rotterdam | E28: 737
C29: Grangemouth | D29: Porsgrunn | E29: 948
C30: Merseyside | D30: Humberside | E30: 1450
C31: Merseyside | D31: South Wales | E31: 452
C32: Merseyside | D32: Thames Estuary | E32: 1304
C33: Merseyside | D33: Rotterdam | E33: 1333
C34: Merseyside | D34: Porsgrunn | E34: 1682
C35: Humberside | D35: South Wales | E35: 1154
C36: Humberside | D36: Thames Estuary | E36: 409
C37: Humberside | D37: Rotterdam | E37: 363
C38: Humberside | D38: Porsgrunn | E38: 922
C39: South Wales | D39: Thames Estuary | E39: 1072
C40: South Wales | D40: Rotterdam | E40: 1041
C41: South Wales | D41: Porsgrunn | E41: 1889
C42: Thames Estuary | D42: Rotterdam | E42: 276
C43: Thames Estuary | D43: Porsgrunn | E43: 1522
C44: Rotterdam | D44: Porsgrunn | E44: 913
C45: Duisburg | D45: Teesside | E45: 707
C46: Duisburg | D46: St Fergus | E46: 1006
C47: Duisburg | D47: Grangemouth | E47: 959
C48: Duisburg | D48: Merseyside | E48: 1519
C49: Duisburg | D49: Humberside | E49: 593
C50: Duisburg | D50: South Wales | E50: 1226
C51: Duisburg | D51: Thames Estuary | E51: 1002
C52: Le Havre | D52: Teesside | E52: 706
C53: Le Havre | D53: St Fergus | E53: 1017
C54: Le Havre | D54: Grangemouth | E54: 983
C55: Le Havre | D55: Merseyside | E55: 978
C56: Le Havre | D56: Humberside | E56: 620
C57: Le Havre | D57: South Wales | E57: 695
C58: Le Havre | D58: Thames Estuary | E58: 370
C59: Antwerp | D59: Teesside | E59: 454
C60: Antwerp | D60: St Fergus | E60: 848
C61: Antwerp | D61: Grangemouth | E61: 856
C62: Antwerp | D62: Merseyside | E62: 1333
C63: Antwerp | D63: Humberside | E63: 494
C64: Antwerp | D64: South Wales | E64: 1050
C65: Antwerp | D65: Thames Estuary | E65: 304
C66: Duisburg | D66: Rotterdam | E66: 220
C67: Duisburg | D67: Porsgrunn | E67: 1067
C68: Duisburg | D68: Le Havre | E68: 789
C69: Duisburg | D69: Antwerp | E69: 306
C70: Le Havre | D70: Rotterdam | E70: 500
C71: Le Havre | D71: Porsgrunn | E71: 1326
C72: Le Havre | D72: Antwerp | E72: 483
C73: Antwerp | D73: Rotterdam | E73: 131
C74: Antwerp | D74: Porsgrunn | E74: 1100

Sheet Storage locations
C2: CO2 shipping cost tool
C4: =MID(CELL("filename",A1),FIND("]",CELL("filename",A1))+1,255) -> Storage locations
D7: Total storage sites
D8: =COUNTA(StorageSiteLocation[Description]) -> 3
C9: Storage locations
C10: ID | D10: Description | E10: Latitude | F10: Longitude
C11: 1 | D11: CNS site | E11: 58.004065 | F11: -0.364826
C12: 2 | D12: SNS site | E12: 54.34 | F12: 1.64
C13: 3 | D13: EIS site | E13: 53.568347 | F13: -3.450813

Sheet Engineering inputs
C2: CO2 shipping cost tool
C4: =MID(CELL("filename",A1),FIND("]",CELL("filename",A1))+1,255) -> Engineering inputs
C8: Physical constant | D8: Value | E8: Unit | G8: Initial unit | H8: Final unit | I8: Conversion value | K8: Pressure (MPa) | L8: Density (kg/m3) | M8: Viscosity (Pas)
C9: Radius of Earth | D9: =6.37*10^6 -> 6370000 | E9: m | G9: Mt | H9: kg | I9: =1*10^9 -> 1000000000 | K9: 10 | L9: 817.63 | M9: 7.3877e-05
C10: Acceleration due to gravity | D10: 9.8 | E10: ms-2 | G10: Year | H10: second | I10: =8760*60*60 -> 31536000 | K10: 20 | L10: 914.24 | M10: 9.5038e-05
G11: Inch | H11: metre | I11: 0.0254 | K11: 25 | L11: 942.98 | M11: 0.00010291
C12: Engineering assumptions | D12: Value | E12: Unit | K12: 30 | L12: 966.52 | M12: 0.00011004
C13: Minimum pipeline pressure | D13: 10 | E13: MPa
C14: Maximum pipeline pressure | D14: 25 | E14: MPa
C15: Shoreline supply pressure | D15: 10 | E15: MPa
C16: Compressor efficiency | D16: 0.75
C17: Routing factor | D17: 1.2
C18: Pipeline roughness | D18: =45.6*10^-6 -> 4.56e-05 | E18: m
C19: Injection well diameter | D19: 4.5 | E19: inch
C20: Pipe utilisation factor | D20: 0.75

Sheet Pipeline costs
C2: CO2 shipping cost tool
C4: =MID(CELL("filename",A1),FIND("]",CELL("filename",A1))+1,255) -> Pipeline costs
D7: Compression fuel
D8: Electricity
C9: Compressor cost table | G9: Offshore pipeline cost table
C10: Compressor capex (£/MW) | D10: Opex (share of capex) | E10: Cost of energy (£/MWh) | G10: Transmission pipeline length (km) | H10: Capex (£/inch/km) | I10: Opex (share of capex)
C11: 3750000 | D11: 0.04 | E11: 52 | G11: 1 | H11: 180288.4615 | I11: 0.01
G12: 25 | H12: 154246.7949 | I12: 0.01
G13: 30 | H13: 138555.0214 | I13: 0.01
G14: 40 | H14: 116436.2981 | I14: 0.01
G15: 50 | H15: 103165.0641 | I15: 0.01
G16: 60 | H16: 93482.90598 | I16: 0.01
G17: 80 | H17: 82632.21154 | I17: 0.01
G18: 100 | H18: 76121.79487 | I18: 0.01
G19: 150 | H19: 67107.37179 | I19: 0.01
G20: 200 | H20: 62600.16026 | I20: 0.01
G21: 250 | H21: 60096.15385 | I21: 0.01
G22: 300 | H22: 58092.94872 | I22: 0.01
G23: 400 | H23: 55964.54327 | I23: 0.01
G24: 500 | H24: 54587.33974 | I24: 0.01
G25: 1000 | H25: 53669.20406 | I25: 0.01
G26: 2000 | H26: 53084.9359 | I26: 0.01

Sheet Pipeline infrastructure costs
AK4: Capex | AL4: =IF(ISERROR(FIND("(£)",AL$7)),0,1) -> 1 | AM4: =IF(ISERROR(FIND("(£)",AM$7)),0,1) -> 0 | AN4: 0 | AO4: 1 | AP4: 0 | AV4: Pressure drop (MPa) | AW4: =Selected_pressure_drop -> 15
AK5: Opex | AL5: =1-AL4 -> 0 | AM5: =1-AM4 -> 1 | AN5: 1 | AO5: 0 | AP5: 1
R6: 1 | S6: 2 | T6: 3 | U6: 4 | V6: 5 | W6: 6 | X6: 7 | Y6: 8 | Z6: 9 | AA6: 10 | AV6: Pipeline size (inches) | AW6: 1 | AX6: 2 | AY6: 3 | AZ6: 4 | BA6: 5 | BB6: 6 | BC6: 7 | BD6: 8 | BE6: 9 | BF6: 10 | BH6: Levelised lifetime cost of pipeline (£/t CO2) | BI6: 1 | BJ6: 2 | BK6: 3 | BL6: 4 | BM6: 5 | BN6: 6 | BO6: 7 | BP6: 8 | BQ6: 9 | BR6: 10
C7: Calcualtion of pressure losses | I7: ID | J7: Flow rate (Mt CO2/y) | K7: Pipeline diameter (inches) | L7: Reynold's Number | M7: Friction factor | N7: Pressure drop (MPa/m) | R7: Flow rate (Mt CO2/y) | AC7: ID | AD7: Active | AE7: Pressure drop (MPa) | AF7: Flow rate (Mt CO2/y) | AG7: Transportation distance (km) | AH7: Matching transportation distance (km) | AI7: Pressure drop (MPa/m) | AJ7: Pipeline diameter (inches) | AK7: Compressor size (MW) | AL7: Compressor capex (£) | AM7: Compressor opex (£/y) | AN7: Compressor energy cost (£/y) | AO7: Transmission pipeline capex (£) | AP7: Transmission pipeline opex (£/y) | AQ7: Total capex (£/y) | AR7: Total lifetime discounted opex (£/y) | AS7: Levelised lifetime cost of pipeline (£/t CO2) | AW7: Flow rate (Mt CO2/y) | BI7: Flow rate (Mt CO2/y)
I8: 1 | J8: =IF(FrictionLossesBySizeFlow[[#This Row],[ID]]>Total_flow_rates*Total_pipeline_sizes,"",OFFSET(FlowRates[[#Headers],[Flow rate (Mt CO2/y)]],QUOTIENT(FrictionLossesBySizeFlow[[#This Row],[ID]]-1,Total_pipeline_sizes)+1,0)) -> 0.1 | K8: =IF(FrictionLossesBySizeFlow[[#This Row],[ID]]>Total_flow_rates*Total_pipeline_sizes,"",OFFSET(PipelineSizes[[#Headers],[Pipeline diameter (inches)]],MOD(FrictionLossesBySizeFlow[[#This Row],[ID]]-1,Total_pipeline_sizes)+1,0)) -> 4.5 | L8: =IF(FrictionLossesBySizeFlow[[#This Row],[ID]]>Total_flow_rates*Total_pipeline_sizes,"",4*FrictionLossesBySizeFlow[[#This Row],[Flow rate (Mt CO2/y)]]/Pipe_utilisation_factor*SUMIFS(ConversionFactors[Conversion value],ConversionFactors[Initial unit],"Mt",ConversionFactors[Final unit],"kg")/SUMIFS(ConversionFactors[Conversion value],ConversionFactors[Initial unit],"Year",ConversionFactors[Final unit],"second")/(PI()*SUMIFS(CO2PhysicalProperties[Viscosity (Pas)],CO2PhysicalProperties[Pressure (MPa)],Minimum_pipeline_pressure)*FrictionLossesBySizeFlow[[#This Row],[Pipeline diameter (inches)]]*SUMIFS(ConversionFactors[Conversion value],ConversionFactors[Initial unit],"Inch",ConversionFactors[Final unit],"metre"))) -> 637509.6552 | M8: =IF(FrictionLossesBySizeFlow[[#This Row],[ID]]>Total_flow_rates*Total_pipeline_sizes,"",1.325/(LN(Pipeline_roughness/(3.7*FrictionLossesBySizeFlow[[#This Row],[Pipeline diameter (inches)]]*SUMIFS(ConversionFactors[Conversion value],ConversionFactors[Initial unit],"Inch",ConversionFactors[Final unit],"metre"))+(5.74/FrictionLossesBySizeFlow[[#This Row],[Reynold''s Number]]^0.9)))^2) -> 0.01688271918 | N8: =IF(FrictionLossesBySizeFlow[[#This Row],[ID]]>Total_flow_rates*Total_pipeline_sizes,"",8*FrictionLossesBySizeFlow[[#This Row],[Friction factor]]*(FrictionLossesBySizeFlow[[#This Row],[Flow rate (Mt CO2/y)]]/Pipe_utilisation_factor*SUMIFS(ConversionFactors[Conversion value],ConversionFactors[Initial unit],"Mt",ConversionFactors[Final unit],"kg")/SUMIFS(ConversionFactors[Conversion value],ConversionFactors[Initial unit],"Year",ConversionFactors[Final unit],"second"))^2/(SUMIFS(CO2PhysicalProperties[Density (kg/m3)],CO2PhysicalProperties[Pressure (MPa)],Minimum_pipeline_pressure)*PI()^2*(FrictionLossesBySizeFlow[[#This Row],[Pipeline diameter (inches)]]*SUMIFS(ConversionFactors[Conversion value],ConversionFactors[Initial unit],"Inch",ConversionFactors[Final unit],"metre"))^5)/10^6) -> 1.533588798e-05 | Q8: Pipeline diameter (inches) | R8: =IF(R$6>Total_flow_rates,"",OFFSET(FlowRates[[#Headers],[Flow rate (Mt CO2/y)]],R$6,0)) -> 0.1 | S8: =IF(S$6>Total_flow_rates,"",OFFSET(FlowRates[[#Headers],[Flow rate (Mt CO2/y)]],S$6,0)) -> 0.2 | T8: =IF(T$6>Total_flow_rates,"",OFFSET(FlowRates[[#Headers],[Flow rate (Mt CO2/y)]],T$6,0)) -> 0.5 | U8: =IF(U$6>Total_flow_rates,"",OFFSET(FlowRates[[#Headers],[Flow rate (Mt CO2/y)]],U$6,0)) -> 1 | V8: =IF(V$6>Total_flow_rates,"",OFFSET(FlowRates[[#Headers],[Flow rate (Mt CO2/y)]],V$6,0)) -> 2 | W8: =IF(W$6>Total_flow_rates,"",OFFSET(FlowRates[[#Headers],[Flow rate (Mt CO2/y)]],W$6,0)) -> 5 | X8: =IF(X$6>Total_flow_rates,"",OFFSET(FlowRates[[#Headers],[Flow rate (Mt CO2/y)]],X$6,0)) -> 10 | Y8: =IF(Y$6>Total_flow_rates,"",OFFSET(FlowRates[[#Headers],[Flow rate (Mt CO2/y)]],Y$6,0)) ->  | Z8: =IF(Z$6>Total_flow_rates,"",OFFSET(FlowRates[[#Headers],[Flow rate (Mt CO2/y)]],Z$6,0)) ->  | AA8: =IF(AA$6>Total_flow_rates,"",OFFSET(FlowRates[[#Headers],[Flow rate (Mt CO2/y)]],AA$6,0)) ->  | AC8: 1 | AD8: =IF(PipelineInfrastructureCost[[#This Row],[ID]]>Total_pressure_drop*Total_flow_rates*Total_transportation_distances,0,1) -> 1 | AE8: =IF(PipelineInfrastructureCost[[#This Row],[Active]]=0,"",OFFSET(PressureDrop[[#Headers],[Pressure drop (MPa)]],QUOTIENT(PipelineInfrastructureCost[[#This Row],[ID]]-1,Total_flow_rates*Total_transportation_distances)+1,0)) -> 1 | AF8: =IF(PipelineInfrastructureCost[[#This Row],[Active]]=0,"",OFFSET(FlowRates[[#Headers],[Flow rate (Mt CO2/y)]],MOD(QUOTIENT(PipelineInfrastructureCost[[#This Row],[ID]]-1,Total_transportation_distances),Total_flow_rates)+1,0)) -> 0.1 | AG8: =IF(PipelineInfrastructureCost[[#This Row],[Active]]=0,"",IF(Active_scenario_switch="Yes",Selected_distance,OFFSET(TransportationDistances[[#Headers],[Transportation distance (km)]],MOD(PipelineInfrastructureCost[[#This Row],[ID]]-1,Total_transportation_distances)+1,0))) -> 476 | AH8: =IF(PipelineInfrastructureCost[[#This Row],[Active]]=0,"",MAX(IF(TransmissionPipelineCost[Transmission pipeline length (km)]<=PipelineInfrastructureCost[[#This Row],[Transportation distance (km)]],TransmissionPipelineCost[Transmission pipeline length (km)]))) -> 400 | AI8: =IF(PipelineInfrastructureCost[[#This Row],[Active]]=0,"",PipelineInfrastructureCost[[#This Row],[Pressure drop (MPa)]]/PipelineInfrastructureCost[[#This Row],[Transportation distance (km)]]/10^3) -> 2.100840336e-06 | AJ8: =IF(PipelineInfrastructureCost[[#This Row],[Active]]=0,"",MIN(IF(FrictionLossesBySizeFlow[Flow rate (Mt CO2/y)]=PipelineInfrastructureCost[[#This Row],[Flow rate (Mt CO2/y)]],IF(FrictionLossesBySizeFlow[Pressure drop (MPa/m)]<PipelineInfrastructureCost[[#This Row],[Pressure drop (MPa/m)]],FrictionLossesBySizeFlow[Pipeline diameter (inches)])))) -> 8 | AK8: =IF(PipelineInfrastructureCost[[#This Row],[Active]]=0,"",PipelineInfrastructureCost[[#This Row],[Flow rate (Mt CO2/y)]]/Pipe_utilisation_factor*SUMIFS(ConversionFactors[Conversion value],ConversionFactors[Initial unit],"Mt",ConversionFactors[Final unit],"kg")/SUMIFS(ConversionFactors[Conversion value],ConversionFactors[Initial unit],"Year",ConversionFactors[Final unit],"second")/SUMIFS(CO2PhysicalProperties[Density (kg/m3)],CO2PhysicalProperties[Pressure (MPa)],Shoreline_supply_pressure)*(Maximum_pipeline_pressure-Minimum_pipeline_pressure)/Compressor_efficiency) -> 0.1034201843 | AL8: =IF(PipelineInfrastructureCost[[#This Row],[Active]]=0,"",PipelineInfrastructureCost[[#This Row],[Compressor size (MW)]]*CompressorCost[Compressor capex (£/MW)]) -> 387825.6911 | AM8: =IF(PipelineInfrastructureCost[[#This Row],[Active]]=0,"",PipelineInfrastructureCost[[#This Row],[Compressor capex (£)]]*CompressorCost[Opex (share of capex)]) -> 15513.02765 | AN8: =IF(PipelineInfrastructureCost[[#This Row],[Active]]=0,"",PipelineInfrastructureCost[[#This Row],[Compressor size (MW)]]*8760*Pipe_utilisation_factor*10^3*SUMIFS(FuelCost[Cost (£/kWh)],FuelCost[Fuel],CompressionFuel,FuelCost[Scenario],Liquefaction_compression_fuel_cost)) -> 54357.64887 | AO8: =IF(PipelineInfrastructureCost[[#This Row],[Active]]=0,"",SUMIFS(TransmissionPipelineCost[Capex (£/inch/km)],TransmissionPipelineCost[Transmission pipeline length (km)],PipelineInfrastructureCost[[#This Row],[Matching transportation distance (km)]])*PipelineInfrastructureCost[[#This Row],[Pipeline diameter (inches)]]*PipelineInfrastructureCost[[#This Row],[Transportation distance (km)]]) -> 213112980.8 | AP8: =IF(PipelineInfrastructureCost[[#This Row],[Active]]=0,"",SUMIFS(TransmissionPipelineCost[Opex (share of capex)],TransmissionPipelineCost[Transmission pipeline length (km)],PipelineInfrastructureCost[[#This Row],[Matching transportation distance (km)]])*PipelineInfrastructureCost[[#This Row],[Transmission pipeline capex (£)]]) -> 2131129.808 | AQ8: =IF(PipelineInfrastructureCost[[#This Row],[Active]]=0,"",PipelineInfrastructureCost[[#This Row],[Compressor capex (£)]]+PipelineInfrastructureCost[[#This Row],[Transmission pipeline capex (£)]]) -> 213500806.5 | AR8: =IF(PipelineInfrastructureCost[[#This Row],[Active]]=0,"",-PV(Discount_rate,PipelineLifetime,PipelineInfrastructureCost[[#This Row],[Compressor opex (£/y)]]+PipelineInfrastructureCost[[#This Row],[Compressor energy cost (£/y)]]+PipelineInfrastructureCost[[#This Row],[Transmission pipeline opex (£/y)]])) -> 44020009.68 | AS8: =IF(PipelineInfrastructureCost[[#This Row],[Active]]=0,"",SUM(PipelineInfrastructureCost[[#This Row],[Total capex (£/y)]:[Total lifetime discounted opex (£/y)]])/-PV(Discount_rate,PipelineLifetime,PipelineInfrastructureCost[[#This Row],[Flow rate (Mt CO2/y)]])/10^6) -> 128.7604081 | AV8: Transportation distance (km) | AW8: =IF(AW$6>Total_flow_rates,"",OFFSET(FlowRates[[#Headers],[Flow rate (Mt CO2/y)]],AW$6,0)) -> 0.1 | AX8: =IF(AX$6>Total_flow_rates,"",OFFSET(FlowRates[[#Headers],[Flow rate (Mt CO2/y)]],AX$6,0)) -> 0.2 | AY8: =IF(AY$6>Total_flow_rates,"",OFFSET(FlowRates[[#Headers],[Flow rate (Mt CO2/y)]],AY$6,0)) -> 0.5 | AZ8: =IF(AZ$6>Total_flow_rates,"",OFFSET(FlowRates[[#Headers],[Flow rate (Mt CO2/y)]],AZ$6,0)) -> 1 | BA8: =IF(BA$6>Total_flow_rates,"",OFFSET(FlowRates[[#Headers],[Flow rate (Mt CO2/y)]],BA$6,0)) -> 2 | BB8: =IF(BB$6>Total_flow_rates,"",OFFSET(FlowRates[[#Headers],[Flow rate (Mt CO2/y)]],BB$6,0)) -> 5 | BC8: =IF(BC$6>Total_flow_rates,"",OFFSET(FlowRates[[#Headers],[Flow rate (Mt CO2/y)]],BC$6,0)) -> 10 | BD8: =IF(BD$6>Total_flow_rates,"",OFFSET(FlowRates[[#Headers],[Flow rate (Mt CO2/y)]],BD$6,0)) ->  | BE8: =IF(BE$6>Total_flow_rates,"",OFFSET(FlowRates[[#Headers],[Flow rate (Mt CO2/y)]],BE$6,0)) ->  | BF8: =IF(BF$6>Total_flow_rates,"",OFFSET(FlowRates[[#Headers],[Flow rate (Mt CO2/y)]],BF$6,0)) ->  | BH8: Transportation distance (km) | BI8: =IF(BI$6>Total_flow_rates,"",OFFSET(FlowRates[[#Headers],[Flow rate (Mt CO2/y)]],BI$6,0)) -> 0.1 | BJ8: =IF(BJ$6>Total_flow_rates,"",OFFSET(FlowRates[[#Headers],[Flow rate (Mt CO2/y)]],BJ$6,0)) -> 0.2 | BK8: =IF(BK$6>Total_flow_rates,"",OFFSET(FlowRates[[#Headers],[Flow rate (Mt CO2/y)]],BK$6,0)) -> 0.5 | BL8: =IF(BL$6>Total_flow_rates,"",OFFSET(FlowRates[[#Headers],[Flow rate (Mt CO2/y)]],BL$6,0)) -> 1 | BM8: =IF(BM$6>Total_flow_rates,"",OFFSET(FlowRates[[#Headers],[Flow rate (Mt CO2/y)]],BM$6,0)) -> 2 | BN8: =IF(BN$6>Total_flow_rates,"",OFFSET(FlowRates[[#Headers],[Flow rate (Mt CO2/y)]],BN$6,0)) -> 5 | BO8: =IF(BO$6>Total_flow_rates,"",OFFSET(FlowRates[[#Headers],[Flow rate (Mt CO2/y)]],BO$6,0)) -> 10 | BP8: =IF(BP$6>Total_flow_rates,"",OFFSET(FlowRates[[#Headers],[Flow rate (Mt CO2/y)]],BP$6,0)) ->  | BQ8: =IF(BQ$6>Total_flow_rates,"",OFFSET(FlowRates[[#Headers],[Flow rate (Mt CO2/y)]],BQ$6,0)) ->  | BR8: =IF(BR$6>Total_flow_rates,"",OFFSET(FlowRates[[#Headers],[Flow rate (Mt CO2/y)]],BR$6,0)) -> 
I9: 2 | J9: =IF(FrictionLossesBySizeFlow[[#This Row],[ID]]>Total_flow_rates*Total_pipeline_sizes,"",OFFSET(FlowRates[[#Headers],[Flow rate (Mt CO2/y)]],QUOTIENT(FrictionLossesBySizeFlow[[#This Row],[ID]]-1,Total_pipeline_sizes)+1,0)) -> 0.1 | K9: =IF(FrictionLossesBySizeFlow[[#This Row],[ID]]>Total_flow_rates*Total_pipeline_sizes,"",OFFSET(PipelineSizes[[#Headers],[Pipeline diameter (inches)]],MOD(FrictionLossesBySizeFlow[[#This Row],[ID]]-1,Total_pipeline_sizes)+1,0)) -> 6 | L9: =IF(FrictionLossesBySizeFlow[[#This Row],[ID]]>Total_flow_rates*Total_pipeline_sizes,"",4*FrictionLossesBySizeFlow[[#This Row],[Flow rate (Mt CO2/y)]]/Pipe_utilisation_factor*SUMIFS(ConversionFactors[Conversion value],ConversionFactors[Initial unit],"Mt",ConversionFactors[Final unit],"kg")/SUMIFS(ConversionFactors[Conversion value],ConversionFactors[Initial unit],"Year",ConversionFactors[Final unit],"second")/(PI()*SUMIFS(CO2PhysicalProperties[Viscosity (Pas)],CO2PhysicalProperties[Pressure (MPa)],Minimum_pipeline_pressure)*FrictionLossesBySizeFlow[[#This Row],[Pipeline diameter (inches)]]*SUMIFS(ConversionFactors[Conversion value],ConversionFactors[Initial unit],"Inch",ConversionFactors[Final unit],"metre"))) -> 478132.2414 | M9: =IF(FrictionLossesBySizeFlow[[#This Row],[ID]]>Total_flow_rates*Total_pipeline_sizes,"",1.325/(LN(Pipeline_roughness/(3.7*FrictionLossesBySizeFlow[[#This Row],[Pipeline diameter (inches)]]*SUMIFS(ConversionFactors[Conversion value],ConversionFactors[Initial unit],"Inch",ConversionFactors[Final unit],"metre"))+(5.74/FrictionLossesBySizeFlow[[#This Row],[Reynold''s Number]]^0.9)))^2) -> 0.01641230286 | N9: =IF(FrictionLossesBySizeFlow[[#This Row],[ID]]>Total_flow_rates*Total_pipeline_sizes,"",8*FrictionLossesBySizeFlow[[#This Row],[Friction factor]]*(FrictionLossesBySizeFlow[[#This Row],[Flow rate (Mt CO2/y)]]/Pipe_utilisation_factor*SUMIFS(ConversionFactors[Conversion value],ConversionFactors[Initial unit],"Mt",ConversionFactors[Final unit],"kg")/SUMIFS(ConversionFactors[Conversion value],ConversionFactors[Initial unit],"Year",ConversionFactors[Final unit],"second"))^2/(SUMIFS(CO2PhysicalProperties[Density (kg/m3)],CO2PhysicalProperties[Pressure (MPa)],Minimum_pipeline_pressure)*PI()^2*(FrictionLossesBySizeFlow[[#This Row],[Pipeline diameter (inches)]]*SUMIFS(ConversionFactors[Conversion value],ConversionFactors[Initial unit],"Inch",ConversionFactors[Final unit],"metre"))^5)/10^6) -> 3.537874072e-06 | P9: 1 | Q9: =IF($P9>Total_pipeline_sizes,"",OFFSET(PipelineSizes[[#Headers],[Pipeline diameter (inches)]],$P9,0)) -> 4.5 | R9: =IF(OR($P9>Total_pipeline_sizes,R$6>Total_flow_rates),"",SUMIFS(FrictionLossesBySizeFlow[Pressure drop (MPa/m)],FrictionLossesBySizeFlow[Pipeline diameter (inches)],$Q9,FrictionLossesBySizeFlow[Flow rate (Mt CO2/y)],R$8)*10^3) -> 0.01533588798 | S9: =IF(OR($P9>Total_pipeline_sizes,S$6>Total_flow_rates),"",SUMIFS(FrictionLossesBySizeFlow[Pressure drop (MPa/m)],FrictionLossesBySizeFlow[Pipeline diameter (inches)],$Q9,FrictionLossesBySizeFlow[Flow rate (Mt CO2/y)],S$8)*10^3) -> 0.05973215556 | T9: =IF(OR($P9>Total_pipeline_sizes,T$6>Total_flow_rates),"",SUMIFS(FrictionLossesBySizeFlow[Pressure drop (MPa/m)],FrictionLossesBySizeFlow[Pipeline diameter (inches)],$Q9,FrictionLossesBySizeFlow[Flow rate (Mt CO2/y)],T$8)*10^3) -> 0.3663347729 | U9: =IF(OR($P9>Total_pipeline_sizes,U$6>Total_flow_rates),"",SUMIFS(FrictionLossesBySizeFlow[Pressure drop (MPa/m)],FrictionLossesBySizeFlow[Pipeline diameter (inches)],$Q9,FrictionLossesBySizeFlow[Flow rate (Mt CO2/y)],U$8)*10^3) -> 1.454798144 | V9: =IF(OR($P9>Total_pipeline_sizes,V$6>Total_flow_rates),"",SUMIFS(FrictionLossesBySizeFlow[Pressure drop (MPa/m)],FrictionLossesBySizeFlow[Pipeline diameter (inches)],$Q9,FrictionLossesBySizeFlow[Flow rate (Mt CO2/y)],V$8)*10^3) -> 5.796209183 | W9: =IF(OR($P9>Total_pipeline_sizes,W$6>Total_flow_rates),"",SUMIFS(FrictionLossesBySizeFlow[Pressure drop (MPa/m)],FrictionLossesBySizeFlow[Pipeline diameter (inches)],$Q9,FrictionLossesBySizeFlow[Flow rate (Mt CO2/y)],W$8)*10^3) -> 36.13221872 | X9: =IF(OR($P9>Total_pipeline_sizes,X$6>Total_flow_rates),"",SUMIFS(FrictionLossesBySizeFlow[Pressure drop (MPa/m)],FrictionLossesBySizeFlow[Pipeline diameter (inches)],$Q9,FrictionLossesBySizeFlow[Flow rate (Mt CO2/y)],X$8)*10^3) -> 144.3917877 | Y9: =IF(OR($P9>Total_pipeline_sizes,Y$6>Total_flow_rates),"",SUMIFS(FrictionLossesBySizeFlow[Pressure drop (MPa/m)],FrictionLossesBySizeFlow[Pipeline diameter (inches)],$Q9,FrictionLossesBySizeFlow[Flow rate (Mt CO2/y)],Y$8)*10^3) ->  | Z9: =IF(OR($P9>Total_pipeline_sizes,Z$6>Total_flow_rates),"",SUMIFS(FrictionLossesBySizeFlow[Pressure drop (MPa/m)],FrictionLossesBySizeFlow[Pipeline diameter (inches)],$Q9,FrictionLossesBySizeFlow[Flow rate (Mt CO2/y)],Z$8)*10^3) ->  | AA9: =IF(OR($P9>Total_pipeline_sizes,AA$6>Total_flow_rates),"",SUMIFS(FrictionLossesBySizeFlow[Pressure drop (MPa/m)],FrictionLossesBySizeFlow[Pipeline diameter (inches)],$Q9,FrictionLossesBySizeFlow[Flow rate (Mt CO2/y)],AA$8)*10^3) ->  | AC9: 2 | AD9: =IF(PipelineInfrastructureCost[[#This Row],[ID]]>Total_pressure_drop*Total_flow_rates*Total_transportation_distances,0,1) -> 1 | AE9: =IF(PipelineInfrastructureCost[[#This Row],[Active]]=0,"",OFFSET(PressureDrop[[#Headers],[Pressure drop (MPa)]],QUOTIENT(PipelineInfrastructureCost[[#This Row],[ID]]-1,Total_flow_rates*Total_transportation_distances)+1,0)) -> 1 | AF9: =IF(PipelineInfrastructureCost[[#This Row],[Active]]=0,"",OFFSET(FlowRates[[#Headers],[Flow rate (Mt CO2/y)]],MOD(QUOTIENT(PipelineInfrastructureCost[[#This Row],[ID]]-1,Total_transportation_distances),Total_flow_rates)+1,0)) -> 0.2 | AG9: =IF(PipelineInfrastructureCost[[#This Row],[Active]]=0,"",IF(Active_scenario_switch="Yes",Selected_distance,OFFSET(TransportationDistances[[#Headers],[Transportation distance (km)]],MOD(PipelineInfrastructureCost[[#This Row],[ID]]-1,Total_transportation_distances)+1,0))) -> 476 | AH9: =IF(PipelineInfrastructureCost[[#This Row],[Active]]=0,"",MAX(IF(TransmissionPipelineCost[Transmission pipeline length (km)]<=PipelineInfrastructureCost[[#This Row],[Transportation distance (km)]],TransmissionPipelineCost[Transmission pipeline length (km)]))) -> 400 | AI9: =IF(PipelineInfrastructureCost[[#This Row],[Active]]=0,"",PipelineInfrastructureCost[[#This Row],[Pressure drop (MPa)]]/PipelineInfrastructureCost[[#This Row],[Transportation distance (km)]]/10^3) -> 2.100840336e-06 | AJ9: =IF(PipelineInfrastructureCost[[#This Row],[Active]]=0,"",MIN(IF(FrictionLossesBySizeFlow[Flow rate (Mt CO2/y)]=PipelineInfrastructureCost[[#This Row],[Flow rate (Mt CO2/y)]],IF(FrictionLossesBySizeFlow[Pressure drop (MPa/m)]<PipelineInfrastructureCost[[#This Row],[Pressure drop (MPa/m)]],FrictionLossesBySizeFlow[Pipeline diameter (inches)])))) -> 10 | AK9: =IF(PipelineInfrastructureCost[[#This Row],[Active]]=0,"",PipelineInfrastructureCost[[#This Row],[Flow rate (Mt CO2/y)]]/Pipe_utilisation_factor*SUMIFS(ConversionFactors[Conversion value],ConversionFactors[Initial unit],"Mt",ConversionFactors[Final unit],"kg")/SUMIFS(ConversionFactors[Conversion value],ConversionFactors[Initial unit],"Year",ConversionFactors[Final unit],"second")/SUMIFS(CO2PhysicalProperties[Density (kg/m3)],CO2PhysicalProperties[Pressure (MPa)],Shoreline_supply_pressure)*(Maximum_pipeline_pressure-Minimum_pipeline_pressure)/Compressor_efficiency) -> 0.2068403686 | AL9: =IF(PipelineInfrastructureCost[[#This Row],[Active]]=0,"",PipelineInfrastructureCost[[#This Row],[Compressor size (MW)]]*CompressorCost[Compressor capex (£/MW)]) -> 775651.3823 | AM9: =IF(PipelineInfrastructureCost[[#This Row],[Active]]=0,"",PipelineInfrastructureCost[[#This Row],[Compressor capex (£)]]*CompressorCost[Opex (share of capex)]) -> 31026.05529 | AN9: =IF(PipelineInfrastructureCost[[#This Row],[Active]]=0,"",PipelineInfrastructureCost[[#This Row],[Compressor size (MW)]]*8760*Pipe_utilisation_factor*10^3*SUMIFS(FuelCost[Cost (£/kWh)],FuelCost[Fuel],CompressionFuel,FuelCost[Scenario],Liquefaction_compression_fuel_cost)) -> 108715.2977 | AO9: =IF(PipelineInfrastructureCost[[#This Row],[Active]]=0,"",SUMIFS(TransmissionPipelineCost[Capex (£/inch/km)],TransmissionPipelineCost[Transmission pipeline length (km)],PipelineInfrastructureCost[[#This Row],[Matching transportation distance (km)]])*PipelineInfrastructureCost[[#This Row],[Pipeline diameter (inches)]]*PipelineInfrastructureCost[[#This Row],[Transportation distance (km)]]) -> 266391226 | AP9: =IF(PipelineInfrastructureCost[[#This Row],[Active]]=0,"",SUMIFS(TransmissionPipelineCost[Opex (share of capex)],TransmissionPipelineCost[Transmission pipeline length (km)],PipelineInfrastructureCost[[#This Row],[Matching transportation distance (km)]])*PipelineInfrastructureCost[[#This Row],[Transmission pipeline capex (£)]]) -> 2663912.26 | AQ9: =IF(PipelineInfrastructureCost[[#This Row],[Active]]=0,"",PipelineInfrastructureCost[[#This Row],[Compressor capex (£)]]+PipelineInfrastructureCost[[#This Row],[Transmission pipeline capex (£)]]) -> 267166877.3 | AR9: =IF(PipelineInfrastructureCost[[#This Row],[Active]]=0,"",-PV(Discount_rate,PipelineLifetime,PipelineInfrastructureCost[[#This Row],[Compressor opex (£/y)]]+PipelineInfrastructureCost[[#This Row],[Compressor energy cost (£/y)]]+PipelineInfrastructureCost[[#This Row],[Transmission pipeline opex (£/y)]])) -> 56073072.25 | AS9: =IF(PipelineInfrastructureCost[[#This Row],[Active]]=0,"",SUM(PipelineInfrastructureCost[[#This Row],[Total capex (£/y)]:[Total lifetime discounted opex (£/y)]])/-PV(Discount_rate,PipelineLifetime,PipelineInfrastructureCost[[#This Row],[Flow rate (Mt CO2/y)]])/10^6) -> 80.8099874 | AU9: 1 | AV9: =IF($AU9>Total_transportation_distances,"",IF(Active_scenario_switch="Yes",Selected_distance,OFFSET(TransportationDistances[[#Headers],[Transportation distance (km)]],$AU9,0))) -> 476 | AW9: =IF(OR($AU9>Total_transportation_distances,AW$6>Total_flow_rates),"",SUMIFS(PipelineInfrastructureCost[Pipeline diameter (inches)],PipelineInfrastructureCost[Pressure drop (MPa)],$AW$4,PipelineInfrastructureCost[Transportation distance (km)],$AV9,PipelineInfrastructureCost[Flow rate (Mt CO2/y)],AW$8)) -> 4.5 | AX9: =IF(OR($AU9>Total_transportation_distances,AX$6>Total_flow_rates),"",SUMIFS(PipelineInfrastructureCost[Pipeline diameter (inches)],PipelineInfrastructureCost[Pressure drop (MPa)],$AW$4,PipelineInfrastructureCost[Transportation distance (km)],$AV9,PipelineInfrastructureCost[Flow rate (Mt CO2/y)],AX$8)) -> 6 | AY9: =IF(OR($AU9>Total_transportation_distances,AY$6>Total_flow_rates),"",SUMIFS(PipelineInfrastructureCost[Pipeline diameter (inches)],PipelineInfrastructureCost[Pressure drop (MPa)],$AW$4,PipelineInfrastructureCost[Transportation distance (km)],$AV9,PipelineInfrastructureCost[Flow rate (Mt CO2/y)],AY$8)) -> 8 | AZ9: =IF(OR($AU9>Total_transportation_distances,AZ$6>Total_flow_rates),"",SUMIFS(PipelineInfrastructureCost[Pipeline diameter (inches)],PipelineInfrastructureCost[Pressure drop (MPa)],$AW$4,PipelineInfrastructureCost[Transportation distance (km)],$AV9,PipelineInfrastructureCost[Flow rate (Mt CO2/y)],AZ$8)) -> 10 | BA9: =IF(OR($AU9>Total_transportation_distances,BA$6>Total_flow_rates),"",SUMIFS(PipelineInfrastructureCost[Pipeline diameter (inches)],PipelineInfrastructureCost[Pressure drop (MPa)],$AW$4,PipelineInfrastructureCost[Transportation distance (km)],$AV9,PipelineInfrastructureCost[Flow rate (Mt CO2/y)],BA$8)) -> 14 | BB9: =IF(OR($AU9>Total_transportation_distances,BB$6>Total_flow_rates),"",SUMIFS(PipelineInfrastructureCost[Pipeline diameter (inches)],PipelineInfrastructureCost[Pressure drop (MPa)],$AW$4,PipelineInfrastructureCost[Transportation distance (km)],$AV9,PipelineInfrastructureCost[Flow rate (Mt CO2/y)],BB$8)) -> 18 | BC9: =IF(OR($AU9>Total_transportation_distances,BC$6>Total_flow_rates),"",SUMIFS(PipelineInfrastructureCost[Pipeline diameter (inches)],PipelineInfrastructureCost[Pressure drop (MPa)],$AW$4,PipelineInfrastructureCost[Transportation distance (km)],$AV9,PipelineInfrastructureCost[Flow rate (Mt CO2/y)],BC$8)) -> 24 | BD9: =IF(OR($AU9>Total_transportation_distances,BD$6>Total_flow_rates),"",SUMIFS(PipelineInfrastructureCost[Pipeline diameter (inches)],PipelineInfrastructureCost[Pressure drop (MPa)],$AW$4,PipelineInfrastructureCost[Transportation distance (km)],$AV9,PipelineInfrastructureCost[Flow rate (Mt CO2/y)],BD$8)) ->  | BE9: =IF(OR($AU9>Total_transportation_distances,BE$6>Total_flow_rates),"",SUMIFS(PipelineInfrastructureCost[Pipeline diameter (inches)],PipelineInfrastructureCost[Pressure drop (MPa)],$AW$4,PipelineInfrastructureCost[Transportation distance (km)],$AV9,PipelineInfrastructureCost[Flow rate (Mt CO2/y)],BE$8)) ->  | BF9: =IF(OR($AU9>Total_transportation_distances,BF$6>Total_flow_rates),"",SUMIFS(PipelineInfrastructureCost[Pipeline diameter (inches)],PipelineInfrastructureCost[Pressure drop (MPa)],$AW$4,PipelineInfrastructureCost[Transportation distance (km)],$AV9,PipelineInfrastructureCost[Flow rate (Mt CO2/y)],BF$8)) ->  | BH9: =IF($AU9>Total_transportation_distances,"",IF(Active_scenario_switch="Yes",Selected_distance,OFFSET(TransportationDistances[[#Headers],[Transportation distance (km)]],$AU9,0))) -> 476 | BI9: =IF(OR($AU9>Total_transportation_distances,AW$6>Total_flow_rates),"",SUMIFS(PipelineInfrastructureCost[Levelised lifetime cost of pipeline (£/t CO2)],PipelineInfrastructureCost[Pressure drop (MPa)],$AW$4,PipelineInfrastructureCost[Transportation distance (km)],$AV9,PipelineInfrastructureCost[Flow rate (Mt CO2/y)],AW$8)) -> 72.81825062 | BJ9: =IF(OR($AU9>Total_transportation_distances,AX$6>Total_flow_rates),"",SUMIFS(PipelineInfrastructureCost[Levelised lifetime cost of pipeline (£/t CO2)],PipelineInfrastructureCost[Pressure drop (MPa)],$AW$4,PipelineInfrastructureCost[Transportation distance (km)],$AV9,PipelineInfrastructureCost[Flow rate (Mt CO2/y)],AX$8)) -> 48.84304028 | BK9: =IF(OR($AU9>Total_transportation_distances,AY$6>Total_flow_rates),"",SUMIFS(PipelineInfrastructureCost[Levelised lifetime cost of pipeline (£/t CO2)],PipelineInfrastructureCost[Pressure drop (MPa)],$AW$4,PipelineInfrastructureCost[Transportation distance (km)],$AV9,PipelineInfrastructureCost[Flow rate (Mt CO2/y)],AY$8)) -> 26.4661773 | BL9: =IF(OR($AU9>Total_transportation_distances,AZ$6>Total_flow_rates),"",SUMIFS(PipelineInfrastructureCost[Levelised lifetime cost of pipeline (£/t CO2)],PipelineInfrastructureCost[Pressure drop (MPa)],$AW$4,PipelineInfrastructureCost[Transportation distance (km)],$AV9,PipelineInfrastructureCost[Flow rate (Mt CO2/y)],AZ$8)) -> 16.87609317 | BM9: =IF(OR($AU9>Total_transportation_distances,BA$6>Total_flow_rates),"",SUMIFS(PipelineInfrastructureCost[Levelised lifetime cost of pipeline (£/t CO2)],PipelineInfrastructureCost[Pressure drop (MPa)],$AW$4,PipelineInfrastructureCost[Transportation distance (km)],$AV9,PipelineInfrastructureCost[Flow rate (Mt CO2/y)],BA$8)) -> 12.0810511 | BN9: =IF(OR($AU9>Total_transportation_distances,BB$6>Total_flow_rates),"",SUMIFS(PipelineInfrastructureCost[Levelised lifetime cost of pipeline (£/t CO2)],PipelineInfrastructureCost[Pressure drop (MPa)],$AW$4,PipelineInfrastructureCost[Transportation distance (km)],$AV9,PipelineInfrastructureCost[Flow rate (Mt CO2/y)],BB$8)) -> 6.646670091 | BO9: =IF(OR($AU9>Total_transportation_distances,BC$6>Total_flow_rates),"",SUMIFS(PipelineInfrastructureCost[Levelised lifetime cost of pipeline (£/t CO2)],PipelineInfrastructureCost[Pressure drop (MPa)],$AW$4,PipelineInfrastructureCost[Transportation distance (km)],$AV9,PipelineInfrastructureCost[Flow rate (Mt CO2/y)],BC$8)) -> 4.728653265 | BP9: =IF(OR($AU9>Total_transportation_distances,BD$6>Total_flow_rates),"",SUMIFS(PipelineInfrastructureCost[Levelised lifetime cost of pipeline (£/t CO2)],PipelineInfrastructureCost[Pressure drop (MPa)],$AW$4,PipelineInfrastructureCost[Transportation distance (km)],$AV9,PipelineInfrastructureCost[Flow rate (Mt CO2/y)],BD$8)) ->  | BQ9: =IF(OR($AU9>Total_transportation_distances,BE$6>Total_flow_rates),"",SUMIFS(PipelineInfrastructureCost[Levelised lifetime cost of pipeline (£/t CO2)],PipelineInfrastructureCost[Pressure drop (MPa)],$AW$4,PipelineInfrastructureCost[Transportation distance (km)],$AV9,PipelineInfrastructureCost[Flow rate (Mt CO2/y)],BE$8)) ->  | BR9: =IF(OR($AU9>Total_transportation_distances,BF$6>Total_flow_rates),"",SUMIFS(PipelineInfrastructureCost[Levelised lifetime cost of pipeline (£/t CO2)],PipelineInfrastructureCost[Pressure drop (MPa)],$AW$4,PipelineInfrastructureCost[Transportation distance (km)],$AV9,PipelineInfrastructureCost[Flow rate (Mt CO2/y)],BF$8)) -> 
I10: 3 | J10: =IF(FrictionLossesBySizeFlow[[#This Row],[ID]]>Total_flow_rates*Total_pipeline_sizes,"",OFFSET(FlowRates[[#Headers],[Flow rate (Mt CO2/y)]],QUOTIENT(FrictionLossesBySizeFlow[[#This Row],[ID]]-1,Total_pipeline_sizes)+1,0)) -> 0.1 | K10: =IF(FrictionLossesBySizeFlow[[#This Row],[ID]]>Total_flow_rates*Total_pipeline_sizes,"",OFFSET(PipelineSizes[[#Headers],[Pipeline diameter (inches)]],MOD(FrictionLossesBySizeFlow[[#This Row],[ID]]-1,Total_pipeline_sizes)+1,0)) -> 8 | L10: =IF(FrictionLossesBySizeFlow[[#This Row],[ID]]>Total_flow_rates*Total_pipeline_sizes,"",4*FrictionLossesBySizeFlow[[#This Row],[Flow rate (Mt CO2/y)]]/Pipe_utilisation_factor*SUMIFS(ConversionFactors[Conversion value],ConversionFactors[Initial unit],"Mt",ConversionFactors[Final unit],"kg")/SUMIFS(ConversionFactors[Conversion value],ConversionFactors[Initial unit],"Year",ConversionFactors[Final unit],"second")/(PI()*SUMIFS(CO2PhysicalProperties[Viscosity (Pas)],CO2PhysicalProperties[Pressure (MPa)],Minimum_pipeline_pressure)*FrictionLossesBySizeFlow[[#This Row],[Pipeline diameter (inches)]]*SUMIFS(ConversionFactors[Conversion value],ConversionFactors[Initial unit],"Inch",ConversionFactors[Final unit],"metre"))) -> 358599.1811 | M10: =IF(FrictionLossesBySizeFlow[[#This Row],[ID]]>Total_flow_rates*Total_pipeline_sizes,"",1.325/(LN(Pipeline_roughness/(3.7*FrictionLossesBySizeFlow[[#This Row],[Pipeline diameter (inches)]]*SUMIFS(ConversionFactors[Conversion value],ConversionFactors[Initial unit],"Inch",ConversionFactors[Final unit],"metre"))+(5.74/FrictionLossesBySizeFlow[[#This Row],[Reynold''s Number]]^0.9)))^2) -> 0.01620125781 | N10: =IF(FrictionLossesBySizeFlow[[#This Row],[ID]]>Total_flow_rates*Total_pipeline_sizes,"",8*FrictionLossesBySizeFlow[[#This Row],[Friction factor]]*(FrictionLossesBySizeFlow[[#This Row],[Flow rate (Mt CO2/y)]]/Pipe_utilisation_factor*SUMIFS(ConversionFactors[Conversion value],ConversionFactors[Initial unit],"Mt",ConversionFactors[Final unit],"kg")/SUMIFS(ConversionFactors[Conversion value],ConversionFactors[Initial unit],"Year",ConversionFactors[Final unit],"second"))^2/(SUMIFS(CO2PhysicalProperties[Density (kg/m3)],CO2PhysicalProperties[Pressure (MPa)],Minimum_pipeline_pressure)*PI()^2*(FrictionLossesBySizeFlow[[#This Row],[Pipeline diameter (inches)]]*SUMIFS(ConversionFactors[Conversion value],ConversionFactors[Initial unit],"Inch",ConversionFactors[Final unit],"metre"))^5)/10^6) -> 8.287583132e-07 | P10: 2 | Q10: =IF($P10>Total_pipeline_sizes,"",OFFSET(PipelineSizes[[#Headers],[Pipeline diameter (inches)]],$P10,0)) -> 6 | R10: =IF(OR($P10>Total_pipeline_sizes,R$6>Total_flow_rates),"",SUMIFS(FrictionLossesBySizeFlow[Pressure drop (MPa/m)],FrictionLossesBySizeFlow[Pipeline diameter (inches)],$Q10,FrictionLossesBySizeFlow[Flow rate (Mt CO2/y)],R$8)*10^3) -> 0.003537874072 | S10: =IF(OR($P10>Total_pipeline_sizes,S$6>Total_flow_rates),"",SUMIFS(FrictionLossesBySizeFlow[Pressure drop (MPa/m)],FrictionLossesBySizeFlow[Pipeline diameter (inches)],$Q10,FrictionLossesBySizeFlow[Flow rate (Mt CO2/y)],S$8)*10^3) -> 0.01360196459 | T10: =IF(OR($P10>Total_pipeline_sizes,T$6>Total_flow_rates),"",SUMIFS(FrictionLossesBySizeFlow[Pressure drop (MPa/m)],FrictionLossesBySizeFlow[Pipeline diameter (inches)],$Q10,FrictionLossesBySizeFlow[Flow rate (Mt CO2/y)],T$8)*10^3) -> 0.08253404494 | U10: =IF(OR($P10>Total_pipeline_sizes,U$6>Total_flow_rates),"",SUMIFS(FrictionLossesBySizeFlow[Pressure drop (MPa/m)],FrictionLossesBySizeFlow[Pipeline diameter (inches)],$Q10,FrictionLossesBySizeFlow[Flow rate (Mt CO2/y)],U$8)*10^3) -> 0.3263029951 | V10: =IF(OR($P10>Total_pipeline_sizes,V$6>Total_flow_rates),"",SUMIFS(FrictionLossesBySizeFlow[Pressure drop (MPa/m)],FrictionLossesBySizeFlow[Pipeline diameter (inches)],$Q10,FrictionLossesBySizeFlow[Flow rate (Mt CO2/y)],V$8)*10^3) -> 1.296754323 | W10: =IF(OR($P10>Total_pipeline_sizes,W$6>Total_flow_rates),"",SUMIFS(FrictionLossesBySizeFlow[Pressure drop (MPa/m)],FrictionLossesBySizeFlow[Pipeline diameter (inches)],$Q10,FrictionLossesBySizeFlow[Flow rate (Mt CO2/y)],W$8)*10^3) -> 8.069839054 | X10: =IF(OR($P10>Total_pipeline_sizes,X$6>Total_flow_rates),"",SUMIFS(FrictionLossesBySizeFlow[Pressure drop (MPa/m)],FrictionLossesBySizeFlow[Pipeline diameter (inches)],$Q10,FrictionLossesBySizeFlow[Flow rate (Mt CO2/y)],X$8)*10^3) -> 32.22833863 | Y10: =IF(OR($P10>Total_pipeline_sizes,Y$6>Total_flow_rates),"",SUMIFS(FrictionLossesBySizeFlow[Pressure drop (MPa/m)],FrictionLossesBySizeFlow[Pipeline diameter (inches)],$Q10,FrictionLossesBySizeFlow[Flow rate (Mt CO2/y)],Y$8)*10^3) ->  | Z10: =IF(OR($P10>Total_pipeline_sizes,Z$6>Total_flow_rates),"",SUMIFS(FrictionLossesBySizeFlow[Pressure drop (MPa/m)],FrictionLossesBySizeFlow[Pipeline diameter (inches)],$Q10,FrictionLossesBySizeFlow[Flow rate (Mt CO2/y)],Z$8)*10^3) ->  | AA10: =IF(OR($P10>Total_pipeline_sizes,AA$6>Total_flow_rates),"",SUMIFS(FrictionLossesBySizeFlow[Pressure drop (MPa/m)],FrictionLossesBySizeFlow[Pipeline diameter (inches)],$Q10,FrictionLossesBySizeFlow[Flow rate (Mt CO2/y)],AA$8)*10^3) ->  | AC10: 3 | AD10: =IF(PipelineInfrastructureCost[[#This Row],[ID]]>Total_pressure_drop*Total_flow_rates*Total_transportation_distances,0,1) -> 1 | AE10: =IF(PipelineInfrastructureCost[[#This Row],[Active]]=0,"",OFFSET(PressureDrop[[#Headers],[Pressure drop (MPa)]],QUOTIENT(PipelineInfrastructureCost[[#This Row],[ID]]-1,Total_flow_rates*Total_transportation_distances)+1,0)) -> 1 | AF10: =IF(PipelineInfrastructureCost[[#This Row],[Active]]=0,"",OFFSET(FlowRates[[#Headers],[Flow rate (Mt CO2/y)]],MOD(QUOTIENT(PipelineInfrastructureCost[[#This Row],[ID]]-1,Total_transportation_distances),Total_flow_rates)+1,0)) -> 0.5 | AG10: =IF(PipelineInfrastructureCost[[#This Row],[Active]]=0,"",IF(Active_scenario_switch="Yes",Selected_distance,OFFSET(TransportationDistances[[#Headers],[Transportation distance (km)]],MOD(PipelineInfrastructureCost[[#This Row],[ID]]-1,Total_transportation_distances)+1,0))) -> 476 | AH10: =IF(PipelineInfrastructureCost[[#This Row],[Active]]=0,"",MAX(IF(TransmissionPipelineCost[Transmission pipeline length (km)]<=PipelineInfrastructureCost[[#This Row],[Transportation distance (km)]],TransmissionPipelineCost[Transmission pipeline length (km)]))) -> 400 | AI10: =IF(PipelineInfrastructureCost[[#This Row],[Active]]=0,"",PipelineInfrastructureCost[[#This Row],[Pressure drop (MPa)]]/PipelineInfrastructureCost[[#This Row],[Transportation distance (km)]]/10^3) -> 2.100840336e-06 | AJ10: =IF(PipelineInfrastructureCost[[#This Row],[Active]]=0,"",MIN(IF(FrictionLossesBySizeFlow[Flow rate (Mt CO2/y)]=PipelineInfrastructureCost[[#This Row],[Flow rate (Mt CO2/y)]],IF(FrictionLossesBySizeFlow[Pressure drop (MPa/m)]<PipelineInfrastructureCost[[#This Row],[Pressure drop (MPa/m)]],FrictionLossesBySizeFlow[Pipeline diameter (inches)])))) -> 14 | AK10: =IF(PipelineInfrastructureCost[[#This Row],[Active]]=0,"",PipelineInfrastructureCost[[#This Row],[Flow rate (Mt CO2/y)]]/Pipe_utilisation_factor*SUMIFS(ConversionFactors[Conversion value],ConversionFactors[Initial unit],"Mt",ConversionFactors[Final unit],"kg")/SUMIFS(ConversionFactors[Conversion value],ConversionFactors[Initial unit],"Year",ConversionFactors[Final unit],"second")/SUMIFS(CO2PhysicalProperties[Density (kg/m3)],CO2PhysicalProperties[Pressure (MPa)],Shoreline_supply_pressure)*(Maximum_pipeline_pressure-Minimum_pipeline_pressure)/Compressor_efficiency) -> 0.5171009215 | AL10: =IF(PipelineInfrastructureCost[[#This Row],[Active]]=0,"",PipelineInfrastructureCost[[#This Row],[Compressor size (MW)]]*CompressorCost[Compressor capex (£/MW)]) -> 1939128.456 | AM10: =IF(PipelineInfrastructureCost[[#This Row],[Active]]=0,"",PipelineInfrastructureCost[[#This Row],[Compressor capex (£)]]*CompressorCost[Opex (share of capex)]) -> 77565.13823 | AN10: =IF(PipelineInfrastructureCost[[#This Row],[Active]]=0,"",PipelineInfrastructureCost[[#This Row],[Compressor size (MW)]]*8760*Pipe_utilisation_factor*10^3*SUMIFS(FuelCost[Cost (£/kWh)],FuelCost[Fuel],CompressionFuel,FuelCost[Scenario],Liquefaction_compression_fuel_cost)) -> 271788.2443 | AO10: =IF(PipelineInfrastructureCost[[#This Row],[Active]]=0,"",SUMIFS(TransmissionPipelineCost[Capex (£/inch/km)],TransmissionPipelineCost[Transmission pipeline length (km)],PipelineInfrastructureCost[[#This Row],[Matching transportation distance (km)]])*PipelineInfrastructureCost[[#This Row],[Pipeline diameter (inches)]]*PipelineInfrastructureCost[[#This Row],[Transportation distance (km)]]) -> 372947716.3 | AP10: =IF(PipelineInfrastructureCost[[#This Row],[Active]]=0,"",SUMIFS(TransmissionPipelineCost[Opex (share of capex)],TransmissionPipelineCost[Transmission pipeline length (km)],PipelineInfrastructureCost[[#This Row],[Matching transportation distance (km)]])*PipelineInfrastructureCost[[#This Row],[Transmission pipeline capex (£)]]) -> 3729477.163 | AQ10: =IF(PipelineInfrastructureCost[[#This Row],[Active]]=0,"",PipelineInfrastructureCost[[#This Row],[Compressor capex (£)]]+PipelineInfrastructureCost[[#This Row],[Transmission pipeline capex (£)]]) -> 374886844.8 | AR10: =IF(PipelineInfrastructureCost[[#This Row],[Active]]=0,"",-PV(Discount_rate,PipelineLifetime,PipelineInfrastructureCost[[#This Row],[Compressor opex (£/y)]]+PipelineInfrastructureCost[[#This Row],[Compressor energy cost (£/y)]]+PipelineInfrastructureCost[[#This Row],[Transmission pipeline opex (£/y)]])) -> 81576610.92 | AS10: =IF(PipelineInfrastructureCost[[#This Row],[Active]]=0,"",SUM(PipelineInfrastructureCost[[#This Row],[Total capex (£/y)]:[Total lifetime discounted opex (£/y)]])/-PV(Discount_rate,PipelineLifetime,PipelineInfrastructureCost[[#This Row],[Flow rate (Mt CO2/y)]])/10^6) -> 45.64634557 | AU10: 2 | AV10: =IF($AU10>Total_transportation_distances,"",IF(Active_scenario_switch="Yes",Selected_distance,OFFSET(TransportationDistances[[#Headers],[Transportation distance (km)]],$AU10,0))) ->  | AW10: =IF(OR($AU10>Total_transportation_distances,AW$6>Total_flow_rates),"",SUMIFS(PipelineInfrastructureCost[Pipeline diameter (inches)],PipelineInfrastructureCost[Pressure drop (MPa)],$AW$4,PipelineInfrastructureCost[Transportation distance (km)],$AV10,PipelineInfrastructureCost[Flow rate (Mt CO2/y)],AW$8)) ->  | AX10: =IF(OR($AU10>Total_transportation_distances,AX$6>Total_flow_rates),"",SUMIFS(PipelineInfrastructureCost[Pipeline diameter (inches)],PipelineInfrastructureCost[Pressure drop (MPa)],$AW$4,PipelineInfrastructureCost[Transportation distance (km)],$AV10,PipelineInfrastructureCost[Flow rate (Mt CO2/y)],AX$8)) ->  | AY10: =IF(OR($AU10>Total_transportation_distances,AY$6>Total_flow_rates),"",SUMIFS(PipelineInfrastructureCost[Pipeline diameter (inches)],PipelineInfrastructureCost[Pressure drop (MPa)],$AW$4,PipelineInfrastructureCost[Transportation distance (km)],$AV10,PipelineInfrastructureCost[Flow rate (Mt CO2/y)],AY$8)) ->  | AZ10: =IF(OR($AU10>Total_transportation_distances,AZ$6>Total_flow_rates),"",SUMIFS(PipelineInfrastructureCost[Pipeline diameter (inches)],PipelineInfrastructureCost[Pressure drop (MPa)],$AW$4,PipelineInfrastructureCost[Transportation distance (km)],$AV10,PipelineInfrastructureCost[Flow rate (Mt CO2/y)],AZ$8)) ->  | BA10: =IF(OR($AU10>Total_transportation_distances,BA$6>Total_flow_rates),"",SUMIFS(PipelineInfrastructureCost[Pipeline diameter (inches)],PipelineInfrastructureCost[Pressure drop (MPa)],$AW$4,PipelineInfrastructureCost[Transportation distance (km)],$AV10,PipelineInfrastructureCost[Flow rate (Mt CO2/y)],BA$8)) ->  | BB10: =IF(OR($AU10>Total_transportation_distances,BB$6>Total_flow_rates),"",SUMIFS(PipelineInfrastructureCost[Pipeline diameter (inches)],PipelineInfrastructureCost[Pressure drop (MPa)],$AW$4,PipelineInfrastructureCost[Transportation distance (km)],$AV10,PipelineInfrastructureCost[Flow rate (Mt CO2/y)],BB$8)) ->  | BC10: =IF(OR($AU10>Total_transportation_distances,BC$6>Total_flow_rates),"",SUMIFS(PipelineInfrastructureCost[Pipeline diameter (inches)],PipelineInfrastructureCost[Pressure drop (MPa)],$AW$4,PipelineInfrastructureCost[Transportation distance (km)],$AV10,PipelineInfrastructureCost[Flow rate (Mt CO2/y)],BC$8)) ->  | BD10: =IF(OR($AU10>Total_transportation_distances,BD$6>Total_flow_rates),"",SUMIFS(PipelineInfrastructureCost[Pipeline diameter (inches)],PipelineInfrastructureCost[Pressure drop (MPa)],$AW$4,PipelineInfrastructureCost[Transportation distance (km)],$AV10,PipelineInfrastructureCost[Flow rate (Mt CO2/y)],BD$8)) ->  | BE10: =IF(OR($AU10>Total_transportation_distances,BE$6>Total_flow_rates),"",SUMIFS(PipelineInfrastructureCost[Pipeline diameter (inches)],PipelineInfrastructureCost[Pressure drop (MPa)],$AW$4,PipelineInfrastructureCost[Transportation distance (km)],$AV10,PipelineInfrastructureCost[Flow rate (Mt CO2/y)],BE$8)) ->  | BF10: =IF(OR($AU10>Total_transportation_distances,BF$6>Total_flow_rates),"",SUMIFS(PipelineInfrastructureCost[Pipeline diameter (inches)],PipelineInfrastructureCost[Pressure drop (MPa)],$AW$4,PipelineInfrastructureCost[Transportation distance (km)],$AV10,PipelineInfrastructureCost[Flow rate (Mt CO2/y)],BF$8)) ->  | BH10: =IF($AU10>Total_transportation_distances,"",IF(Active_scenario_switch="Yes",Selected_distance,OFFSET(TransportationDistances[[#Headers],[Transportation distance (km)]],$AU10,0))) ->  | BI10: =IF(OR($AU10>Total_transportation_distances,AW$6>Total_flow_rates),"",SUMIFS(PipelineInfrastructureCost[Levelised lifetime cost of pipeline (£/t CO2)],PipelineInfrastructureCost[Pressure drop (MPa)],$AW$4,PipelineInfrastructureCost[Transportation distance (km)],$AV10,PipelineInfrastructureCost[Flow rate (Mt CO2/y)],AW$8)) ->  | BJ10: =IF(OR($AU10>Total_transportation_distances,AX$6>Total_flow_rates),"",SUMIFS(PipelineInfrastructureCost[Levelised lifetime cost of pipeline (£/t CO2)],PipelineInfrastructureCost[Pressure drop (MPa)],$AW$4,PipelineInfrastructureCost[Transportation distance (km)],$AV10,PipelineInfrastructureCost[Flow rate (Mt CO2/y)],AX$8)) ->  | BK10: =IF(OR($AU10>Total_transportation_distances,AY$6>Total_flow_rates),"",SUMIFS(PipelineInfrastructureCost[Levelised lifetime cost of pipeline (£/t CO2)],PipelineInfrastructureCost[Pressure drop (MPa)],$AW$4,PipelineInfrastructureCost[Transportation distance (km)],$AV10,PipelineInfrastructureCost[Flow rate (Mt CO2/y)],AY$8)) ->  | BL10: =IF(OR($AU10>Total_transportation_distances,AZ$6>Total_flow_rates),"",SUMIFS(PipelineInfrastructureCost[Levelised lifetime cost of pipeline (£/t CO2)],PipelineInfrastructureCost[Pressure drop (MPa)],$AW$4,PipelineInfrastructureCost[Transportation distance (km)],$AV10,PipelineInfrastructureCost[Flow rate (Mt CO2/y)],AZ$8)) ->  | BM10: =IF(OR($AU10>Total_transportation_distances,BA$6>Total_flow_rates),"",SUMIFS(PipelineInfrastructureCost[Levelised lifetime cost of pipeline (£/t CO2)],PipelineInfrastructureCost[Pressure drop (MPa)],$AW$4,PipelineInfrastructureCost[Transportation distance (km)],$AV10,PipelineInfrastructureCost[Flow rate (Mt CO2/y)],BA$8)) ->  | BN10: =IF(OR($AU10>Total_transportation_distances,BB$6>Total_flow_rates),"",SUMIFS(PipelineInfrastructureCost[Levelised lifetime cost of pipeline (£/t CO2)],PipelineInfrastructureCost[Pressure drop (MPa)],$AW$4,PipelineInfrastructureCost[Transportation distance (km)],$AV10,PipelineInfrastructureCost[Flow rate (Mt CO2/y)],BB$8)) ->  | BO10: =IF(OR($AU10>Total_transportation_distances,BC$6>Total_flow_rates),"",SUMIFS(PipelineInfrastructureCost[Levelised lifetime cost of pipeline (£/t CO2)],PipelineInfrastructureCost[Pressure drop (MPa)],$AW$4,PipelineInfrastructureCost[Transportation distance (km)],$AV10,PipelineInfrastructureCost[Flow rate (Mt CO2/y)],BC$8)) ->  | BP10: =IF(OR($AU10>Total_transportation_distances,BD$6>Total_flow_rates),"",SUMIFS(PipelineInfrastructureCost[Levelised lifetime cost of pipeline (£/t CO2)],PipelineInfrastructureCost[Pressure drop (MPa)],$AW$4,PipelineInfrastructureCost[Transportation distance (km)],$AV10,PipelineInfrastructureCost[Flow rate (Mt CO2/y)],BD$8)) ->  | BQ10: =IF(OR($AU10>Total_transportation_distances,BE$6>Total_flow_rates),"",SUMIFS(PipelineInfrastructureCost[Levelised lifetime cost of pipeline (£/t CO2)],PipelineInfrastructureCost[Pressure drop (MPa)],$AW$4,PipelineInfrastructureCost[Transportation distance (km)],$AV10,PipelineInfrastructureCost[Flow rate (Mt CO2/y)],BE$8)) ->  | BR10: =IF(OR($AU10>Total_transportation_distances,BF$6>Total_flow_rates),"",SUMIFS(PipelineInfrastructureCost[Levelised lifetime cost of pipeline (£/t CO2)],PipelineInfrastructureCost[Pressure drop (MPa)],$AW$4,PipelineInfrastructureCost[Transportation distance (km)],$AV10,PipelineInfrastructureCost[Flow rate (Mt CO2/y)],BF$8)) -> 
I11: 4 | J11: =IF(FrictionLossesBySizeFlow[[#This Row],[ID]]>Total_flow_rates*Total_pipeline_sizes,"",OFFSET(FlowRates[[#Headers],[Flow rate (Mt CO2/y)]],QUOTIENT(FrictionLossesBySizeFlow[[#This Row],[ID]]-1,Total_pipeline_sizes)+1,0)) -> 0.1 | K11: =IF(FrictionLossesBySizeFlow[[#This Row],[ID]]>Total_flow_rates*Total_pipeline_sizes,"",OFFSET(PipelineSizes[[#Headers],[Pipeline diameter (inches)]],MOD(FrictionLossesBySizeFlow[[#This Row],[ID]]-1,Total_pipeline_sizes)+1,0)) -> 10 | L11: =IF(FrictionLossesBySizeFlow[[#This Row],[ID]]>Total_flow_rates*Total_pipeline_sizes,"",4*FrictionLossesBySizeFlow[[#This Row],[Flow rate (Mt CO2/y)]]/Pipe_utilisation_factor*SUMIFS(ConversionFactors[Conversion value],ConversionFactors[Initial unit],"Mt",ConversionFactors[Final unit],"kg")/SUMIFS(ConversionFactors[Conversion value],ConversionFactors[Initial unit],"Year",ConversionFactors[Final unit],"second")/(PI()*SUMIFS(CO2PhysicalProperties[Viscosity (Pas)],CO2PhysicalProperties[Pressure (MPa)],Minimum_pipeline_pressure)*FrictionLossesBySizeFlow[[#This Row],[Pipeline diameter (inches)]]*SUMIFS(ConversionFactors[Conversion value],ConversionFactors[Initial unit],"Inch",ConversionFactors[Final unit],"metre"))) -> 286879.3448 | M11: =IF(FrictionLossesBySizeFlow[[#This Row],[ID]]>Total_flow_rates*Total_pipeline_sizes,"",1.325/(LN(Pipeline_roughness/(3.7*FrictionLossesBySizeFlow[[#This Row],[Pipeline diameter (inches)]]*SUMIFS(ConversionFactors[Conversion value],ConversionFactors[Initial unit],"Inch",ConversionFactors[Final unit],"metre"))+(5.74/FrictionLossesBySizeFlow[[#This Row],[Reynold''s Number]]^0.9)))^2) -> 0.01622127839 | N11: =IF(FrictionLossesBySizeFlow[[#This Row],[ID]]>Total_flow_rates*Total_pipeline_sizes,"",8*FrictionLossesBySizeFlow[[#This Row],[Friction factor]]*(FrictionLossesBySizeFlow[[#This Row],[Flow rate (Mt CO2/y)]]/Pipe_utilisation_factor*SUMIFS(ConversionFactors[Conversion value],ConversionFactors[Initial unit],"Mt",ConversionFactors[Final unit],"kg")/SUMIFS(ConversionFactors[Conversion value],ConversionFactors[Initial unit],"Year",ConversionFactors[Final unit],"second"))^2/(SUMIFS(CO2PhysicalProperties[Density (kg/m3)],CO2PhysicalProperties[Pressure (MPa)],Minimum_pipeline_pressure)*PI()^2*(FrictionLossesBySizeFlow[[#This Row],[Pipeline diameter (inches)]]*SUMIFS(ConversionFactors[Conversion value],ConversionFactors[Initial unit],"Inch",ConversionFactors[Final unit],"metre"))^5)/10^6) -> 2.719031116e-07 | P11: 3 | Q11: =IF($P11>Total_pipeline_sizes,"",OFFSET(PipelineSizes[[#Headers],[Pipeline diameter (inches)]],$P11,0)) -> 8 | R11: =IF(OR($P11>Total_pipeline_sizes,R$6>Total_flow_rates),"",SUMIFS(FrictionLossesBySizeFlow[Pressure drop (MPa/m)],FrictionLossesBySizeFlow[Pipeline diameter (inches)],$Q11,FrictionLossesBySizeFlow[Flow rate (Mt CO2/y)],R$8)*10^3) -> 0.0008287583132 | S11: =IF(OR($P11>Total_pipeline_sizes,S$6>Total_flow_rates),"",SUMIFS(FrictionLossesBySizeFlow[Pressure drop (MPa/m)],FrictionLossesBySizeFlow[Pipeline diameter (inches)],$Q11,FrictionLossesBySizeFlow[Flow rate (Mt CO2/y)],S$8)*10^3) -> 0.003134998903 | T11: =IF(OR($P11>Total_pipeline_sizes,T$6>Total_flow_rates),"",SUMIFS(FrictionLossesBySizeFlow[Pressure drop (MPa/m)],FrictionLossesBySizeFlow[Pipeline diameter (inches)],$Q11,FrictionLossesBySizeFlow[Flow rate (Mt CO2/y)],T$8)*10^3) -> 0.01873881377 | U11: =IF(OR($P11>Total_pipeline_sizes,U$6>Total_flow_rates),"",SUMIFS(FrictionLossesBySizeFlow[Pressure drop (MPa/m)],FrictionLossesBySizeFlow[Pipeline diameter (inches)],$Q11,FrictionLossesBySizeFlow[Flow rate (Mt CO2/y)],U$8)*10^3) -> 0.07358171998 | V11: =IF(OR($P11>Total_pipeline_sizes,V$6>Total_flow_rates),"",SUMIFS(FrictionLossesBySizeFlow[Pressure drop (MPa/m)],FrictionLossesBySizeFlow[Pipeline diameter (inches)],$Q11,FrictionLossesBySizeFlow[Flow rate (Mt CO2/y)],V$8)*10^3) -> 0.2912379349 | W11: =IF(OR($P11>Total_pipeline_sizes,W$6>Total_flow_rates),"",SUMIFS(FrictionLossesBySizeFlow[Pressure drop (MPa/m)],FrictionLossesBySizeFlow[Pipeline diameter (inches)],$Q11,FrictionLossesBySizeFlow[Flow rate (Mt CO2/y)],W$8)*10^3) -> 1.807344677 | X11: =IF(OR($P11>Total_pipeline_sizes,X$6>Total_flow_rates),"",SUMIFS(FrictionLossesBySizeFlow[Pressure drop (MPa/m)],FrictionLossesBySizeFlow[Pipeline diameter (inches)],$Q11,FrictionLossesBySizeFlow[Flow rate (Mt CO2/y)],X$8)*10^3) -> 7.21038961 | Y11: =IF(OR($P11>Total_pipeline_sizes,Y$6>Total_flow_rates),"",SUMIFS(FrictionLossesBySizeFlow[Pressure drop (MPa/m)],FrictionLossesBySizeFlow[Pipeline diameter (inches)],$Q11,FrictionLossesBySizeFlow[Flow rate (Mt CO2/y)],Y$8)*10^3) ->  | Z11: =IF(OR($P11>Total_pipeline_sizes,Z$6>Total_flow_rates),"",SUMIFS(FrictionLossesBySizeFlow[Pressure drop (MPa/m)],FrictionLossesBySizeFlow[Pipeline diameter (inches)],$Q11,FrictionLossesBySizeFlow[Flow rate (Mt CO2/y)],Z$8)*10^3) ->  | AA11: =IF(OR($P11>Total_pipeline_sizes,AA$6>Total_flow_rates),"",SUMIFS(FrictionLossesBySizeFlow[Pressure drop (MPa/m)],FrictionLossesBySizeFlow[Pipeline diameter (inches)],$Q11,FrictionLossesBySizeFlow[Flow rate (Mt CO2/y)],AA$8)*10^3) ->  | AC11: 4 | AD11: =IF(PipelineInfrastructureCost[[#This Row],[ID]]>Total_pressure_drop*Total_flow_rates*Total_transportation_distances,0,1) -> 1 | AE11: =IF(PipelineInfrastructureCost[[#This Row],[Active]]=0,"",OFFSET(PressureDrop[[#Headers],[Pressure drop (MPa)]],QUOTIENT(PipelineInfrastructureCost[[#This Row],[ID]]-1,Total_flow_rates*Total_transportation_distances)+1,0)) -> 1 | AF11: =IF(PipelineInfrastructureCost[[#This Row],[Active]]=0,"",OFFSET(FlowRates[[#Headers],[Flow rate (Mt CO2/y)]],MOD(QUOTIENT(PipelineInfrastructureCost[[#This Row],[ID]]-1,Total_transportation_distances),Total_flow_rates)+1,0)) -> 1 | AG11: =IF(PipelineInfrastructureCost[[#This Row],[Active]]=0,"",IF(Active_scenario_switch="Yes",Selected_distance,OFFSET(TransportationDistances[[#Headers],[Transportation distance (km)]],MOD(PipelineInfrastructureCost[[#This Row],[ID]]-1,Total_transportation_distances)+1,0))) -> 476 | AH11: =IF(PipelineInfrastructureCost[[#This Row],[Active]]=0,"",MAX(IF(TransmissionPipelineCost[Transmission pipeline length (km)]<=PipelineInfrastructureCost[[#This Row],[Transportation distance (km)]],TransmissionPipelineCost[Transmission pipeline length (km)]))) -> 400 | AI11: =IF(PipelineInfrastructureCost[[#This Row],[Active]]=0,"",PipelineInfrastructureCost[[#This Row],[Pressure drop (MPa)]]/PipelineInfrastructureCost[[#This Row],[Transportation distance (km)]]/10^3) -> 2.100840336e-06 | AJ11: =IF(PipelineInfrastructureCost[[#This Row],[Active]]=0,"",MIN(IF(FrictionLossesBySizeFlow[Flow rate (Mt CO2/y)]=PipelineInfrastructureCost[[#This Row],[Flow rate (Mt CO2/y)]],IF(FrictionLossesBySizeFlow[Pressure drop (MPa/m)]<PipelineInfrastructureCost[[#This Row],[Pressure drop (MPa/m)]],FrictionLossesBySizeFlow[Pipeline diameter (inches)])))) -> 18 | AK11: =IF(PipelineInfrastructureCost[[#This Row],[Active]]=0,"",PipelineInfrastructureCost[[#This Row],[Flow rate (Mt CO2/y)]]/Pipe_utilisation_factor*SUMIFS(ConversionFactors[Conversion value],ConversionFactors[Initial unit],"Mt",ConversionFactors[Final unit],"kg")/SUMIFS(ConversionFactors[Conversion value],ConversionFactors[Initial unit],"Year",ConversionFactors[Final unit],"second")/SUMIFS(CO2PhysicalProperties[Density (kg/m3)],CO2PhysicalProperties[Pressure (MPa)],Shoreline_supply_pressure)*(Maximum_pipeline_pressure-Minimum_pipeline_pressure)/Compressor_efficiency) -> 1.034201843 | AL11: =IF(PipelineInfrastructureCost[[#This Row],[Active]]=0,"",PipelineInfrastructureCost[[#This Row],[Compressor size (MW)]]*CompressorCost[Compressor capex (£/MW)]) -> 3878256.911 | AM11: =IF(PipelineInfrastructureCost[[#This Row],[Active]]=0,"",PipelineInfrastructureCost[[#This Row],[Compressor capex (£)]]*CompressorCost[Opex (share of capex)]) -> 155130.2765 | AN11: =IF(PipelineInfrastructureCost[[#This Row],[Active]]=0,"",PipelineInfrastructureCost[[#This Row],[Compressor size (MW)]]*8760*Pipe_utilisation_factor*10^3*SUMIFS(FuelCost[Cost (£/kWh)],FuelCost[Fuel],CompressionFuel,FuelCost[Scenario],Liquefaction_compression_fuel_cost)) -> 543576.4887 | AO11: =IF(PipelineInfrastructureCost[[#This Row],[Active]]=0,"",SUMIFS(TransmissionPipelineCost[Capex (£/inch/km)],TransmissionPipelineCost[Transmission pipeline length (km)],PipelineInfrastructureCost[[#This Row],[Matching transportation distance (km)]])*PipelineInfrastructureCost[[#This Row],[Pipeline diameter (inches)]]*PipelineInfrastructureCost[[#This Row],[Transportation distance (km)]]) -> 479504206.7 | AP11: =IF(PipelineInfrastructureCost[[#This Row],[Active]]=0,"",SUMIFS(TransmissionPipelineCost[Opex (share of capex)],TransmissionPipelineCost[Transmission pipeline length (km)],PipelineInfrastructureCost[[#This Row],[Matching transportation distance (km)]])*PipelineInfrastructureCost[[#This Row],[Transmission pipeline capex (£)]]) -> 4795042.067 | AQ11: =IF(PipelineInfrastructureCost[[#This Row],[Active]]=0,"",PipelineInfrastructureCost[[#This Row],[Compressor capex (£)]]+PipelineInfrastructureCost[[#This Row],[Transmission pipeline capex (£)]]) -> 483382463.6 | AR11: =IF(PipelineInfrastructureCost[[#This Row],[Active]]=0,"",-PV(Discount_rate,PipelineLifetime,PipelineInfrastructureCost[[#This Row],[Compressor opex (£/y)]]+PipelineInfrastructureCost[[#This Row],[Compressor energy cost (£/y)]]+PipelineInfrastructureCost[[#This Row],[Transmission pipeline opex (£/y)]])) -> 109874976.6 | AS11: =IF(PipelineInfrastructureCost[[#This Row],[Active]]=0,"",SUM(PipelineInfrastructureCost[[#This Row],[Total capex (£/y)]:[Total lifetime discounted opex (£/y)]])/-PV(Discount_rate,PipelineLifetime,PipelineInfrastructureCost[[#This Row],[Flow rate (Mt CO2/y)]])/10^6) -> 29.66287201 | AU11: 3 | AV11: =IF($AU11>Total_transportation_distances,"",IF(Active_scenario_switch="Yes",Selected_distance,OFFSET(TransportationDistances[[#Headers],[Transportation distance (km)]],$AU11,0))) ->  | AW11: =IF(OR($AU11>Total_transportation_distances,AW$6>Total_flow_rates),"",SUMIFS(PipelineInfrastructureCost[Pipeline diameter (inches)],PipelineInfrastructureCost[Pressure drop (MPa)],$AW$4,PipelineInfrastructureCost[Transportation distance (km)],$AV11,PipelineInfrastructureCost[Flow rate (Mt CO2/y)],AW$8)) ->  | AX11: =IF(OR($AU11>Total_transportation_distances,AX$6>Total_flow_rates),"",SUMIFS(PipelineInfrastructureCost[Pipeline diameter (inches)],PipelineInfrastructureCost[Pressure drop (MPa)],$AW$4,PipelineInfrastructureCost[Transportation distance (km)],$AV11,PipelineInfrastructureCost[Flow rate (Mt CO2/y)],AX$8)) ->  | AY11: =IF(OR($AU11>Total_transportation_distances,AY$6>Total_flow_rates),"",SUMIFS(PipelineInfrastructureCost[Pipeline diameter (inches)],PipelineInfrastructureCost[Pressure drop (MPa)],$AW$4,PipelineInfrastructureCost[Transportation distance (km)],$AV11,PipelineInfrastructureCost[Flow rate (Mt CO2/y)],AY$8)) ->  | AZ11: =IF(OR($AU11>Total_transportation_distances,AZ$6>Total_flow_rates),"",SUMIFS(PipelineInfrastructureCost[Pipeline diameter (inches)],PipelineInfrastructureCost[Pressure drop (MPa)],$AW$4,PipelineInfrastructureCost[Transportation distance (km)],$AV11,PipelineInfrastructureCost[Flow rate (Mt CO2/y)],AZ$8)) ->  | BA11: =IF(OR($AU11>Total_transportation_distances,BA$6>Total_flow_rates),"",SUMIFS(PipelineInfrastructureCost[Pipeline diameter (inches)],PipelineInfrastructureCost[Pressure drop (MPa)],$AW$4,PipelineInfrastructureCost[Transportation distance (km)],$AV11,PipelineInfrastructureCost[Flow rate (Mt CO2/y)],BA$8)) ->  | BB11: =IF(OR($AU11>Total_transportation_distances,BB$6>Total_flow_rates),"",SUMIFS(PipelineInfrastructureCost[Pipeline diameter (inches)],PipelineInfrastructureCost[Pressure drop (MPa)],$AW$4,PipelineInfrastructureCost[Transportation distance (km)],$AV11,PipelineInfrastructureCost[Flow rate (Mt CO2/y)],BB$8)) ->  | BC11: =IF(OR($AU11>Total_transportation_distances,BC$6>Total_flow_rates),"",SUMIFS(PipelineInfrastructureCost[Pipeline diameter (inches)],PipelineInfrastructureCost[Pressure drop (MPa)],$AW$4,PipelineInfrastructureCost[Transportation distance (km)],$AV11,PipelineInfrastructureCost[Flow rate (Mt CO2/y)],BC$8)) ->  | BD11: =IF(OR($AU11>Total_transportation_distances,BD$6>Total_flow_rates),"",SUMIFS(PipelineInfrastructureCost[Pipeline diameter (inches)],PipelineInfrastructureCost[Pressure drop (MPa)],$AW$4,PipelineInfrastructureCost[Transportation distance (km)],$AV11,PipelineInfrastructureCost[Flow rate (Mt CO2/y)],BD$8)) ->  | BE11: =IF(OR($AU11>Total_transportation_distances,BE$6>Total_flow_rates),"",SUMIFS(PipelineInfrastructureCost[Pipeline diameter (inches)],PipelineInfrastructureCost[Pressure drop (MPa)],$AW$4,PipelineInfrastructureCost[Transportation distance (km)],$AV11,PipelineInfrastructureCost[Flow rate (Mt CO2/y)],BE$8)) ->  | BF11: =IF(OR($AU11>Total_transportation_distances,BF$6>Total_flow_rates),"",SUMIFS(PipelineInfrastructureCost[Pipeline diameter (inches)],PipelineInfrastructureCost[Pressure drop (MPa)],$AW$4,PipelineInfrastructureCost[Transportation distance (km)],$AV11,PipelineInfrastructureCost[Flow rate (Mt CO2/y)],BF$8)) ->  | BH11: =IF($AU11>Total_transportation_distances,"",IF(Active_scenario_switch="Yes",Selected_distance,OFFSET(TransportationDistances[[#Headers],[Transportation distance (km)]],$AU11,0))) ->  | BI11: =IF(OR($AU11>Total_transportation_distances,AW$6>Total_flow_rates),"",SUMIFS(PipelineInfrastructureCost[Levelised lifetime cost of pipeline (£/t CO2)],PipelineInfrastructureCost[Pressure drop (MPa)],$AW$4,PipelineInfrastructureCost[Transportation distance (km)],$AV11,PipelineInfrastructureCost[Flow rate (Mt CO2/y)],AW$8)) ->  | BJ11: =IF(OR($AU11>Total_transportation_distances,AX$6>Total_flow_rates),"",SUMIFS(PipelineInfrastructureCost[Levelised lifetime cost of pipeline (£/t CO2)],PipelineInfrastructureCost[Pressure drop (MPa)],$AW$4,PipelineInfrastructureCost[Transportation distance (km)],$AV11,PipelineInfrastructureCost[Flow rate (Mt CO2/y)],AX$8)) ->  | BK11: =IF(OR($AU11>Total_transportation_distances,AY$6>Total_flow_rates),"",SUMIFS(PipelineInfrastructureCost[Levelised lifetime cost of pipeline (£/t CO2)],PipelineInfrastructureCost[Pressure drop (MPa)],$AW$4,PipelineInfrastructureCost[Transportation distance (km)],$AV11,PipelineInfrastructureCost[Flow rate (Mt CO2/y)],AY$8)) ->  | BL11: =IF(OR($AU11>Total_transportation_distances,AZ$6>Total_flow_rates),"",SUMIFS(PipelineInfrastructureCost[Levelised lifetime cost of pipeline (£/t CO2)],PipelineInfrastructureCost[Pressure drop (MPa)],$AW$4,PipelineInfrastructureCost[Transportation distance (km)],$AV11,PipelineInfrastructureCost[Flow rate (Mt CO2/y)],AZ$8)) ->  | BM11: =IF(OR($AU11>Total_transportation_distances,BA$6>Total_flow_rates),"",SUMIFS(PipelineInfrastructureCost[Levelised lifetime cost of pipeline (£/t CO2)],PipelineInfrastructureCost[Pressure drop (MPa)],$AW$4,PipelineInfrastructureCost[Transportation distance (km)],$AV11,PipelineInfrastructureCost[Flow rate (Mt CO2/y)],BA$8)) ->  | BN11: =IF(OR($AU11>Total_transportation_distances,BB$6>Total_flow_rates),"",SUMIFS(PipelineInfrastructureCost[Levelised lifetime cost of pipeline (£/t CO2)],PipelineInfrastructureCost[Pressure drop (MPa)],$AW$4,PipelineInfrastructureCost[Transportation distance (km)],$AV11,PipelineInfrastructureCost[Flow rate (Mt CO2/y)],BB$8)) ->  | BO11: =IF(OR($AU11>Total_transportation_distances,BC$6>Total_flow_rates),"",SUMIFS(PipelineInfrastructureCost[Levelised lifetime cost of pipeline (£/t CO2)],PipelineInfrastructureCost[Pressure drop (MPa)],$AW$4,PipelineInfrastructureCost[Transportation distance (km)],$AV11,PipelineInfrastructureCost[Flow rate (Mt CO2/y)],BC$8)) ->  | BP11: =IF(OR($AU11>Total_transportation_distances,BD$6>Total_flow_rates),"",SUMIFS(PipelineInfrastructureCost[Levelised lifetime cost of pipeline (£/t CO2)],PipelineInfrastructureCost[Pressure drop (MPa)],$AW$4,PipelineInfrastructureCost[Transportation distance (km)],$AV11,PipelineInfrastructureCost[Flow rate (Mt CO2/y)],BD$8)) ->  | BQ11: =IF(OR($AU11>Total_transportation_distances,BE$6>Total_flow_rates),"",SUMIFS(PipelineInfrastructureCost[Levelised lifetime cost of pipeline (£/t CO2)],PipelineInfrastructureCost[Pressure drop (MPa)],$AW$4,PipelineInfrastructureCost[Transportation distance (km)],$AV11,PipelineInfrastructureCost[Flow rate (Mt CO2/y)],BE$8)) ->  | BR11: =IF(OR($AU11>Total_transportation_distances,BF$6>Total_flow_rates),"",SUMIFS(PipelineInfrastructureCost[Levelised lifetime cost of pipeline (£/t CO2)],PipelineInfrastructureCost[Pressure drop (MPa)],$AW$4,PipelineInfrastructureCost[Transportation distance (km)],$AV11,PipelineInfrastructureCost[Flow rate (Mt CO2/y)],BF$8)) -> 
I12: 5 | J12: =IF(FrictionLossesBySizeFlow[[#This Row],[ID]]>Total_flow_rates*Total_pipeline_sizes,"",OFFSET(FlowRates[[#Headers],[Flow rate (Mt CO2/y)]],QUOTIENT(FrictionLossesBySizeFlow[[#This Row],[ID]]-1,Total_pipeline_sizes)+1,0)) -> 0.1 | K12: =IF(FrictionLossesBySizeFlow[[#This Row],[ID]]>Total_flow_rates*Total_pipeline_sizes,"",OFFSET(PipelineSizes[[#Headers],[Pipeline diameter (inches)]],MOD(FrictionLossesBySizeFlow[[#This Row],[ID]]-1,Total_pipeline_sizes)+1,0)) -> 12 | L12: =IF(FrictionLossesBySizeFlow[[#This Row],[ID]]>Total_flow_rates*Total_pipeline_sizes,"",4*FrictionLossesBySizeFlow[[#This Row],[Flow rate (Mt CO2/y)]]/Pipe_utilisation_factor*SUMIFS(ConversionFactors[Conversion value],ConversionFactors[Initial unit],"Mt",ConversionFactors[Final unit],"kg")/SUMIFS(ConversionFactors[Conversion value],ConversionFactors[Initial unit],"Year",ConversionFactors[Final unit],"second")/(PI()*SUMIFS(CO2PhysicalProperties[Viscosity (Pas)],CO2PhysicalProperties[Pressure (MPa)],Minimum_pipeline_pressure)*FrictionLossesBySizeFlow[[#This Row],[Pipeline diameter (inches)]]*SUMIFS(ConversionFactors[Conversion value],ConversionFactors[Initial unit],"Inch",ConversionFactors[Final unit],"metre"))) -> 239066.1207 | M12: =IF(FrictionLossesBySizeFlow[[#This Row],[ID]]>Total_flow_rates*Total_pipeline_sizes,"",1.325/(LN(Pipeline_roughness/(3.7*FrictionLossesBySizeFlow[[#This Row],[Pipeline diameter (inches)]]*SUMIFS(ConversionFactors[Conversion value],ConversionFactors[Initial unit],"Inch",ConversionFactors[Final unit],"metre"))+(5.74/FrictionLossesBySizeFlow[[#This Row],[Reynold''s Number]]^0.9)))^2) -> 0.01635405833 | N12: =IF(FrictionLossesBySizeFlow[[#This Row],[ID]]>Total_flow_rates*Total_pipeline_sizes,"",8*FrictionLossesBySizeFlow[[#This Row],[Friction factor]]*(FrictionLossesBySizeFlow[[#This Row],[Flow rate (Mt CO2/y)]]/Pipe_utilisation_factor*SUMIFS(ConversionFactors[Conversion value],ConversionFactors[Initial unit],"Mt",ConversionFactors[Final unit],"kg")/SUMIFS(ConversionFactors[Conversion value],ConversionFactors[Initial unit],"Year",ConversionFactors[Final unit],"second"))^2/(SUMIFS(CO2PhysicalProperties[Density (kg/m3)],CO2PhysicalProperties[Pressure (MPa)],Minimum_pipeline_pressure)*PI()^2*(FrictionLossesBySizeFlow[[#This Row],[Pipeline diameter (inches)]]*SUMIFS(ConversionFactors[Conversion value],ConversionFactors[Initial unit],"Inch",ConversionFactors[Final unit],"metre"))^5)/10^6) -> 1.101662108e-07 | P12: 4 | Q12: =IF($P12>Total_pipeline_sizes,"",OFFSET(PipelineSizes[[#Headers],[Pipeline diameter (inches)]],$P12,0)) -> 10 | R12: =IF(OR($P12>Total_pipeline_sizes,R$6>Total_flow_rates),"",SUMIFS(FrictionLossesBySizeFlow[Pressure drop (MPa/m)],FrictionLossesBySizeFlow[Pipeline diameter (inches)],$Q12,FrictionLossesBySizeFlow[Flow rate (Mt CO2/y)],R$8)*10^3) -> 0.0002719031116 | S12: =IF(OR($P12>Total_pipeline_sizes,S$6>Total_flow_rates),"",SUMIFS(FrictionLossesBySizeFlow[Pressure drop (MPa/m)],FrictionLossesBySizeFlow[Pipeline diameter (inches)],$Q12,FrictionLossesBySizeFlow[Flow rate (Mt CO2/y)],S$8)*10^3) -> 0.001014277413 | T12: =IF(OR($P12>Total_pipeline_sizes,T$6>Total_flow_rates),"",SUMIFS(FrictionLossesBySizeFlow[Pressure drop (MPa/m)],FrictionLossesBySizeFlow[Pipeline diameter (inches)],$Q12,FrictionLossesBySizeFlow[Flow rate (Mt CO2/y)],T$8)*10^3) -> 0.005974219523 | U12: =IF(OR($P12>Total_pipeline_sizes,U$6>Total_flow_rates),"",SUMIFS(FrictionLossesBySizeFlow[Pressure drop (MPa/m)],FrictionLossesBySizeFlow[Pipeline diameter (inches)],$Q12,FrictionLossesBySizeFlow[Flow rate (Mt CO2/y)],U$8)*10^3) -> 0.02328709125 | V12: =IF(OR($P12>Total_pipeline_sizes,V$6>Total_flow_rates),"",SUMIFS(FrictionLossesBySizeFlow[Pressure drop (MPa/m)],FrictionLossesBySizeFlow[Pipeline diameter (inches)],$Q12,FrictionLossesBySizeFlow[Flow rate (Mt CO2/y)],V$8)*10^3) -> 0.09174717413 | W12: =IF(OR($P12>Total_pipeline_sizes,W$6>Total_flow_rates),"",SUMIFS(FrictionLossesBySizeFlow[Pressure drop (MPa/m)],FrictionLossesBySizeFlow[Pipeline diameter (inches)],$Q12,FrictionLossesBySizeFlow[Flow rate (Mt CO2/y)],W$8)*10^3) -> 0.5674869621 | X12: =IF(OR($P12>Total_pipeline_sizes,X$6>Total_flow_rates),"",SUMIFS(FrictionLossesBySizeFlow[Pressure drop (MPa/m)],FrictionLossesBySizeFlow[Pipeline diameter (inches)],$Q12,FrictionLossesBySizeFlow[Flow rate (Mt CO2/y)],X$8)*10^3) -> 2.261135934 | Y12: =IF(OR($P12>Total_pipeline_sizes,Y$6>Total_flow_rates),"",SUMIFS(FrictionLossesBySizeFlow[Pressure drop (MPa/m)],FrictionLossesBySizeFlow[Pipeline diameter (inches)],$Q12,FrictionLossesBySizeFlow[Flow rate (Mt CO2/y)],Y$8)*10^3) ->  | Z12: =IF(OR($P12>Total_pipeline_sizes,Z$6>Total_flow_rates),"",SUMIFS(FrictionLossesBySizeFlow[Pressure drop (MPa/m)],FrictionLossesBySizeFlow[Pipeline diameter (inches)],$Q12,FrictionLossesBySizeFlow[Flow rate (Mt CO2/y)],Z$8)*10^3) ->  | AA12: =IF(OR($P12>Total_pipeline_sizes,AA$6>Total_flow_rates),"",SUMIFS(FrictionLossesBySizeFlow[Pressure drop (MPa/m)],FrictionLossesBySizeFlow[Pipeline diameter (inches)],$Q12,FrictionLossesBySizeFlow[Flow rate (Mt CO2/y)],AA$8)*10^3) ->  | AC12: 5 | AD12: =IF(PipelineInfrastructureCost[[#This Row],[ID]]>Total_pressure_drop*Total_flow_rates*Total_transportation_distances,0,1) -> 1 | AE12: =IF(PipelineInfrastructureCost[[#This Row],[Active]]=0,"",OFFSET(PressureDrop[[#Headers],[Pressure drop (MPa)]],QUOTIENT(PipelineInfrastructureCost[[#This Row],[ID]]-1,Total_flow_rates*Total_transportation_distances)+1,0)) -> 1 | AF12: =IF(PipelineInfrastructureCost[[#This Row],[Active]]=0,"",OFFSET(FlowRates[[#Headers],[Flow rate (Mt CO2/y)]],MOD(QUOTIENT(PipelineInfrastructureCost[[#This Row],[ID]]-1,Total_transportation_distances),Total_flow_rates)+1,0)) -> 2 | AG12: =IF(PipelineInfrastructureCost[[#This Row],[Active]]=0,"",IF(Active_scenario_switch="Yes",Selected_distance,OFFSET(TransportationDistances[[#Headers],[Transportation distance (km)]],MOD(PipelineInfrastructureCost[[#This Row],[ID]]-1,Total_transportation_distances)+1,0))) -> 476 | AH12: =IF(PipelineInfrastructureCost[[#This Row],[Active]]=0,"",MAX(IF(TransmissionPipelineCost[Transmission pipeline length (km)]<=PipelineInfrastructureCost[[#This Row],[Transportation distance (km)]],TransmissionPipelineCost[Transmission pipeline length (km)]))) -> 400 | AI12: =IF(PipelineInfrastructureCost[[#This Row],[Active]]=0,"",PipelineInfrastructureCost[[#This Row],[Pressure drop (MPa)]]/PipelineInfrastructureCost[[#This Row],[Transportation distance (km)]]/10^3) -> 2.100840336e-06 | AJ12: =IF(PipelineInfrastructureCost[[#This Row],[Active]]=0,"",MIN(IF(FrictionLossesBySizeFlow[Flow rate (Mt CO2/y)]=PipelineInfrastructureCost[[#This Row],[Flow rate (Mt CO2/y)]],IF(FrictionLossesBySizeFlow[Pressure drop (MPa/m)]<PipelineInfrastructureCost[[#This Row],[Pressure drop (MPa/m)]],FrictionLossesBySizeFlow[Pipeline diameter (inches)])))) -> 22 | AK12: =IF(PipelineInfrastructureCost[[#This Row],[Active]]=0,"",PipelineInfrastructureCost[[#This Row],[Flow rate (Mt CO2/y)]]/Pipe_utilisation_factor*SUMIFS(ConversionFactors[Conversion value],ConversionFactors[Initial unit],"Mt",ConversionFactors[Final unit],"kg")/SUMIFS(ConversionFactors[Conversion value],ConversionFactors[Initial unit],"Year",ConversionFactors[Final unit],"second")/SUMIFS(CO2PhysicalProperties[Density (kg/m3)],CO2PhysicalProperties[Pressure (MPa)],Shoreline_supply_pressure)*(Maximum_pipeline_pressure-Minimum_pipeline_pressure)/Compressor_efficiency) -> 2.068403686 | AL12: =IF(PipelineInfrastructureCost[[#This Row],[Active]]=0,"",PipelineInfrastructureCost[[#This Row],[Compressor size (MW)]]*CompressorCost[Compressor capex (£/MW)]) -> 7756513.823 | AM12: =IF(PipelineInfrastructureCost[[#This Row],[Active]]=0,"",PipelineInfrastructureCost[[#This Row],[Compressor capex (£)]]*CompressorCost[Opex (share of capex)]) -> 310260.5529 | AN12: =IF(PipelineInfrastructureCost[[#This Row],[Active]]=0,"",PipelineInfrastructureCost[[#This Row],[Compressor size (MW)]]*8760*Pipe_utilisation_factor*10^3*SUMIFS(FuelCost[Cost (£/kWh)],FuelCost[Fuel],CompressionFuel,FuelCost[Scenario],Liquefaction_compression_fuel_cost)) -> 1087152.977 | AO12: =IF(PipelineInfrastructureCost[[#This Row],[Active]]=0,"",SUMIFS(TransmissionPipelineCost[Capex (£/inch/km)],TransmissionPipelineCost[Transmission pipeline length (km)],PipelineInfrastructureCost[[#This Row],[Matching transportation distance (km)]])*PipelineInfrastructureCost[[#This Row],[Pipeline diameter (inches)]]*PipelineInfrastructureCost[[#This Row],[Transportation distance (km)]]) -> 586060697.1 | AP12: =IF(PipelineInfrastructureCost[[#This Row],[Active]]=0,"",SUMIFS(TransmissionPipelineCost[Opex (share of capex)],TransmissionPipelineCost[Transmission pipeline length (km)],PipelineInfrastructureCost[[#This Row],[Matching transportation distance (km)]])*PipelineInfrastructureCost[[#This Row],[Transmission pipeline capex (£)]]) -> 5860606.971 | AQ12: =IF(PipelineInfrastructureCost[[#This Row],[Active]]=0,"",PipelineInfrastructureCost[[#This Row],[Compressor capex (£)]]+PipelineInfrastructureCost[[#This Row],[Transmission pipeline capex (£)]]) -> 593817210.9 | AR12: =IF(PipelineInfrastructureCost[[#This Row],[Active]]=0,"",-PV(Discount_rate,PipelineLifetime,PipelineInfrastructureCost[[#This Row],[Compressor opex (£/y)]]+PipelineInfrastructureCost[[#This Row],[Compressor energy cost (£/y)]]+PipelineInfrastructureCost[[#This Row],[Transmission pipeline opex (£/y)]])) -> 145160410 | AS12: =IF(PipelineInfrastructureCost[[#This Row],[Active]]=0,"",SUM(PipelineInfrastructureCost[[#This Row],[Total capex (£/y)]:[Total lifetime discounted opex (£/y)]])/-PV(Discount_rate,PipelineLifetime,PipelineInfrastructureCost[[#This Row],[Flow rate (Mt CO2/y)]])/10^6) -> 18.47444052 | AU12: 4 | AV12: =IF($AU12>Total_transportation_distances,"",IF(Active_scenario_switch="Yes",Selected_distance,OFFSET(TransportationDistances[[#Headers],[Transportation distance (km)]],$AU12,0))) ->  | AW12: =IF(OR($AU12>Total_transportation_distances,AW$6>Total_flow_rates),"",SUMIFS(PipelineInfrastructureCost[Pipeline diameter (inches)],PipelineInfrastructureCost[Pressure drop (MPa)],$AW$4,PipelineInfrastructureCost[Transportation distance (km)],$AV12,PipelineInfrastructureCost[Flow rate (Mt CO2/y)],AW$8)) ->  | AX12: =IF(OR($AU12>Total_transportation_distances,AX$6>Total_flow_rates),"",SUMIFS(PipelineInfrastructureCost[Pipeline diameter (inches)],PipelineInfrastructureCost[Pressure drop (MPa)],$AW$4,PipelineInfrastructureCost[Transportation distance (km)],$AV12,PipelineInfrastructureCost[Flow rate (Mt CO2/y)],AX$8)) ->  | AY12: =IF(OR($AU12>Total_transportation_distances,AY$6>Total_flow_rates),"",SUMIFS(PipelineInfrastructureCost[Pipeline diameter (inches)],PipelineInfrastructureCost[Pressure drop (MPa)],$AW$4,PipelineInfrastructureCost[Transportation distance (km)],$AV12,PipelineInfrastructureCost[Flow rate (Mt CO2/y)],AY$8)) ->  | AZ12: =IF(OR($AU12>Total_transportation_distances,AZ$6>Total_flow_rates),"",SUMIFS(PipelineInfrastructureCost[Pipeline diameter (inches)],PipelineInfrastructureCost[Pressure drop (MPa)],$AW$4,PipelineInfrastructureCost[Transportation distance (km)],$AV12,PipelineInfrastructureCost[Flow rate (Mt CO2/y)],AZ$8)) ->  | BA12: =IF(OR($AU12>Total_transportation_distances,BA$6>Total_flow_rates),"",SUMIFS(PipelineInfrastructureCost[Pipeline diameter (inches)],PipelineInfrastructureCost[Pressure drop (MPa)],$AW$4,PipelineInfrastructureCost[Transportation distance (km)],$AV12,PipelineInfrastructureCost[Flow rate (Mt CO2/y)],BA$8)) ->  | BB12: =IF(OR($AU12>Total_transportation_distances,BB$6>Total_flow_rates),"",SUMIFS(PipelineInfrastructureCost[Pipeline diameter (inches)],PipelineInfrastructureCost[Pressure drop (MPa)],$AW$4,PipelineInfrastructureCost[Transportation distance (km)],$AV12,PipelineInfrastructureCost[Flow rate (Mt CO2/y)],BB$8)) ->  | BC12: =IF(OR($AU12>Total_transportation_distances,BC$6>Total_flow_rates),"",SUMIFS(PipelineInfrastructureCost[Pipeline diameter (inches)],PipelineInfrastructureCost[Pressure drop (MPa)],$AW$4,PipelineInfrastructureCost[Transportation distance (km)],$AV12,PipelineInfrastructureCost[Flow rate (Mt CO2/y)],BC$8)) ->  | BD12: =IF(OR($AU12>Total_transportation_distances,BD$6>Total_flow_rates),"",SUMIFS(PipelineInfrastructureCost[Pipeline diameter (inches)],PipelineInfrastructureCost[Pressure drop (MPa)],$AW$4,PipelineInfrastructureCost[Transportation distance (km)],$AV12,PipelineInfrastructureCost[Flow rate (Mt CO2/y)],BD$8)) ->  | BE12: =IF(OR($AU12>Total_transportation_distances,BE$6>Total_flow_rates),"",SUMIFS(PipelineInfrastructureCost[Pipeline diameter (inches)],PipelineInfrastructureCost[Pressure drop (MPa)],$AW$4,PipelineInfrastructureCost[Transportation distance (km)],$AV12,PipelineInfrastructureCost[Flow rate (Mt CO2/y)],BE$8)) ->  | BF12: =IF(OR($AU12>Total_transportation_distances,BF$6>Total_flow_rates),"",SUMIFS(PipelineInfrastructureCost[Pipeline diameter (inches)],PipelineInfrastructureCost[Pressure drop (MPa)],$AW$4,PipelineInfrastructureCost[Transportation distance (km)],$AV12,PipelineInfrastructureCost[Flow rate (Mt CO2/y)],BF$8)) ->  | BH12: =IF($AU12>Total_transportation_distances,"",IF(Active_scenario_switch="Yes",Selected_distance,OFFSET(TransportationDistances[[#Headers],[Transportation distance (km)]],$AU12,0))) ->  | BI12: =IF(OR($AU12>Total_transportation_distances,AW$6>Total_flow_rates),"",SUMIFS(PipelineInfrastructureCost[Levelised lifetime cost of pipeline (£/t CO2)],PipelineInfrastructureCost[Pressure drop (MPa)],$AW$4,PipelineInfrastructureCost[Transportation distance (km)],$AV12,PipelineInfrastructureCost[Flow rate (Mt CO2/y)],AW$8)) ->  | BJ12: =IF(OR($AU12>Total_transportation_distances,AX$6>Total_flow_rates),"",SUMIFS(PipelineInfrastructureCost[Levelised lifetime cost of pipeline (£/t CO2)],PipelineInfrastructureCost[Pressure drop (MPa)],$AW$4,PipelineInfrastructureCost[Transportation distance (km)],$AV12,PipelineInfrastructureCost[Flow rate (Mt CO2/y)],AX$8)) ->  | BK12: =IF(OR($AU12>Total_transportation_distances,AY$6>Total_flow_rates),"",SUMIFS(PipelineInfrastructureCost[Levelised lifetime cost of pipeline (£/t CO2)],PipelineInfrastructureCost[Pressure drop (MPa)],$AW$4,PipelineInfrastructureCost[Transportation distance (km)],$AV12,PipelineInfrastructureCost[Flow rate (Mt CO2/y)],AY$8)) ->  | BL12: =IF(OR($AU12>Total_transportation_distances,AZ$6>Total_flow_rates),"",SUMIFS(PipelineInfrastructureCost[Levelised lifetime cost of pipeline (£/t CO2)],PipelineInfrastructureCost[Pressure drop (MPa)],$AW$4,PipelineInfrastructureCost[Transportation distance (km)],$AV12,PipelineInfrastructureCost[Flow rate (Mt CO2/y)],AZ$8)) ->  | BM12: =IF(OR($AU12>Total_transportation_distances,BA$6>Total_flow_rates),"",SUMIFS(PipelineInfrastructureCost[Levelised lifetime cost of pipeline (£/t CO2)],PipelineInfrastructureCost[Pressure drop (MPa)],$AW$4,PipelineInfrastructureCost[Transportation distance (km)],$AV12,PipelineInfrastructureCost[Flow rate (Mt CO2/y)],BA$8)) ->  | BN12: =IF(OR($AU12>Total_transportation_distances,BB$6>Total_flow_rates),"",SUMIFS(PipelineInfrastructureCost[Levelised lifetime cost of pipeline (£/t CO2)],PipelineInfrastructureCost[Pressure drop (MPa)],$AW$4,PipelineInfrastructureCost[Transportation distance (km)],$AV12,PipelineInfrastructureCost[Flow rate (Mt CO2/y)],BB$8)) ->  | BO12: =IF(OR($AU12>Total_transportation_distances,BC$6>Total_flow_rates),"",SUMIFS(PipelineInfrastructureCost[Levelised lifetime cost of pipeline (£/t CO2)],PipelineInfrastructureCost[Pressure drop (MPa)],$AW$4,PipelineInfrastructureCost[Transportation distance (km)],$AV12,PipelineInfrastructureCost[Flow rate (Mt CO2/y)],BC$8)) ->  | BP12: =IF(OR($AU12>Total_transportation_distances,BD$6>Total_flow_rates),"",SUMIFS(PipelineInfrastructureCost[Levelised lifetime cost of pipeline (£/t CO2)],PipelineInfrastructureCost[Pressure drop (MPa)],$AW$4,PipelineInfrastructureCost[Transportation distance (km)],$AV12,PipelineInfrastructureCost[Flow rate (Mt CO2/y)],BD$8)) ->  | BQ12: =IF(OR($AU12>Total_transportation_distances,BE$6>Total_flow_rates),"",SUMIFS(PipelineInfrastructureCost[Levelised lifetime cost of pipeline (£/t CO2)],PipelineInfrastructureCost[Pressure drop (MPa)],$AW$4,PipelineInfrastructureCost[Transportation distance (km)],$AV12,PipelineInfrastructureCost[Flow rate (Mt CO2/y)],BE$8)) ->  | BR12: =IF(OR($AU12>Total_transportation_distances,BF$6>Total_flow_rates),"",SUMIFS(PipelineInfrastructureCost[Levelised lifetime cost of pipeline (£/t CO2)],PipelineInfrastructureCost[Pressure drop (MPa)],$AW$4,PipelineInfrastructureCost[Transportation distance (km)],$AV12,PipelineInfrastructureCost[Flow rate (Mt CO2/y)],BF$8)) -> 
I13: 6 | J13: =IF(FrictionLossesBySizeFlow[[#This Row],[ID]]>Total_flow_rates*Total_pipeline_sizes,"",OFFSET(FlowRates[[#Headers],[Flow rate (Mt CO2/y)]],QUOTIENT(FrictionLossesBySizeFlow[[#This Row],[ID]]-1,Total_pipeline_sizes)+1,0)) -> 0.1 | K13: =IF(FrictionLossesBySizeFlow[[#This Row],[ID]]>Total_flow_rates*Total_pipeline_sizes,"",OFFSET(PipelineSizes[[#Headers],[Pipeline diameter (inches)]],MOD(FrictionLossesBySizeFlow[[#This Row],[ID]]-1,Total_pipeline_sizes)+1,0)) -> 14 | L13: =IF(FrictionLossesBySizeFlow[[#This Row],[ID]]>Total_flow_rates*Total_pipeline_sizes,"",4*FrictionLossesBySizeFlow[[#This Row],[Flow rate (Mt CO2/y)]]/Pipe_utilisation_factor*SUMIFS(ConversionFactors[Conversion value],ConversionFactors[Initial unit],"Mt",ConversionFactors[Final unit],"kg")/SUMIFS(ConversionFactors[Conversion value],ConversionFactors[Initial unit],"Year",ConversionFactors[Final unit],"second")/(PI()*SUMIFS(CO2PhysicalProperties[Viscosity (Pas)],CO2PhysicalProperties[Pressure (MPa)],Minimum_pipeline_pressure)*FrictionLossesBySizeFlow[[#This Row],[Pipeline diameter (inches)]]*SUMIFS(ConversionFactors[Conversion value],ConversionFactors[Initial unit],"Inch",ConversionFactors[Final unit],"metre"))) -> 204913.8177 | M13: =IF(FrictionLossesBySizeFlow[[#This Row],[ID]]>Total_flow_rates*Total_pipeline_sizes,"",1.325/(LN(Pipeline_roughness/(3.7*FrictionLossesBySizeFlow[[#This Row],[Pipeline diameter (inches)]]*SUMIFS(ConversionFactors[Conversion value],ConversionFactors[Initial unit],"Inch",ConversionFactors[Final unit],"metre"))+(5.74/FrictionLossesBySizeFlow[[#This Row],[Reynold''s Number]]^0.9)))^2) -> 0.01654387482 | N13: =IF(FrictionLossesBySizeFlow[[#This Row],[ID]]>Total_flow_rates*Total_pipeline_sizes,"",8*FrictionLossesBySizeFlow[[#This Row],[Friction factor]]*(FrictionLossesBySizeFlow[[#This Row],[Flow rate (Mt CO2/y)]]/Pipe_utilisation_factor*SUMIFS(ConversionFactors[Conversion value],ConversionFactors[Initial unit],"Mt",ConversionFactors[Final unit],"kg")/SUMIFS(ConversionFactors[Conversion value],ConversionFactors[Initial unit],"Year",ConversionFactors[Final unit],"second"))^2/(SUMIFS(CO2PhysicalProperties[Density (kg/m3)],CO2PhysicalProperties[Pressure (MPa)],Minimum_pipeline_pressure)*PI()^2*(FrictionLossesBySizeFlow[[#This Row],[Pipeline diameter (inches)]]*SUMIFS(ConversionFactors[Conversion value],ConversionFactors[Initial unit],"Inch",ConversionFactors[Final unit],"metre"))^5)/10^6) -> 5.156157286e-08 | P13: 5 | Q13: =IF($P13>Total_pipeline_sizes,"",OFFSET(PipelineSizes[[#Headers],[Pipeline diameter (inches)]],$P13,0)) -> 12 | R13: =IF(OR($P13>Total_pipeline_sizes,R$6>Total_flow_rates),"",SUMIFS(FrictionLossesBySizeFlow[Pressure drop (MPa/m)],FrictionLossesBySizeFlow[Pipeline diameter (inches)],$Q13,FrictionLossesBySizeFlow[Flow rate (Mt CO2/y)],R$8)*10^3) -> 0.0001101662108 | S13: =IF(OR($P13>Total_pipeline_sizes,S$6>Total_flow_rates),"",SUMIFS(FrictionLossesBySizeFlow[Pressure drop (MPa/m)],FrictionLossesBySizeFlow[Pipeline diameter (inches)],$Q13,FrictionLossesBySizeFlow[Flow rate (Mt CO2/y)],S$8)*10^3) -> 0.0004062247434 | T13: =IF(OR($P13>Total_pipeline_sizes,T$6>Total_flow_rates),"",SUMIFS(FrictionLossesBySizeFlow[Pressure drop (MPa/m)],FrictionLossesBySizeFlow[Pipeline diameter (inches)],$Q13,FrictionLossesBySizeFlow[Flow rate (Mt CO2/y)],T$8)*10^3) -> 0.00236040353 | U13: =IF(OR($P13>Total_pipeline_sizes,U$6>Total_flow_rates),"",SUMIFS(FrictionLossesBySizeFlow[Pressure drop (MPa/m)],FrictionLossesBySizeFlow[Pipeline diameter (inches)],$Q13,FrictionLossesBySizeFlow[Flow rate (Mt CO2/y)],U$8)*10^3) -> 0.009131980221 | V13: =IF(OR($P13>Total_pipeline_sizes,V$6>Total_flow_rates),"",SUMIFS(FrictionLossesBySizeFlow[Pressure drop (MPa/m)],FrictionLossesBySizeFlow[Pipeline diameter (inches)],$Q13,FrictionLossesBySizeFlow[Flow rate (Mt CO2/y)],V$8)*10^3) -> 0.03580002872 | W13: =IF(OR($P13>Total_pipeline_sizes,W$6>Total_flow_rates),"",SUMIFS(FrictionLossesBySizeFlow[Pressure drop (MPa/m)],FrictionLossesBySizeFlow[Pipeline diameter (inches)],$Q13,FrictionLossesBySizeFlow[Flow rate (Mt CO2/y)],W$8)*10^3) -> 0.2206181238 | X13: =IF(OR($P13>Total_pipeline_sizes,X$6>Total_flow_rates),"",SUMIFS(FrictionLossesBySizeFlow[Pressure drop (MPa/m)],FrictionLossesBySizeFlow[Pipeline diameter (inches)],$Q13,FrictionLossesBySizeFlow[Flow rate (Mt CO2/y)],X$8)*10^3) -> 0.8777752157 | Y13: =IF(OR($P13>Total_pipeline_sizes,Y$6>Total_flow_rates),"",SUMIFS(FrictionLossesBySizeFlow[Pressure drop (MPa/m)],FrictionLossesBySizeFlow[Pipeline diameter (inches)],$Q13,FrictionLossesBySizeFlow[Flow rate (Mt CO2/y)],Y$8)*10^3) ->  | Z13: =IF(OR($P13>Total_pipeline_sizes,Z$6>Total_flow_rates),"",SUMIFS(FrictionLossesBySizeFlow[Pressure drop (MPa/m)],FrictionLossesBySizeFlow[Pipeline diameter (inches)],$Q13,FrictionLossesBySizeFlow[Flow rate (Mt CO2/y)],Z$8)*10^3) ->  | AA13: =IF(OR($P13>Total_pipeline_sizes,AA$6>Total_flow_rates),"",SUMIFS(FrictionLossesBySizeFlow[Pressure drop (MPa/m)],FrictionLossesBySizeFlow[Pipeline diameter (inches)],$Q13,FrictionLossesBySizeFlow[Flow rate (Mt CO2/y)],AA$8)*10^3) ->  | AC13: 6 | AD13: =IF(PipelineInfrastructureCost[[#This Row],[ID]]>Total_pressure_drop*Total_flow_rates*Total_transportation_distances,0,1) -> 1 | AE13: =IF(PipelineInfrastructureCost[[#This Row],[Active]]=0,"",OFFSET(PressureDrop[[#Headers],[Pressure drop (MPa)]],QUOTIENT(PipelineInfrastructureCost[[#This Row],[ID]]-1,Total_flow_rates*Total_transportation_distances)+1,0)) -> 1 | AF13: =IF(PipelineInfrastructureCost[[#This Row],[Active]]=0,"",OFFSET(FlowRates[[#Headers],[Flow rate (Mt CO2/y)]],MOD(QUOTIENT(PipelineInfrastructureCost[[#This Row],[ID]]-1,Total_transportation_distances),Total_flow_rates)+1,0)) -> 5 | AG13: =IF(PipelineInfrastructureCost[[#This Row],[Active]]=0,"",IF(Active_scenario_switch="Yes",Selected_distance,OFFSET(TransportationDistances[[#Headers],[Transportation distance (km)]],MOD(PipelineInfrastructureCost[[#This Row],[ID]]-1,Total_transportation_distances)+1,0))) -> 476 | AH13: =IF(PipelineInfrastructureCost[[#This Row],[Active]]=0,"",MAX(IF(TransmissionPipelineCost[Transmission pipeline length (km)]<=PipelineInfrastructureCost[[#This Row],[Transportation distance (km)]],TransmissionPipelineCost[Transmission pipeline length (km)]))) -> 400 | AI13: =IF(PipelineInfrastructureCost[[#This Row],[Active]]=0,"",PipelineInfrastructureCost[[#This Row],[Pressure drop (MPa)]]/PipelineInfrastructureCost[[#This Row],[Transportation distance (km)]]/10^3) -> 2.100840336e-06 | AJ13: =IF(PipelineInfrastructureCost[[#This Row],[Active]]=0,"",MIN(IF(FrictionLossesBySizeFlow[Flow rate (Mt CO2/y)]=PipelineInfrastructureCost[[#This Row],[Flow rate (Mt CO2/y)]],IF(FrictionLossesBySizeFlow[Pressure drop (MPa/m)]<PipelineInfrastructureCost[[#This Row],[Pressure drop (MPa/m)]],FrictionLossesBySizeFlow[Pipeline diameter (inches)])))) -> 32 | AK13: =IF(PipelineInfrastructureCost[[#This Row],[Active]]=0,"",PipelineInfrastructureCost[[#This Row],[Flow rate (Mt CO2/y)]]/Pipe_utilisation_factor*SUMIFS(ConversionFactors[Conversion value],ConversionFactors[Initial unit],"Mt",ConversionFactors[Final unit],"kg")/SUMIFS(ConversionFactors[Conversion value],ConversionFactors[Initial unit],"Year",ConversionFactors[Final unit],"second")/SUMIFS(CO2PhysicalProperties[Density (kg/m3)],CO2PhysicalProperties[Pressure (MPa)],Shoreline_supply_pressure)*(Maximum_pipeline_pressure-Minimum_pipeline_pressure)/Compressor_efficiency) -> 5.171009215 | AL13: =IF(PipelineInfrastructureCost[[#This Row],[Active]]=0,"",PipelineInfrastructureCost[[#This Row],[Compressor size (MW)]]*CompressorCost[Compressor capex (£/MW)]) -> 19391284.56 | AM13: =IF(PipelineInfrastructureCost[[#This Row],[Active]]=0,"",PipelineInfrastructureCost[[#This Row],[Compressor capex (£)]]*CompressorCost[Opex (share of capex)]) -> 775651.3823 | AN13: =IF(PipelineInfrastructureCost[[#This Row],[Active]]=0,"",PipelineInfrastructureCost[[#This Row],[Compressor size (MW)]]*8760*Pipe_utilisation_factor*10^3*SUMIFS(FuelCost[Cost (£/kWh)],FuelCost[Fuel],CompressionFuel,FuelCost[Scenario],Liquefaction_compression_fuel_cost)) -> 2717882.443 | AO13: =IF(PipelineInfrastructureCost[[#This Row],[Active]]=0,"",SUMIFS(TransmissionPipelineCost[Capex (£/inch/km)],TransmissionPipelineCost[Transmission pipeline length (km)],PipelineInfrastructureCost[[#This Row],[Matching transportation distance (km)]])*PipelineInfrastructureCost[[#This Row],[Pipeline diameter (inches)]]*PipelineInfrastructureCost[[#This Row],[Transportation distance (km)]]) -> 852451923.1 | AP13: =IF(PipelineInfrastructureCost[[#This Row],[Active]]=0,"",SUMIFS(TransmissionPipelineCost[Opex (share of capex)],TransmissionPipelineCost[Transmission pipeline length (km)],PipelineInfrastructureCost[[#This Row],[Matching transportation distance (km)]])*PipelineInfrastructureCost[[#This Row],[Transmission pipeline capex (£)]]) -> 8524519.231 | AQ13: =IF(PipelineInfrastructureCost[[#This Row],[Active]]=0,"",PipelineInfrastructureCost[[#This Row],[Compressor capex (£)]]+PipelineInfrastructureCost[[#This Row],[Transmission pipeline capex (£)]]) -> 871843207.6 | AR13: =IF(PipelineInfrastructureCost[[#This Row],[Active]]=0,"",-PV(Discount_rate,PipelineLifetime,PipelineInfrastructureCost[[#This Row],[Compressor opex (£/y)]]+PipelineInfrastructureCost[[#This Row],[Compressor energy cost (£/y)]]+PipelineInfrastructureCost[[#This Row],[Transmission pipeline opex (£/y)]])) -> 240361061.1 | AS13: =IF(PipelineInfrastructureCost[[#This Row],[Active]]=0,"",SUM(PipelineInfrastructureCost[[#This Row],[Total capex (£/y)]:[Total lifetime discounted opex (£/y)]])/-PV(Discount_rate,PipelineLifetime,PipelineInfrastructureCost[[#This Row],[Flow rate (Mt CO2/y)]])/10^6) -> 11.12204269 | AU13: 5 | AV13: =IF($AU13>Total_transportation_distances,"",IF(Active_scenario_switch="Yes",Selected_distance,OFFSET(TransportationDistances[[#Headers],[Transportation distance (km)]],$AU13,0))) ->  | AW13: =IF(OR($AU13>Total_transportation_distances,AW$6>Total_flow_rates),"",SUMIFS(PipelineInfrastructureCost[Pipeline diameter (inches)],PipelineInfrastructureCost[Pressure drop (MPa)],$AW$4,PipelineInfrastructureCost[Transportation distance (km)],$AV13,PipelineInfrastructureCost[Flow rate (Mt CO2/y)],AW$8)) ->  | AX13: =IF(OR($AU13>Total_transportation_distances,AX$6>Total_flow_rates),"",SUMIFS(PipelineInfrastructureCost[Pipeline diameter (inches)],PipelineInfrastructureCost[Pressure drop (MPa)],$AW$4,PipelineInfrastructureCost[Transportation distance (km)],$AV13,PipelineInfrastructureCost[Flow rate (Mt CO2/y)],AX$8)) ->  | AY13: =IF(OR($AU13>Total_transportation_distances,AY$6>Total_flow_rates),"",SUMIFS(PipelineInfrastructureCost[Pipeline diameter (inches)],PipelineInfrastructureCost[Pressure drop (MPa)],$AW$4,PipelineInfrastructureCost[Transportation distance (km)],$AV13,PipelineInfrastructureCost[Flow rate (Mt CO2/y)],AY$8)) ->  | AZ13: =IF(OR($AU13>Total_transportation_distances,AZ$6>Total_flow_rates),"",SUMIFS(PipelineInfrastructureCost[Pipeline diameter (inches)],PipelineInfrastructureCost[Pressure drop (MPa)],$AW$4,PipelineInfrastructureCost[Transportation distance (km)],$AV13,PipelineInfrastructureCost[Flow rate (Mt CO2/y)],AZ$8)) ->  | BA13: =IF(OR($AU13>Total_transportation_distances,BA$6>Total_flow_rates),"",SUMIFS(PipelineInfrastructureCost[Pipeline diameter (inches)],PipelineInfrastructureCost[Pressure drop (MPa)],$AW$4,PipelineInfrastructureCost[Transportation distance (km)],$AV13,PipelineInfrastructureCost[Flow rate (Mt CO2/y)],BA$8)) ->  | BB13: =IF(OR($AU13>Total_transportation_distances,BB$6>Total_flow_rates),"",SUMIFS(PipelineInfrastructureCost[Pipeline diameter (inches)],PipelineInfrastructureCost[Pressure drop (MPa)],$AW$4,PipelineInfrastructureCost[Transportation distance (km)],$AV13,PipelineInfrastructureCost[Flow rate (Mt CO2/y)],BB$8)) ->  | BC13: =IF(OR($AU13>Total_transportation_distances,BC$6>Total_flow_rates),"",SUMIFS(PipelineInfrastructureCost[Pipeline diameter (inches)],PipelineInfrastructureCost[Pressure drop (MPa)],$AW$4,PipelineInfrastructureCost[Transportation distance (km)],$AV13,PipelineInfrastructureCost[Flow rate (Mt CO2/y)],BC$8)) ->  | BD13: =IF(OR($AU13>Total_transportation_distances,BD$6>Total_flow_rates),"",SUMIFS(PipelineInfrastructureCost[Pipeline diameter (inches)],PipelineInfrastructureCost[Pressure drop (MPa)],$AW$4,PipelineInfrastructureCost[Transportation distance (km)],$AV13,PipelineInfrastructureCost[Flow rate (Mt CO2/y)],BD$8)) ->  | BE13: =IF(OR($AU13>Total_transportation_distances,BE$6>Total_flow_rates),"",SUMIFS(PipelineInfrastructureCost[Pipeline diameter (inches)],PipelineInfrastructureCost[Pressure drop (MPa)],$AW$4,PipelineInfrastructureCost[Transportation distance (km)],$AV13,PipelineInfrastructureCost[Flow rate (Mt CO2/y)],BE$8)) ->  | BF13: =IF(OR($AU13>Total_transportation_distances,BF$6>Total_flow_rates),"",SUMIFS(PipelineInfrastructureCost[Pipeline diameter (inches)],PipelineInfrastructureCost[Pressure drop (MPa)],$AW$4,PipelineInfrastructureCost[Transportation distance (km)],$AV13,PipelineInfrastructureCost[Flow rate (Mt CO2/y)],BF$8)) ->  | BH13: =IF($AU13>Total_transportation_distances,"",IF(Active_scenario_switch="Yes",Selected_distance,OFFSET(TransportationDistances[[#Headers],[Transportation distance (km)]],$AU13,0))) ->  | BI13: =IF(OR($AU13>Total_transportation_distances,AW$6>Total_flow_rates),"",SUMIFS(PipelineInfrastructureCost[Levelised lifetime cost of pipeline (£/t CO2)],PipelineInfrastructureCost[Pressure drop (MPa)],$AW$4,PipelineInfrastructureCost[Transportation distance (km)],$AV13,PipelineInfrastructureCost[Flow rate (Mt CO2/y)],AW$8)) ->  | BJ13: =IF(OR($AU13>Total_transportation_distances,AX$6>Total_flow_rates),"",SUMIFS(PipelineInfrastructureCost[Levelised lifetime cost of pipeline (£/t CO2)],PipelineInfrastructureCost[Pressure drop (MPa)],$AW$4,PipelineInfrastructureCost[Transportation distance (km)],$AV13,PipelineInfrastructureCost[Flow rate (Mt CO2/y)],AX$8)) ->  | BK13: =IF(OR($AU13>Total_transportation_distances,AY$6>Total_flow_rates),"",SUMIFS(PipelineInfrastructureCost[Levelised lifetime cost of pipeline (£/t CO2)],PipelineInfrastructureCost[Pressure drop (MPa)],$AW$4,PipelineInfrastructureCost[Transportation distance (km)],$AV13,PipelineInfrastructureCost[Flow rate (Mt CO2/y)],AY$8)) ->  | BL13: =IF(OR($AU13>Total_transportation_distances,AZ$6>Total_flow_rates),"",SUMIFS(PipelineInfrastructureCost[Levelised lifetime cost of pipeline (£/t CO2)],PipelineInfrastructureCost[Pressure drop (MPa)],$AW$4,PipelineInfrastructureCost[Transportation distance (km)],$AV13,PipelineInfrastructureCost[Flow rate (Mt CO2/y)],AZ$8)) ->  | BM13: =IF(OR($AU13>Total_transportation_distances,BA$6>Total_flow_rates),"",SUMIFS(PipelineInfrastructureCost[Levelised lifetime cost of pipeline (£/t CO2)],PipelineInfrastructureCost[Pressure drop (MPa)],$AW$4,PipelineInfrastructureCost[Transportation distance (km)],$AV13,PipelineInfrastructureCost[Flow rate (Mt CO2/y)],BA$8)) ->  | BN13: =IF(OR($AU13>Total_transportation_distances,BB$6>Total_flow_rates),"",SUMIFS(PipelineInfrastructureCost[Levelised lifetime cost of pipeline (£/t CO2)],PipelineInfrastructureCost[Pressure drop (MPa)],$AW$4,PipelineInfrastructureCost[Transportation distance (km)],$AV13,PipelineInfrastructureCost[Flow rate (Mt CO2/y)],BB$8)) ->  | BO13: =IF(OR($AU13>Total_transportation_distances,BC$6>Total_flow_rates),"",SUMIFS(PipelineInfrastructureCost[Levelised lifetime cost of pipeline (£/t CO2)],PipelineInfrastructureCost[Pressure drop (MPa)],$AW$4,PipelineInfrastructureCost[Transportation distance (km)],$AV13,PipelineInfrastructureCost[Flow rate (Mt CO2/y)],BC$8)) ->  | BP13: =IF(OR($AU13>Total_transportation_distances,BD$6>Total_flow_rates),"",SUMIFS(PipelineInfrastructureCost[Levelised lifetime cost of pipeline (£/t CO2)],PipelineInfrastructureCost[Pressure drop (MPa)],$AW$4,PipelineInfrastructureCost[Transportation distance (km)],$AV13,PipelineInfrastructureCost[Flow rate (Mt CO2/y)],BD$8)) ->  | BQ13: =IF(OR($AU13>Total_transportation_distances,BE$6>Total_flow_rates),"",SUMIFS(PipelineInfrastructureCost[Levelised lifetime cost of pipeline (£/t CO2)],PipelineInfrastructureCost[Pressure drop (MPa)],$AW$4,PipelineInfrastructureCost[Transportation distance (km)],$AV13,PipelineInfrastructureCost[Flow rate (Mt CO2/y)],BE$8)) ->  | BR13: =IF(OR($AU13>Total_transportation_distances,BF$6>Total_flow_rates),"",SUMIFS(PipelineInfrastructureCost[Levelised lifetime cost of pipeline (£/t CO2)],PipelineInfrastructureCost[Pressure drop (MPa)],$AW$4,PipelineInfrastructureCost[Transportation distance (km)],$AV13,PipelineInfrastructureCost[Flow rate (Mt CO2/y)],BF$8)) -> 
I14: 7 | J14: =IF(FrictionLossesBySizeFlow[[#This Row],[ID]]>Total_flow_rates*Total_pipeline_sizes,"",OFFSET(FlowRates[[#Headers],[Flow rate (Mt CO2/y)]],QUOTIENT(FrictionLossesBySizeFlow[[#This Row],[ID]]-1,Total_pipeline_sizes)+1,0)) -> 0.1 | K14: =IF(FrictionLossesBySizeFlow[[#This Row],[ID]]>Total_flow_rates*Total_pipeline_sizes,"",OFFSET(PipelineSizes[[#Headers],[Pipeline diameter (inches)]],MOD(FrictionLossesBySizeFlow[[#This Row],[ID]]-1,Total_pipeline_sizes)+1,0)) -> 16 | L14: =IF(FrictionLossesBySizeFlow[[#This Row],[ID]]>Total_flow_rates*Total_pipeline_sizes,"",4*FrictionLossesBySizeFlow[[#This Row],[Flow rate (Mt CO2/y)]]/Pipe_utilisation_factor*SUMIFS(ConversionFactors[Conversion value],ConversionFactors[Initial unit],"Mt",ConversionFactors[Final unit],"kg")/SUMIFS(ConversionFactors[Conversion value],ConversionFactors[Initial unit],"Year",ConversionFactors[Final unit],"second")/(PI()*SUMIFS(CO2PhysicalProperties[Viscosity (Pas)],CO2PhysicalProperties[Pressure (MPa)],Minimum_pipeline_pressure)*FrictionLossesBySizeFlow[[#This Row],[Pipeline diameter (inches)]]*SUMIFS(ConversionFactors[Conversion value],ConversionFactors[Initial unit],"Inch",ConversionFactors[Final unit],"metre"))) -> 179299.5905 | M14: =IF(FrictionLossesBySizeFlow[[#This Row],[ID]]>Total_flow_rates*Total_pipeline_sizes,"",1.325/(LN(Pipeline_roughness/(3.7*FrictionLossesBySizeFlow[[#This Row],[Pipeline diameter (inches)]]*SUMIFS(ConversionFactors[Conversion value],ConversionFactors[Initial unit],"Inch",ConversionFactors[Final unit],"metre"))+(5.74/FrictionLossesBySizeFlow[[#This Row],[Reynold''s Number]]^0.9)))^2) -> 0.01676228278 | N14: =IF(FrictionLossesBySizeFlow[[#This Row],[ID]]>Total_flow_rates*Total_pipeline_sizes,"",8*FrictionLossesBySizeFlow[[#This Row],[Friction factor]]*(FrictionLossesBySizeFlow[[#This Row],[Flow rate (Mt CO2/y)]]/Pipe_utilisation_factor*SUMIFS(ConversionFactors[Conversion value],ConversionFactors[Initial unit],"Mt",ConversionFactors[Final unit],"kg")/SUMIFS(ConversionFactors[Conversion value],ConversionFactors[Initial unit],"Year",ConversionFactors[Final unit],"second"))^2/(SUMIFS(CO2PhysicalProperties[Density (kg/m3)],CO2PhysicalProperties[Pressure (MPa)],Minimum_pipeline_pressure)*PI()^2*(FrictionLossesBySizeFlow[[#This Row],[Pipeline diameter (inches)]]*SUMIFS(ConversionFactors[Conversion value],ConversionFactors[Initial unit],"Inch",ConversionFactors[Final unit],"metre"))^5)/10^6) -> 2.679552987e-08 | P14: 6 | Q14: =IF($P14>Total_pipeline_sizes,"",OFFSET(PipelineSizes[[#Headers],[Pipeline diameter (inches)]],$P14,0)) -> 14 | R14: =IF(OR($P14>Total_pipeline_sizes,R$6>Total_flow_rates),"",SUMIFS(FrictionLossesBySizeFlow[Pressure drop (MPa/m)],FrictionLossesBySizeFlow[Pipeline diameter (inches)],$Q14,FrictionLossesBySizeFlow[Flow rate (Mt CO2/y)],R$8)*10^3) -> 5.156157286e-05 | S14: =IF(OR($P14>Total_pipeline_sizes,S$6>Total_flow_rates),"",SUMIFS(FrictionLossesBySizeFlow[Pressure drop (MPa/m)],FrictionLossesBySizeFlow[Pipeline diameter (inches)],$Q14,FrictionLossesBySizeFlow[Flow rate (Mt CO2/y)],S$8)*10^3) -> 0.000188336892 | T14: =IF(OR($P14>Total_pipeline_sizes,T$6>Total_flow_rates),"",SUMIFS(FrictionLossesBySizeFlow[Pressure drop (MPa/m)],FrictionLossesBySizeFlow[Pipeline diameter (inches)],$Q14,FrictionLossesBySizeFlow[Flow rate (Mt CO2/y)],T$8)*10^3) -> 0.001081088114 | U14: =IF(OR($P14>Total_pipeline_sizes,U$6>Total_flow_rates),"",SUMIFS(FrictionLossesBySizeFlow[Pressure drop (MPa/m)],FrictionLossesBySizeFlow[Pipeline diameter (inches)],$Q14,FrictionLossesBySizeFlow[Flow rate (Mt CO2/y)],U$8)*10^3) -> 0.004151898126 | V14: =IF(OR($P14>Total_pipeline_sizes,V$6>Total_flow_rates),"",SUMIFS(FrictionLossesBySizeFlow[Pressure drop (MPa/m)],FrictionLossesBySizeFlow[Pipeline diameter (inches)],$Q14,FrictionLossesBySizeFlow[Flow rate (Mt CO2/y)],V$8)*10^3) -> 0.01619271 | W14: =IF(OR($P14>Total_pipeline_sizes,W$6>Total_flow_rates),"",SUMIFS(FrictionLossesBySizeFlow[Pressure drop (MPa/m)],FrictionLossesBySizeFlow[Pipeline diameter (inches)],$Q14,FrictionLossesBySizeFlow[Flow rate (Mt CO2/y)],W$8)*10^3) -> 0.0993880536 | X14: =IF(OR($P14>Total_pipeline_sizes,X$6>Total_flow_rates),"",SUMIFS(FrictionLossesBySizeFlow[Pressure drop (MPa/m)],FrictionLossesBySizeFlow[Pipeline diameter (inches)],$Q14,FrictionLossesBySizeFlow[Flow rate (Mt CO2/y)],X$8)*10^3) -> 0.3947984677 | Y14: =IF(OR($P14>Total_pipeline_sizes,Y$6>Total_flow_rates),"",SUMIFS(FrictionLossesBySizeFlow[Pressure drop (MPa/m)],FrictionLossesBySizeFlow[Pipeline diameter (inches)],$Q14,FrictionLossesBySizeFlow[Flow rate (Mt CO2/y)],Y$8)*10^3) ->  | Z14: =IF(OR($P14>Total_pipeline_sizes,Z$6>Total_flow_rates),"",SUMIFS(FrictionLossesBySizeFlow[Pressure drop (MPa/m)],FrictionLossesBySizeFlow[Pipeline diameter (inches)],$Q14,FrictionLossesBySizeFlow[Flow rate (Mt CO2/y)],Z$8)*10^3) ->  | AA14: =IF(OR($P14>Total_pipeline_sizes,AA$6>Total_flow_rates),"",SUMIFS(FrictionLossesBySizeFlow[Pressure drop (MPa/m)],FrictionLossesBySizeFlow[Pipeline diameter (inches)],$Q14,FrictionLossesBySizeFlow[Flow rate (Mt CO2/y)],AA$8)*10^3) ->  | AC14: 7 | AD14: =IF(PipelineInfrastructureCost[[#This Row],[ID]]>Total_pressure_drop*Total_flow_rates*Total_transportation_distances,0,1) -> 1 | AE14: =IF(PipelineInfrastructureCost[[#This Row],[Active]]=0,"",OFFSET(PressureDrop[[#Headers],[Pressure drop (MPa)]],QUOTIENT(PipelineInfrastructureCost[[#This Row],[ID]]-1,Total_flow_rates*Total_transportation_distances)+1,0)) -> 1 | AF14: =IF(PipelineInfrastructureCost[[#This Row],[Active]]=0,"",OFFSET(FlowRates[[#Headers],[Flow rate (Mt CO2/y)]],MOD(QUOTIENT(PipelineInfrastructureCost[[#This Row],[ID]]-1,Total_transportation_distances),Total_flow_rates)+1,0)) -> 10 | AG14: =IF(PipelineInfrastructureCost[[#This Row],[Active]]=0,"",IF(Active_scenario_switch="Yes",Selected_distance,OFFSET(TransportationDistances[[#Headers],[Transportation distance (km)]],MOD(PipelineInfrastructureCost[[#This Row],[ID]]-1,Total_transportation_distances)+1,0))) -> 476 | AH14: =IF(PipelineInfrastructureCost[[#This Row],[Active]]=0,"",MAX(IF(TransmissionPipelineCost[Transmission pipeline length (km)]<=PipelineInfrastructureCost[[#This Row],[Transportation distance (km)]],TransmissionPipelineCost[Transmission pipeline length (km)]))) -> 400 | AI14: =IF(PipelineInfrastructureCost[[#This Row],[Active]]=0,"",PipelineInfrastructureCost[[#This Row],[Pressure drop (MPa)]]/PipelineInfrastructureCost[[#This Row],[Transportation distance (km)]]/10^3) -> 2.100840336e-06 | AJ14: =IF(PipelineInfrastructureCost[[#This Row],[Active]]=0,"",MIN(IF(FrictionLossesBySizeFlow[Flow rate (Mt CO2/y)]=PipelineInfrastructureCost[[#This Row],[Flow rate (Mt CO2/y)]],IF(FrictionLossesBySizeFlow[Pressure drop (MPa/m)]<PipelineInfrastructureCost[[#This Row],[Pressure drop (MPa/m)]],FrictionLossesBySizeFlow[Pipeline diameter (inches)])))) -> 40 | AK14: =IF(PipelineInfrastructureCost[[#This Row],[Active]]=0,"",PipelineInfrastructureCost[[#This Row],[Flow rate (Mt CO2/y)]]/Pipe_utilisation_factor*SUMIFS(ConversionFactors[Conversion value],ConversionFactors[Initial unit],"Mt",ConversionFactors[Final unit],"kg")/SUMIFS(ConversionFactors[Conversion value],ConversionFactors[Initial unit],"Year",ConversionFactors[Final unit],"second")/SUMIFS(CO2PhysicalProperties[Density (kg/m3)],CO2PhysicalProperties[Pressure (MPa)],Shoreline_supply_pressure)*(Maximum_pipeline_pressure-Minimum_pipeline_pressure)/Compressor_efficiency) -> 10.34201843 | AL14: =IF(PipelineInfrastructureCost[[#This Row],[Active]]=0,"",PipelineInfrastructureCost[[#This Row],[Compressor size (MW)]]*CompressorCost[Compressor capex (£/MW)]) -> 38782569.11 | AM14: =IF(PipelineInfrastructureCost[[#This Row],[Active]]=0,"",PipelineInfrastructureCost[[#This Row],[Compressor capex (£)]]*CompressorCost[Opex (share of capex)]) -> 1551302.765 | AN14: =IF(PipelineInfrastructureCost[[#This Row],[Active]]=0,"",PipelineInfrastructureCost[[#This Row],[Compressor size (MW)]]*8760*Pipe_utilisation_factor*10^3*SUMIFS(FuelCost[Cost (£/kWh)],FuelCost[Fuel],CompressionFuel,FuelCost[Scenario],Liquefaction_compression_fuel_cost)) -> 5435764.887 | AO14: =IF(PipelineInfrastructureCost[[#This Row],[Active]]=0,"",SUMIFS(TransmissionPipelineCost[Capex (£/inch/km)],TransmissionPipelineCost[Transmission pipeline length (km)],PipelineInfrastructureCost[[#This Row],[Matching transportation distance (km)]])*PipelineInfrastructureCost[[#This Row],[Pipeline diameter (inches)]]*PipelineInfrastructureCost[[#This Row],[Transportation distance (km)]]) -> 1065564904 | AP14: =IF(PipelineInfrastructureCost[[#This Row],[Active]]=0,"",SUMIFS(TransmissionPipelineCost[Opex (share of capex)],TransmissionPipelineCost[Transmission pipeline length (km)],PipelineInfrastructureCost[[#This Row],[Matching transportation distance (km)]])*PipelineInfrastructureCost[[#This Row],[Transmission pipeline capex (£)]]) -> 10655649.04 | AQ14: =IF(PipelineInfrastructureCost[[#This Row],[Active]]=0,"",PipelineInfrastructureCost[[#This Row],[Compressor capex (£)]]+PipelineInfrastructureCost[[#This Row],[Transmission pipeline capex (£)]]) -> 1104347473 | AR14: =IF(PipelineInfrastructureCost[[#This Row],[Active]]=0,"",-PV(Discount_rate,PipelineLifetime,PipelineInfrastructureCost[[#This Row],[Compressor opex (£/y)]]+PipelineInfrastructureCost[[#This Row],[Compressor energy cost (£/y)]]+PipelineInfrastructureCost[[#This Row],[Transmission pipeline opex (£/y)]])) -> 352854333.8 | AS14: =IF(PipelineInfrastructureCost[[#This Row],[Active]]=0,"",SUM(PipelineInfrastructureCost[[#This Row],[Total capex (£/y)]:[Total lifetime discounted opex (£/y)]])/-PV(Discount_rate,PipelineLifetime,PipelineInfrastructureCost[[#This Row],[Flow rate (Mt CO2/y)]])/10^6) -> 7.286009034 | AU14: 6 | AV14: =IF($AU14>Total_transportation_distances,"",IF(Active_scenario_switch="Yes",Selected_distance,OFFSET(TransportationDistances[[#Headers],[Transportation distance (km)]],$AU14,0))) ->  | AW14: =IF(OR($AU14>Total_transportation_distances,AW$6>Total_flow_rates),"",SUMIFS(PipelineInfrastructureCost[Pipeline diameter (inches)],PipelineInfrastructureCost[Pressure drop (MPa)],$AW$4,PipelineInfrastructureCost[Transportation distance (km)],$AV14,PipelineInfrastructureCost[Flow rate (Mt CO2/y)],AW$8)) ->  | AX14: =IF(OR($AU14>Total_transportation_distances,AX$6>Total_flow_rates),"",SUMIFS(PipelineInfrastructureCost[Pipeline diameter (inches)],PipelineInfrastructureCost[Pressure drop (MPa)],$AW$4,PipelineInfrastructureCost[Transportation distance (km)],$AV14,PipelineInfrastructureCost[Flow rate (Mt CO2/y)],AX$8)) ->  | AY14: =IF(OR($AU14>Total_transportation_distances,AY$6>Total_flow_rates),"",SUMIFS(PipelineInfrastructureCost[Pipeline diameter (inches)],PipelineInfrastructureCost[Pressure drop (MPa)],$AW$4,PipelineInfrastructureCost[Transportation distance (km)],$AV14,PipelineInfrastructureCost[Flow rate (Mt CO2/y)],AY$8)) ->  | AZ14: =IF(OR($AU14>Total_transportation_distances,AZ$6>Total_flow_rates),"",SUMIFS(PipelineInfrastructureCost[Pipeline diameter (inches)],PipelineInfrastructureCost[Pressure drop (MPa)],$AW$4,PipelineInfrastructureCost[Transportation distance (km)],$AV14,PipelineInfrastructureCost[Flow rate (Mt CO2/y)],AZ$8)) ->  | BA14: =IF(OR($AU14>Total_transportation_distances,BA$6>Total_flow_rates),"",SUMIFS(PipelineInfrastructureCost[Pipeline diameter (inches)],PipelineInfrastructureCost[Pressure drop (MPa)],$AW$4,PipelineInfrastructureCost[Transportation distance (km)],$AV14,PipelineInfrastructureCost[Flow rate (Mt CO2/y)],BA$8)) ->  | BB14: =IF(OR($AU14>Total_transportation_distances,BB$6>Total_flow_rates),"",SUMIFS(PipelineInfrastructureCost[Pipeline diameter (inches)],PipelineInfrastructureCost[Pressure drop (MPa)],$AW$4,PipelineInfrastructureCost[Transportation distance (km)],$AV14,PipelineInfrastructureCost[Flow rate (Mt CO2/y)],BB$8)) ->  | BC14: =IF(OR($AU14>Total_transportation_distances,BC$6>Total_flow_rates),"",SUMIFS(PipelineInfrastructureCost[Pipeline diameter (inches)],PipelineInfrastructureCost[Pressure drop (MPa)],$AW$4,PipelineInfrastructureCost[Transportation distance (km)],$AV14,PipelineInfrastructureCost[Flow rate (Mt CO2/y)],BC$8)) ->  | BD14: =IF(OR($AU14>Total_transportation_distances,BD$6>Total_flow_rates),"",SUMIFS(PipelineInfrastructureCost[Pipeline diameter (inches)],PipelineInfrastructureCost[Pressure drop (MPa)],$AW$4,PipelineInfrastructureCost[Transportation distance (km)],$AV14,PipelineInfrastructureCost[Flow rate (Mt CO2/y)],BD$8)) ->  | BE14: =IF(OR($AU14>Total_transportation_distances,BE$6>Total_flow_rates),"",SUMIFS(PipelineInfrastructureCost[Pipeline diameter (inches)],PipelineInfrastructureCost[Pressure drop (MPa)],$AW$4,PipelineInfrastructureCost[Transportation distance (km)],$AV14,PipelineInfrastructureCost[Flow rate (Mt CO2/y)],BE$8)) ->  | BF14: =IF(OR($AU14>Total_transportation_distances,BF$6>Total_flow_rates),"",SUMIFS(PipelineInfrastructureCost[Pipeline diameter (inches)],PipelineInfrastructureCost[Pressure drop (MPa)],$AW$4,PipelineInfrastructureCost[Transportation distance (km)],$AV14,PipelineInfrastructureCost[Flow rate (Mt CO2/y)],BF$8)) ->  | BH14: =IF($AU14>Total_transportation_distances,"",IF(Active_scenario_switch="Yes",Selected_distance,OFFSET(TransportationDistances[[#Headers],[Transportation distance (km)]],$AU14,0))) ->  | BI14: =IF(OR($AU14>Total_transportation_distances,AW$6>Total_flow_rates),"",SUMIFS(PipelineInfrastructureCost[Levelised lifetime cost of pipeline (£/t CO2)],PipelineInfrastructureCost[Pressure drop (MPa)],$AW$4,PipelineInfrastructureCost[Transportation distance (km)],$AV14,PipelineInfrastructureCost[Flow rate (Mt CO2/y)],AW$8)) ->  | BJ14: =IF(OR($AU14>Total_transportation_distances,AX$6>Total_flow_rates),"",SUMIFS(PipelineInfrastructureCost[Levelised lifetime cost of pipeline (£/t CO2)],PipelineInfrastructureCost[Pressure drop (MPa)],$AW$4,PipelineInfrastructureCost[Transportation distance (km)],$AV14,PipelineInfrastructureCost[Flow rate (Mt CO2/y)],AX$8)) ->  | BK14: =IF(OR($AU14>Total_transportation_distances,AY$6>Total_flow_rates),"",SUMIFS(PipelineInfrastructureCost[Levelised lifetime cost of pipeline (£/t CO2)],PipelineInfrastructureCost[Pressure drop (MPa)],$AW$4,PipelineInfrastructureCost[Transportation distance (km)],$AV14,PipelineInfrastructureCost[Flow rate (Mt CO2/y)],AY$8)) ->  | BL14: =IF(OR($AU14>Total_transportation_distances,AZ$6>Total_flow_rates),"",SUMIFS(PipelineInfrastructureCost[Levelised lifetime cost of pipeline (£/t CO2)],PipelineInfrastructureCost[Pressure drop (MPa)],$AW$4,PipelineInfrastructureCost[Transportation distance (km)],$AV14,PipelineInfrastructureCost[Flow rate (Mt CO2/y)],AZ$8)) ->  | BM14: =IF(OR($AU14>Total_transportation_distances,BA$6>Total_flow_rates),"",SUMIFS(PipelineInfrastructureCost[Levelised lifetime cost of pipeline (£/t CO2)],PipelineInfrastructureCost[Pressure drop (MPa)],$AW$4,PipelineInfrastructureCost[Transportation distance (km)],$AV14,PipelineInfrastructureCost[Flow rate (Mt CO2/y)],BA$8)) ->  | BN14: =IF(OR($AU14>Total_transportation_distances,BB$6>Total_flow_rates),"",SUMIFS(PipelineInfrastructureCost[Levelised lifetime cost of pipeline (£/t CO2)],PipelineInfrastructureCost[Pressure drop (MPa)],$AW$4,PipelineInfrastructureCost[Transportation distance (km)],$AV14,PipelineInfrastructureCost[Flow rate (Mt CO2/y)],BB$8)) ->  | BO14: =IF(OR($AU14>Total_transportation_distances,BC$6>Total_flow_rates),"",SUMIFS(PipelineInfrastructureCost[Levelised lifetime cost of pipeline (£/t CO2)],PipelineInfrastructureCost[Pressure drop (MPa)],$AW$4,PipelineInfrastructureCost[Transportation distance (km)],$AV14,PipelineInfrastructureCost[Flow rate (Mt CO2/y)],BC$8)) ->  | BP14: =IF(OR($AU14>Total_transportation_distances,BD$6>Total_flow_rates),"",SUMIFS(PipelineInfrastructureCost[Levelised lifetime cost of pipeline (£/t CO2)],PipelineInfrastructureCost[Pressure drop (MPa)],$AW$4,PipelineInfrastructureCost[Transportation distance (km)],$AV14,PipelineInfrastructureCost[Flow rate (Mt CO2/y)],BD$8)) ->  | BQ14: =IF(OR($AU14>Total_transportation_distances,BE$6>Total_flow_rates),"",SUMIFS(PipelineInfrastructureCost[Levelised lifetime cost of pipeline (£/t CO2)],PipelineInfrastructureCost[Pressure drop (MPa)],$AW$4,PipelineInfrastructureCost[Transportation distance (km)],$AV14,PipelineInfrastructureCost[Flow rate (Mt CO2/y)],BE$8)) ->  | BR14: =IF(OR($AU14>Total_transportation_distances,BF$6>Total_flow_rates),"",SUMIFS(PipelineInfrastructureCost[Levelised lifetime cost of pipeline (£/t CO2)],PipelineInfrastructureCost[Pressure drop (MPa)],$AW$4,PipelineInfrastructureCost[Transportation distance (km)],$AV14,PipelineInfrastructureCost[Flow rate (Mt CO2/y)],BF$8)) -> 
I15: 8 | J15: =IF(FrictionLossesBySizeFlow[[#This Row],[ID]]>Total_flow_rates*Total_pipeline_sizes,"",OFFSET(FlowRates[[#Headers],[Flow rate (Mt CO2/y)]],QUOTIENT(FrictionLossesBySizeFlow[[#This Row],[ID]]-1,Total_pipeline_sizes)+1,0)) -> 0.1 | K15: =IF(FrictionLossesBySizeFlow[[#This Row],[ID]]>Total_flow_rates*Total_pipeline_sizes,"",OFFSET(PipelineSizes[[#Headers],[Pipeline diameter (inches)]],MOD(FrictionLossesBySizeFlow[[#This Row],[ID]]-1,Total_pipeline_sizes)+1,0)) -> 18 | L15: =IF(FrictionLossesBySizeFlow[[#This Row],[ID]]>Total_flow_rates*Total_pipeline_sizes,"",4*FrictionLossesBySizeFlow[[#This Row],[Flow rate (Mt CO2/y)]]/Pipe_utilisation_factor*SUMIFS(ConversionFactors[Conversion value],ConversionFactors[Initial unit],"Mt",ConversionFactors[Final unit],"kg")/SUMIFS(ConversionFactors[Conversion value],ConversionFactors[Initial unit],"Year",ConversionFactors[Final unit],"second")/(PI()*SUMIFS(CO2PhysicalProperties[Viscosity (Pas)],CO2PhysicalProperties[Pressure (MPa)],Minimum_pipeline_pressure)*FrictionLossesBySizeFlow[[#This Row],[Pipeline diameter (inches)]]*SUMIFS(ConversionFactors[Conversion value],ConversionFactors[Initial unit],"Inch",ConversionFactors[Final unit],"metre"))) -> 159377.4138 | M15: =IF(FrictionLossesBySizeFlow[[#This Row],[ID]]>Total_flow_rates*Total_pipeline_sizes,"",1.325/(LN(Pipeline_roughness/(3.7*FrictionLossesBySizeFlow[[#This Row],[Pipeline diameter (inches)]]*SUMIFS(ConversionFactors[Conversion value],ConversionFactors[Initial unit],"Inch",ConversionFactors[Final unit],"metre"))+(5.74/FrictionLossesBySizeFlow[[#This Row],[Reynold''s Number]]^0.9)))^2) -> 0.01699400391 | N15: =IF(FrictionLossesBySizeFlow[[#This Row],[ID]]>Total_flow_rates*Total_pipeline_sizes,"",8*FrictionLossesBySizeFlow[[#This Row],[Friction factor]]*(FrictionLossesBySizeFlow[[#This Row],[Flow rate (Mt CO2/y)]]/Pipe_utilisation_factor*SUMIFS(ConversionFactors[Conversion value],ConversionFactors[Initial unit],"Mt",ConversionFactors[Final unit],"kg")/SUMIFS(ConversionFactors[Conversion value],ConversionFactors[Initial unit],"Year",ConversionFactors[Final unit],"second"))^2/(SUMIFS(CO2PhysicalProperties[Density (kg/m3)],CO2PhysicalProperties[Pressure (MPa)],Minimum_pipeline_pressure)*PI()^2*(FrictionLossesBySizeFlow[[#This Row],[Pipeline diameter (inches)]]*SUMIFS(ConversionFactors[Conversion value],ConversionFactors[Initial unit],"Inch",ConversionFactors[Final unit],"metre"))^5)/10^6) -> 1.507517243e-08 | P15: 7 | Q15: =IF($P15>Total_pipeline_sizes,"",OFFSET(PipelineSizes[[#Headers],[Pipeline diameter (inches)]],$P15,0)) -> 16 | R15: =IF(OR($P15>Total_pipeline_sizes,R$6>Total_flow_rates),"",SUMIFS(FrictionLossesBySizeFlow[Pressure drop (MPa/m)],FrictionLossesBySizeFlow[Pipeline diameter (inches)],$Q15,FrictionLossesBySizeFlow[Flow rate (Mt CO2/y)],R$8)*10^3) -> 2.679552987e-05 | S15: =IF(OR($P15>Total_pipeline_sizes,S$6>Total_flow_rates),"",SUMIFS(FrictionLossesBySizeFlow[Pressure drop (MPa/m)],FrictionLossesBySizeFlow[Pipeline diameter (inches)],$Q15,FrictionLossesBySizeFlow[Flow rate (Mt CO2/y)],S$8)*10^3) -> 9.712031229e-05 | T15: =IF(OR($P15>Total_pipeline_sizes,T$6>Total_flow_rates),"",SUMIFS(FrictionLossesBySizeFlow[Pressure drop (MPa/m)],FrictionLossesBySizeFlow[Pipeline diameter (inches)],$Q15,FrictionLossesBySizeFlow[Flow rate (Mt CO2/y)],T$8)*10^3) -> 0.0005515326604 | U15: =IF(OR($P15>Total_pipeline_sizes,U$6>Total_flow_rates),"",SUMIFS(FrictionLossesBySizeFlow[Pressure drop (MPa/m)],FrictionLossesBySizeFlow[Pipeline diameter (inches)],$Q15,FrictionLossesBySizeFlow[Flow rate (Mt CO2/y)],U$8)*10^3) -> 0.002103327548 | V15: =IF(OR($P15>Total_pipeline_sizes,V$6>Total_flow_rates),"",SUMIFS(FrictionLossesBySizeFlow[Pressure drop (MPa/m)],FrictionLossesBySizeFlow[Pipeline diameter (inches)],$Q15,FrictionLossesBySizeFlow[Flow rate (Mt CO2/y)],V$8)*10^3) -> 0.008160314941 | W15: =IF(OR($P15>Total_pipeline_sizes,W$6>Total_flow_rates),"",SUMIFS(FrictionLossesBySizeFlow[Pressure drop (MPa/m)],FrictionLossesBySizeFlow[Pipeline diameter (inches)],$Q15,FrictionLossesBySizeFlow[Flow rate (Mt CO2/y)],W$8)*10^3) -> 0.04987414978 | X15: =IF(OR($P15>Total_pipeline_sizes,X$6>Total_flow_rates),"",SUMIFS(FrictionLossesBySizeFlow[Pressure drop (MPa/m)],FrictionLossesBySizeFlow[Pipeline diameter (inches)],$Q15,FrictionLossesBySizeFlow[Flow rate (Mt CO2/y)],X$8)*10^3) -> 0.1977665665 | Y15: =IF(OR($P15>Total_pipeline_sizes,Y$6>Total_flow_rates),"",SUMIFS(FrictionLossesBySizeFlow[Pressure drop (MPa/m)],FrictionLossesBySizeFlow[Pipeline diameter (inches)],$Q15,FrictionLossesBySizeFlow[Flow rate (Mt CO2/y)],Y$8)*10^3) ->  | Z15: =IF(OR($P15>Total_pipeline_sizes,Z$6>Total_flow_rates),"",SUMIFS(FrictionLossesBySizeFlow[Pressure drop (MPa/m)],FrictionLossesBySizeFlow[Pipeline diameter (inches)],$Q15,FrictionLossesBySizeFlow[Flow rate (Mt CO2/y)],Z$8)*10^3) ->  | AA15: =IF(OR($P15>Total_pipeline_sizes,AA$6>Total_flow_rates),"",SUMIFS(FrictionLossesBySizeFlow[Pressure drop (MPa/m)],FrictionLossesBySizeFlow[Pipeline diameter (inches)],$Q15,FrictionLossesBySizeFlow[Flow rate (Mt CO2/y)],AA$8)*10^3) ->  | AC15: 8 | AD15: =IF(PipelineInfrastructureCost[[#This Row],[ID]]>Total_pressure_drop*Total_flow_rates*Total_transportation_distances,0,1) -> 1 | AE15: =IF(PipelineInfrastructureCost[[#This Row],[Active]]=0,"",OFFSET(PressureDrop[[#Headers],[Pressure drop (MPa)]],QUOTIENT(PipelineInfrastructureCost[[#This Row],[ID]]-1,Total_flow_rates*Total_transportation_distances)+1,0)) -> 5 | AF15: =IF(PipelineInfrastructureCost[[#This Row],[Active]]=0,"",OFFSET(FlowRates[[#Headers],[Flow rate (Mt CO2/y)]],MOD(QUOTIENT(PipelineInfrastructureCost[[#This Row],[ID]]-1,Total_transportation_distances),Total_flow_rates)+1,0)) -> 0.1 | AG15: =IF(PipelineInfrastructureCost[[#This Row],[Active]]=0,"",IF(Active_scenario_switch="Yes",Selected_distance,OFFSET(TransportationDistances[[#Headers],[Transportation distance (km)]],MOD(PipelineInfrastructureCost[[#This Row],[ID]]-1,Total_transportation_distances)+1,0))) -> 476 | AH15: =IF(PipelineInfrastructureCost[[#This Row],[Active]]=0,"",MAX(IF(TransmissionPipelineCost[Transmission pipeline length (km)]<=PipelineInfrastructureCost[[#This Row],[Transportation distance (km)]],TransmissionPipelineCost[Transmission pipeline length (km)]))) -> 400 | AI15: =IF(PipelineInfrastructureCost[[#This Row],[Active]]=0,"",PipelineInfrastructureCost[[#This Row],[Pressure drop (MPa)]]/PipelineInfrastructureCost[[#This Row],[Transportation distance (km)]]/10^3) -> 1.050420168e-05 | AJ15: =IF(PipelineInfrastructureCost[[#This Row],[Active]]=0,"",MIN(IF(FrictionLossesBySizeFlow[Flow rate (Mt CO2/y)]=PipelineInfrastructureCost[[#This Row],[Flow rate (Mt CO2/y)]],IF(FrictionLossesBySizeFlow[Pressure drop (MPa/m)]<PipelineInfrastructureCost[[#This Row],[Pressure drop (MPa/m)]],FrictionLossesBySizeFlow[Pipeline diameter (inches)])))) -> 6 | AK15: =IF(PipelineInfrastructureCost[[#This Row],[Active]]=0,"",PipelineInfrastructureCost[[#This Row],[Flow rate (Mt CO2/y)]]/Pipe_utilisation_factor*SUMIFS(ConversionFactors[Conversion value],ConversionFactors[Initial unit],"Mt",ConversionFactors[Final unit],"kg")/SUMIFS(ConversionFactors[Conversion value],ConversionFactors[Initial unit],"Year",ConversionFactors[Final unit],"second")/SUMIFS(CO2PhysicalProperties[Density (kg/m3)],CO2PhysicalProperties[Pressure (MPa)],Shoreline_supply_pressure)*(Maximum_pipeline_pressure-Minimum_pipeline_pressure)/Compressor_efficiency) -> 0.1034201843 | AL15: =IF(PipelineInfrastructureCost[[#This Row],[Active]]=0,"",PipelineInfrastructureCost[[#This Row],[Compressor size (MW)]]*CompressorCost[Compressor capex (£/MW)]) -> 387825.6911 | AM15: =IF(PipelineInfrastructureCost[[#This Row],[Active]]=0,"",PipelineInfrastructureCost[[#This Row],[Compressor capex (£)]]*CompressorCost[Opex (share of capex)]) -> 15513.02765 | AN15: =IF(PipelineInfrastructureCost[[#This Row],[Active]]=0,"",PipelineInfrastructureCost[[#This Row],[Compressor size (MW)]]*8760*Pipe_utilisation_factor*10^3*SUMIFS(FuelCost[Cost (£/kWh)],FuelCost[Fuel],CompressionFuel,FuelCost[Scenario],Liquefaction_compression_fuel_cost)) -> 54357.64887 | AO15: =IF(PipelineInfrastructureCost[[#This Row],[Active]]=0,"",SUMIFS(TransmissionPipelineCost[Capex (£/inch/km)],TransmissionPipelineCost[Transmission pipeline length (km)],PipelineInfrastructureCost[[#This Row],[Matching transportation distance (km)]])*PipelineInfrastructureCost[[#This Row],[Pipeline diameter (inches)]]*PipelineInfrastructureCost[[#This Row],[Transportation distance (km)]]) -> 159834735.6 | AP15: =IF(PipelineInfrastructureCost[[#This Row],[Active]]=0,"",SUMIFS(TransmissionPipelineCost[Opex (share of capex)],TransmissionPipelineCost[Transmission pipeline length (km)],PipelineInfrastructureCost[[#This Row],[Matching transportation distance (km)]])*PipelineInfrastructureCost[[#This Row],[Transmission pipeline capex (£)]]) -> 1598347.356 | AQ15: =IF(PipelineInfrastructureCost[[#This Row],[Active]]=0,"",PipelineInfrastructureCost[[#This Row],[Compressor capex (£)]]+PipelineInfrastructureCost[[#This Row],[Transmission pipeline capex (£)]]) -> 160222561.3 | AR15: =IF(PipelineInfrastructureCost[[#This Row],[Active]]=0,"",-PV(Discount_rate,PipelineLifetime,PipelineInfrastructureCost[[#This Row],[Compressor opex (£/y)]]+PipelineInfrastructureCost[[#This Row],[Compressor energy cost (£/y)]]+PipelineInfrastructureCost[[#This Row],[Transmission pipeline opex (£/y)]])) -> 33364360.65 | AS15: =IF(PipelineInfrastructureCost[[#This Row],[Active]]=0,"",SUM(PipelineInfrastructureCost[[#This Row],[Total capex (£/y)]:[Total lifetime discounted opex (£/y)]])/-PV(Discount_rate,PipelineLifetime,PipelineInfrastructureCost[[#This Row],[Flow rate (Mt CO2/y)]])/10^6) -> 96.79346096 | AU15: 7 | AV15: =IF($AU15>Total_transportation_distances,"",IF(Active_scenario_switch="Yes",Selected_distance,OFFSET(TransportationDistances[[#Headers],[Transportation distance (km)]],$AU15,0))) ->  | AW15: =IF(OR($AU15>Total_transportation_distances,AW$6>Total_flow_rates),"",SUMIFS(PipelineInfrastructureCost[Pipeline diameter (inches)],PipelineInfrastructureCost[Pressure drop (MPa)],$AW$4,PipelineInfrastructureCost[Transportation distance (km)],$AV15,PipelineInfrastructureCost[Flow rate (Mt CO2/y)],AW$8)) ->  | AX15: =IF(OR($AU15>Total_transportation_distances,AX$6>Total_flow_rates),"",SUMIFS(PipelineInfrastructureCost[Pipeline diameter (inches)],PipelineInfrastructureCost[Pressure drop (MPa)],$AW$4,PipelineInfrastructureCost[Transportation distance (km)],$AV15,PipelineInfrastructureCost[Flow rate (Mt CO2/y)],AX$8)) ->  | AY15: =IF(OR($AU15>Total_transportation_distances,AY$6>Total_flow_rates),"",SUMIFS(PipelineInfrastructureCost[Pipeline diameter (inches)],PipelineInfrastructureCost[Pressure drop (MPa)],$AW$4,PipelineInfrastructureCost[Transportation distance (km)],$AV15,PipelineInfrastructureCost[Flow rate (Mt CO2/y)],AY$8)) ->  | AZ15: =IF(OR($AU15>Total_transportation_distances,AZ$6>Total_flow_rates),"",SUMIFS(PipelineInfrastructureCost[Pipeline diameter (inches)],PipelineInfrastructureCost[Pressure drop (MPa)],$AW$4,PipelineInfrastructureCost[Transportation distance (km)],$AV15,PipelineInfrastructureCost[Flow rate (Mt CO2/y)],AZ$8)) ->  | BA15: =IF(OR($AU15>Total_transportation_distances,BA$6>Total_flow_rates),"",SUMIFS(PipelineInfrastructureCost[Pipeline diameter (inches)],PipelineInfrastructureCost[Pressure drop (MPa)],$AW$4,PipelineInfrastructureCost[Transportation distance (km)],$AV15,PipelineInfrastructureCost[Flow rate (Mt CO2/y)],BA$8)) ->  | BB15: =IF(OR($AU15>Total_transportation_distances,BB$6>Total_flow_rates),"",SUMIFS(PipelineInfrastructureCost[Pipeline diameter (inches)],PipelineInfrastructureCost[Pressure drop (MPa)],$AW$4,PipelineInfrastructureCost[Transportation distance (km)],$AV15,PipelineInfrastructureCost[Flow rate (Mt CO2/y)],BB$8)) ->  | BC15: =IF(OR($AU15>Total_transportation_distances,BC$6>Total_flow_rates),"",SUMIFS(PipelineInfrastructureCost[Pipeline diameter (inches)],PipelineInfrastructureCost[Pressure drop (MPa)],$AW$4,PipelineInfrastructureCost[Transportation distance (km)],$AV15,PipelineInfrastructureCost[Flow rate (Mt CO2/y)],BC$8)) ->  | BD15: =IF(OR($AU15>Total_transportation_distances,BD$6>Total_flow_rates),"",SUMIFS(PipelineInfrastructureCost[Pipeline diameter (inches)],PipelineInfrastructureCost[Pressure drop (MPa)],$AW$4,PipelineInfrastructureCost[Transportation distance (km)],$AV15,PipelineInfrastructureCost[Flow rate (Mt CO2/y)],BD$8)) ->  | BE15: =IF(OR($AU15>Total_transportation_distances,BE$6>Total_flow_rates),"",SUMIFS(PipelineInfrastructureCost[Pipeline diameter (inches)],PipelineInfrastructureCost[Pressure drop (MPa)],$AW$4,PipelineInfrastructureCost[Transportation distance (km)],$AV15,PipelineInfrastructureCost[Flow rate (Mt CO2/y)],BE$8)) ->  | BF15: =IF(OR($AU15>Total_transportation_distances,BF$6>Total_flow_rates),"",SUMIFS(PipelineInfrastructureCost[Pipeline diameter (inches)],PipelineInfrastructureCost[Pressure drop (MPa)],$AW$4,PipelineInfrastructureCost[Transportation distance (km)],$AV15,PipelineInfrastructureCost[Flow rate (Mt CO2/y)],BF$8)) ->  | BH15: =IF($AU15>Total_transportation_distances,"",IF(Active_scenario_switch="Yes",Selected_distance,OFFSET(TransportationDistances[[#Headers],[Transportation distance (km)]],$AU15,0))) ->  | BI15: =IF(OR($AU15>Total_transportation_distances,AW$6>Total_flow_rates),"",SUMIFS(PipelineInfrastructureCost[Levelised lifetime cost of pipeline (£/t CO2)],PipelineInfrastructureCost[Pressure drop (MPa)],$AW$4,PipelineInfrastructureCost[Transportation distance (km)],$AV15,PipelineInfrastructureCost[Flow rate (Mt CO2/y)],AW$8)) ->  | BJ15: =IF(OR($AU15>Total_transportation_distances,AX$6>Total_flow_rates),"",SUMIFS(PipelineInfrastructureCost[Levelised lifetime cost of pipeline (£/t CO2)],PipelineInfrastructureCost[Pressure drop (MPa)],$AW$4,PipelineInfrastructureCost[Transportation distance (km)],$AV15,PipelineInfrastructureCost[Flow rate (Mt CO2/y)],AX$8)) ->  | BK15: =IF(OR($AU15>Total_transportation_distances,AY$6>Total_flow_rates),"",SUMIFS(PipelineInfrastructureCost[Levelised lifetime cost of pipeline (£/t CO2)],PipelineInfrastructureCost[Pressure drop (MPa)],$AW$4,PipelineInfrastructureCost[Transportation distance (km)],$AV15,PipelineInfrastructureCost[Flow rate (Mt CO2/y)],AY$8)) ->  | BL15: =IF(OR($AU15>Total_transportation_distances,AZ$6>Total_flow_rates),"",SUMIFS(PipelineInfrastructureCost[Levelised lifetime cost of pipeline (£/t CO2)],PipelineInfrastructureCost[Pressure drop (MPa)],$AW$4,PipelineInfrastructureCost[Transportation distance (km)],$AV15,PipelineInfrastructureCost[Flow rate (Mt CO2/y)],AZ$8)) ->  | BM15: =IF(OR($AU15>Total_transportation_distances,BA$6>Total_flow_rates),"",SUMIFS(PipelineInfrastructureCost[Levelised lifetime cost of pipeline (£/t CO2)],PipelineInfrastructureCost[Pressure drop (MPa)],$AW$4,PipelineInfrastructureCost[Transportation distance (km)],$AV15,PipelineInfrastructureCost[Flow rate (Mt CO2/y)],BA$8)) ->  | BN15: =IF(OR($AU15>Total_transportation_distances,BB$6>Total_flow_rates),"",SUMIFS(PipelineInfrastructureCost[Levelised lifetime cost of pipeline (£/t CO2)],PipelineInfrastructureCost[Pressure drop (MPa)],$AW$4,PipelineInfrastructureCost[Transportation distance (km)],$AV15,PipelineInfrastructureCost[Flow rate (Mt CO2/y)],BB$8)) ->  | BO15: =IF(OR($AU15>Total_transportation_distances,BC$6>Total_flow_rates),"",SUMIFS(PipelineInfrastructureCost[Levelised lifetime cost of pipeline (£/t CO2)],PipelineInfrastructureCost[Pressure drop (MPa)],$AW$4,PipelineInfrastructureCost[Transportation distance (km)],$AV15,PipelineInfrastructureCost[Flow rate (Mt CO2/y)],BC$8)) ->  | BP15: =IF(OR($AU15>Total_transportation_distances,BD$6>Total_flow_rates),"",SUMIFS(PipelineInfrastructureCost[Levelised lifetime cost of pipeline (£/t CO2)],PipelineInfrastructureCost[Pressure drop (MPa)],$AW$4,PipelineInfrastructureCost[Transportation distance (km)],$AV15,PipelineInfrastructureCost[Flow rate (Mt CO2/y)],BD$8)) ->  | BQ15: =IF(OR($AU15>Total_transportation_distances,BE$6>Total_flow_rates),"",SUMIFS(PipelineInfrastructureCost[Levelised lifetime cost of pipeline (£/t CO2)],PipelineInfrastructureCost[Pressure drop (MPa)],$AW$4,PipelineInfrastructureCost[Transportation distance (km)],$AV15,PipelineInfrastructureCost[Flow rate (Mt CO2/y)],BE$8)) ->  | BR15: =IF(OR($AU15>Total_transportation_distances,BF$6>Total_flow_rates),"",SUMIFS(PipelineInfrastructureCost[Levelised lifetime cost of pipeline (£/t CO2)],PipelineInfrastructureCost[Pressure drop (MPa)],$AW$4,PipelineInfrastructureCost[Transportation distance (km)],$AV15,PipelineInfrastructureCost[Flow rate (Mt CO2/y)],BF$8)) -> 
I16: 9 | J16: =IF(FrictionLossesBySizeFlow[[#This Row],[ID]]>Total_flow_rates*Total_pipeline_sizes,"",OFFSET(FlowRates[[#Headers],[Flow rate (Mt CO2/y)]],QUOTIENT(FrictionLossesBySizeFlow[[#This Row],[ID]]-1,Total_pipeline_sizes)+1,0)) -> 0.1 | K16: =IF(FrictionLossesBySizeFlow[[#This Row],[ID]]>Total_flow_rates*Total_pipeline_sizes,"",OFFSET(PipelineSizes[[#Headers],[Pipeline diameter (inches)]],MOD(FrictionLossesBySizeFlow[[#This Row],[ID]]-1,Total_pipeline_sizes)+1,0)) -> 20 | L16: =IF(FrictionLossesBySizeFlow[[#This Row],[ID]]>Total_flow_rates*Total_pipeline_sizes,"",4*FrictionLossesBySizeFlow[[#This Row],[Flow rate (Mt CO2/y)]]/Pipe_utilisation_factor*SUMIFS(ConversionFactors[Conversion value],ConversionFactors[Initial unit],"Mt",ConversionFactors[Final unit],"kg")/SUMIFS(ConversionFactors[Conversion value],ConversionFactors[Initial unit],"Year",ConversionFactors[Final unit],"second")/(PI()*SUMIFS(CO2PhysicalProperties[Viscosity (Pas)],CO2PhysicalProperties[Pressure (MPa)],Minimum_pipeline_pressure)*FrictionLossesBySizeFlow[[#This Row],[Pipeline diameter (inches)]]*SUMIFS(ConversionFactors[Conversion value],ConversionFactors[Initial unit],"Inch",ConversionFactors[Final unit],"metre"))) -> 143439.6724 | M16: =IF(FrictionLossesBySizeFlow[[#This Row],[ID]]>Total_flow_rates*Total_pipeline_sizes,"",1.325/(LN(Pipeline_roughness/(3.7*FrictionLossesBySizeFlow[[#This Row],[Pipeline diameter (inches)]]*SUMIFS(ConversionFactors[Conversion value],ConversionFactors[Initial unit],"Inch",ConversionFactors[Final unit],"metre"))+(5.74/FrictionLossesBySizeFlow[[#This Row],[Reynold''s Number]]^0.9)))^2) -> 0.0172305553 | N16: =IF(FrictionLossesBySizeFlow[[#This Row],[ID]]>Total_flow_rates*Total_pipeline_sizes,"",8*FrictionLossesBySizeFlow[[#This Row],[Friction factor]]*(FrictionLossesBySizeFlow[[#This Row],[Flow rate (Mt CO2/y)]]/Pipe_utilisation_factor*SUMIFS(ConversionFactors[Conversion value],ConversionFactors[Initial unit],"Mt",ConversionFactors[Final unit],"kg")/SUMIFS(ConversionFactors[Conversion value],ConversionFactors[Initial unit],"Year",ConversionFactors[Final unit],"second"))^2/(SUMIFS(CO2PhysicalProperties[Density (kg/m3)],CO2PhysicalProperties[Pressure (MPa)],Minimum_pipeline_pressure)*PI()^2*(FrictionLossesBySizeFlow[[#This Row],[Pipeline diameter (inches)]]*SUMIFS(ConversionFactors[Conversion value],ConversionFactors[Initial unit],"Inch",ConversionFactors[Final unit],"metre"))^5)/10^6) -> 9.025648071e-09 | P16: 8 | Q16: =IF($P16>Total_pipeline_sizes,"",OFFSET(PipelineSizes[[#Headers],[Pipeline diameter (inches)]],$P16,0)) -> 18 | R16: =IF(OR($P16>Total_pipeline_sizes,R$6>Total_flow_rates),"",SUMIFS(FrictionLossesBySizeFlow[Pressure drop (MPa/m)],FrictionLossesBySizeFlow[Pipeline diameter (inches)],$Q16,FrictionLossesBySizeFlow[Flow rate (Mt CO2/y)],R$8)*10^3) -> 1.507517243e-05 | S16: =IF(OR($P16>Total_pipeline_sizes,S$6>Total_flow_rates),"",SUMIFS(FrictionLossesBySizeFlow[Pressure drop (MPa/m)],FrictionLossesBySizeFlow[Pipeline diameter (inches)],$Q16,FrictionLossesBySizeFlow[Flow rate (Mt CO2/y)],S$8)*10^3) -> 5.429250417e-05 | T16: =IF(OR($P16>Total_pipeline_sizes,T$6>Total_flow_rates),"",SUMIFS(FrictionLossesBySizeFlow[Pressure drop (MPa/m)],FrictionLossesBySizeFlow[Pipeline diameter (inches)],$Q16,FrictionLossesBySizeFlow[Flow rate (Mt CO2/y)],T$8)*10^3) -> 0.0003054405787 | U16: =IF(OR($P16>Total_pipeline_sizes,U$6>Total_flow_rates),"",SUMIFS(FrictionLossesBySizeFlow[Pressure drop (MPa/m)],FrictionLossesBySizeFlow[Pipeline diameter (inches)],$Q16,FrictionLossesBySizeFlow[Flow rate (Mt CO2/y)],U$8)*10^3) -> 0.00115718417 | V16: =IF(OR($P16>Total_pipeline_sizes,V$6>Total_flow_rates),"",SUMIFS(FrictionLossesBySizeFlow[Pressure drop (MPa/m)],FrictionLossesBySizeFlow[Pipeline diameter (inches)],$Q16,FrictionLossesBySizeFlow[Flow rate (Mt CO2/y)],V$8)*10^3) -> 0.004466310533 | W16: =IF(OR($P16>Total_pipeline_sizes,W$6>Total_flow_rates),"",SUMIFS(FrictionLossesBySizeFlow[Pressure drop (MPa/m)],FrictionLossesBySizeFlow[Pipeline diameter (inches)],$Q16,FrictionLossesBySizeFlow[Flow rate (Mt CO2/y)],W$8)*10^3) -> 0.02717691231 | X16: =IF(OR($P16>Total_pipeline_sizes,X$6>Total_flow_rates),"",SUMIFS(FrictionLossesBySizeFlow[Pressure drop (MPa/m)],FrictionLossesBySizeFlow[Pipeline diameter (inches)],$Q16,FrictionLossesBySizeFlow[Flow rate (Mt CO2/y)],X$8)*10^3) -> 0.1075621169 | Y16: =IF(OR($P16>Total_pipeline_sizes,Y$6>Total_flow_rates),"",SUMIFS(FrictionLossesBySizeFlow[Pressure drop (MPa/m)],FrictionLossesBySizeFlow[Pipeline diameter (inches)],$Q16,FrictionLossesBySizeFlow[Flow rate (Mt CO2/y)],Y$8)*10^3) ->  | Z16: =IF(OR($P16>Total_pipeline_sizes,Z$6>Total_flow_rates),"",SUMIFS(FrictionLossesBySizeFlow[Pressure drop (MPa/m)],FrictionLossesBySizeFlow[Pipeline diameter (inches)],$Q16,FrictionLossesBySizeFlow[Flow rate (Mt CO2/y)],Z$8)*10^3) ->  | AA16: =IF(OR($P16>Total_pipeline_sizes,AA$6>Total_flow_rates),"",SUMIFS(FrictionLossesBySizeFlow[Pressure drop (MPa/m)],FrictionLossesBySizeFlow[Pipeline diameter (inches)],$Q16,FrictionLossesBySizeFlow[Flow rate (Mt CO2/y)],AA$8)*10^3) ->  | AC16: 9 | AD16: =IF(PipelineInfrastructureCost[[#This Row],[ID]]>Total_pressure_drop*Total_flow_rates*Total_transportation_distances,0,1) -> 1 | AE16: =IF(PipelineInfrastructureCost[[#This Row],[Active]]=0,"",OFFSET(PressureDrop[[#Headers],[Pressure drop (MPa)]],QUOTIENT(PipelineInfrastructureCost[[#This Row],[ID]]-1,Total_flow_rates*Total_transportation_distances)+1,0)) -> 5 | AF16: =IF(PipelineInfrastructureCost[[#This Row],[Active]]=0,"",OFFSET(FlowRates[[#Headers],[Flow rate (Mt CO2/y)]],MOD(QUOTIENT(PipelineInfrastructureCost[[#This Row],[ID]]-1,Total_transportation_distances),Total_flow_rates)+1,0)) -> 0.2 | AG16: =IF(PipelineInfrastructureCost[[#This Row],[Active]]=0,"",IF(Active_scenario_switch="Yes",Selected_distance,OFFSET(TransportationDistances[[#Headers],[Transportation distance (km)]],MOD(PipelineInfrastructureCost[[#This Row],[ID]]-1,Total_transportation_distances)+1,0))) -> 476 | AH16: =IF(PipelineInfrastructureCost[[#This Row],[Active]]=0,"",MAX(IF(TransmissionPipelineCost[Transmission pipeline length (km)]<=PipelineInfrastructureCost[[#This Row],[Transportation distance (km)]],TransmissionPipelineCost[Transmission pipeline length (km)]))) -> 400 | AI16: =IF(PipelineInfrastructureCost[[#This Row],[Active]]=0,"",PipelineInfrastructureCost[[#This Row],[Pressure drop (MPa)]]/PipelineInfrastructureCost[[#This Row],[Transportation distance (km)]]/10^3) -> 1.050420168e-05 | AJ16: =IF(PipelineInfrastructureCost[[#This Row],[Active]]=0,"",MIN(IF(FrictionLossesBySizeFlow[Flow rate (Mt CO2/y)]=PipelineInfrastructureCost[[#This Row],[Flow rate (Mt CO2/y)]],IF(FrictionLossesBySizeFlow[Pressure drop (MPa/m)]<PipelineInfrastructureCost[[#This Row],[Pressure drop (MPa/m)]],FrictionLossesBySizeFlow[Pipeline diameter (inches)])))) -> 8 | AK16: =IF(PipelineInfrastructureCost[[#This Row],[Active]]=0,"",PipelineInfrastructureCost[[#This Row],[Flow rate (Mt CO2/y)]]/Pipe_utilisation_factor*SUMIFS(ConversionFactors[Conversion value],ConversionFactors[Initial unit],"Mt",ConversionFactors[Final unit],"kg")/SUMIFS(ConversionFactors[Conversion value],ConversionFactors[Initial unit],"Year",ConversionFactors[Final unit],"second")/SUMIFS(CO2PhysicalProperties[Density (kg/m3)],CO2PhysicalProperties[Pressure (MPa)],Shoreline_supply_pressure)*(Maximum_pipeline_pressure-Minimum_pipeline_pressure)/Compressor_efficiency) -> 0.2068403686 | AL16: =IF(PipelineInfrastructureCost[[#This Row],[Active]]=0,"",PipelineInfrastructureCost[[#This Row],[Compressor size (MW)]]*CompressorCost[Compressor capex (£/MW)]) -> 775651.3823 | AM16: =IF(PipelineInfrastructureCost[[#This Row],[Active]]=0,"",PipelineInfrastructureCost[[#This Row],[Compressor capex (£)]]*CompressorCost[Opex (share of capex)]) -> 31026.05529 | AN16: =IF(PipelineInfrastructureCost[[#This Row],[Active]]=0,"",PipelineInfrastructureCost[[#This Row],[Compressor size (MW)]]*8760*Pipe_utilisation_factor*10^3*SUMIFS(FuelCost[Cost (£/kWh)],FuelCost[Fuel],CompressionFuel,FuelCost[Scenario],Liquefaction_compression_fuel_cost)) -> 108715.2977 | AO16: =IF(PipelineInfrastructureCost[[#This Row],[Active]]=0,"",SUMIFS(TransmissionPipelineCost[Capex (£/inch/km)],TransmissionPipelineCost[Transmission pipeline length (km)],PipelineInfrastructureCost[[#This Row],[Matching transportation distance (km)]])*PipelineInfrastructureCost[[#This Row],[Pipeline diameter (inches)]]*PipelineInfrastructureCost[[#This Row],[Transportation distance (km)]]) -> 213112980.8 | AP16: =IF(PipelineInfrastructureCost[[#This Row],[Active]]=0,"",SUMIFS(TransmissionPipelineCost[Opex (share of capex)],TransmissionPipelineCost[Transmission pipeline length (km)],PipelineInfrastructureCost[[#This Row],[Matching transportation distance (km)]])*PipelineInfrastructureCost[[#This Row],[Transmission pipeline capex (£)]]) -> 2131129.808 | AQ16: =IF(PipelineInfrastructureCost[[#This Row],[Active]]=0,"",PipelineInfrastructureCost[[#This Row],[Compressor capex (£)]]+PipelineInfrastructureCost[[#This Row],[Transmission pipeline capex (£)]]) -> 213888632.2 | AR16: =IF(PipelineInfrastructureCost[[#This Row],[Active]]=0,"",-PV(Discount_rate,PipelineLifetime,PipelineInfrastructureCost[[#This Row],[Compressor opex (£/y)]]+PipelineInfrastructureCost[[#This Row],[Compressor energy cost (£/y)]]+PipelineInfrastructureCost[[#This Row],[Transmission pipeline opex (£/y)]])) -> 45417423.21 | AS16: =IF(PipelineInfrastructureCost[[#This Row],[Active]]=0,"",SUM(PipelineInfrastructureCost[[#This Row],[Total capex (£/y)]:[Total lifetime discounted opex (£/y)]])/-PV(Discount_rate,PipelineLifetime,PipelineInfrastructureCost[[#This Row],[Flow rate (Mt CO2/y)]])/10^6) -> 64.82651384 | AU16: 8 | AV16: =IF($AU16>Total_transportation_distances,"",IF(Active_scenario_switch="Yes",Selected_distance,OFFSET(TransportationDistances[[#Headers],[Transportation distance (km)]],$AU16,0))) ->  | AW16: =IF(OR($AU16>Total_transportation_distances,AW$6>Total_flow_rates),"",SUMIFS(PipelineInfrastructureCost[Pipeline diameter (inches)],PipelineInfrastructureCost[Pressure drop (MPa)],$AW$4,PipelineInfrastructureCost[Transportation distance (km)],$AV16,PipelineInfrastructureCost[Flow rate (Mt CO2/y)],AW$8)) ->  | AX16: =IF(OR($AU16>Total_transportation_distances,AX$6>Total_flow_rates),"",SUMIFS(PipelineInfrastructureCost[Pipeline diameter (inches)],PipelineInfrastructureCost[Pressure drop (MPa)],$AW$4,PipelineInfrastructureCost[Transportation distance (km)],$AV16,PipelineInfrastructureCost[Flow rate (Mt CO2/y)],AX$8)) ->  | AY16: =IF(OR($AU16>Total_transportation_distances,AY$6>Total_flow_rates),"",SUMIFS(PipelineInfrastructureCost[Pipeline diameter (inches)],PipelineInfrastructureCost[Pressure drop (MPa)],$AW$4,PipelineInfrastructureCost[Transportation distance (km)],$AV16,PipelineInfrastructureCost[Flow rate (Mt CO2/y)],AY$8)) ->  | AZ16: =IF(OR($AU16>Total_transportation_distances,AZ$6>Total_flow_rates),"",SUMIFS(PipelineInfrastructureCost[Pipeline diameter (inches)],PipelineInfrastructureCost[Pressure drop (MPa)],$AW$4,PipelineInfrastructureCost[Transportation distance (km)],$AV16,PipelineInfrastructureCost[Flow rate (Mt CO2/y)],AZ$8)) ->  | BA16: =IF(OR($AU16>Total_transportation_distances,BA$6>Total_flow_rates),"",SUMIFS(PipelineInfrastructureCost[Pipeline diameter (inches)],PipelineInfrastructureCost[Pressure drop (MPa)],$AW$4,PipelineInfrastructureCost[Transportation distance (km)],$AV16,PipelineInfrastructureCost[Flow rate (Mt CO2/y)],BA$8)) ->  | BB16: =IF(OR($AU16>Total_transportation_distances,BB$6>Total_flow_rates),"",SUMIFS(PipelineInfrastructureCost[Pipeline diameter (inches)],PipelineInfrastructureCost[Pressure drop (MPa)],$AW$4,PipelineInfrastructureCost[Transportation distance (km)],$AV16,PipelineInfrastructureCost[Flow rate (Mt CO2/y)],BB$8)) ->  | BC16: =IF(OR($AU16>Total_transportation_distances,BC$6>Total_flow_rates),"",SUMIFS(PipelineInfrastructureCost[Pipeline diameter (inches)],PipelineInfrastructureCost[Pressure drop (MPa)],$AW$4,PipelineInfrastructureCost[Transportation distance (km)],$AV16,PipelineInfrastructureCost[Flow rate (Mt CO2/y)],BC$8)) ->  | BD16: =IF(OR($AU16>Total_transportation_distances,BD$6>Total_flow_rates),"",SUMIFS(PipelineInfrastructureCost[Pipeline diameter (inches)],PipelineInfrastructureCost[Pressure drop (MPa)],$AW$4,PipelineInfrastructureCost[Transportation distance (km)],$AV16,PipelineInfrastructureCost[Flow rate (Mt CO2/y)],BD$8)) ->  | BE16: =IF(OR($AU16>Total_transportation_distances,BE$6>Total_flow_rates),"",SUMIFS(PipelineInfrastructureCost[Pipeline diameter (inches)],PipelineInfrastructureCost[Pressure drop (MPa)],$AW$4,PipelineInfrastructureCost[Transportation distance (km)],$AV16,PipelineInfrastructureCost[Flow rate (Mt CO2/y)],BE$8)) ->  | BF16: =IF(OR($AU16>Total_transportation_distances,BF$6>Total_flow_rates),"",SUMIFS(PipelineInfrastructureCost[Pipeline diameter (inches)],PipelineInfrastructureCost[Pressure drop (MPa)],$AW$4,PipelineInfrastructureCost[Transportation distance (km)],$AV16,PipelineInfrastructureCost[Flow rate (Mt CO2/y)],BF$8)) ->  | BH16: =IF($AU16>Total_transportation_distances,"",IF(Active_scenario_switch="Yes",Selected_distance,OFFSET(TransportationDistances[[#Headers],[Transportation distance (km)]],$AU16,0))) ->  | BI16: =IF(OR($AU16>Total_transportation_distances,AW$6>Total_flow_rates),"",SUMIFS(PipelineInfrastructureCost[Levelised lifetime cost of pipeline (£/t CO2)],PipelineInfrastructureCost[Pressure drop (MPa)],$AW$4,PipelineInfrastructureCost[Transportation distance (km)],$AV16,PipelineInfrastructureCost[Flow rate (Mt CO2/y)],AW$8)) ->  | BJ16: =IF(OR($AU16>Total_transportation_distances,AX$6>Total_flow_rates),"",SUMIFS(PipelineInfrastructureCost[Levelised lifetime cost of pipeline (£/t CO2)],PipelineInfrastructureCost[Pressure drop (MPa)],$AW$4,PipelineInfrastructureCost[Transportation distance (km)],$AV16,PipelineInfrastructureCost[Flow rate (Mt CO2/y)],AX$8)) ->  | BK16: =IF(OR($AU16>Total_transportation_distances,AY$6>Total_flow_rates),"",SUMIFS(PipelineInfrastructureCost[Levelised lifetime cost of pipeline (£/t CO2)],PipelineInfrastructureCost[Pressure drop (MPa)],$AW$4,PipelineInfrastructureCost[Transportation distance (km)],$AV16,PipelineInfrastructureCost[Flow rate (Mt CO2/y)],AY$8)) ->  | BL16: =IF(OR($AU16>Total_transportation_distances,AZ$6>Total_flow_rates),"",SUMIFS(PipelineInfrastructureCost[Levelised lifetime cost of pipeline (£/t CO2)],PipelineInfrastructureCost[Pressure drop (MPa)],$AW$4,PipelineInfrastructureCost[Transportation distance (km)],$AV16,PipelineInfrastructureCost[Flow rate (Mt CO2/y)],AZ$8)) ->  | BM16: =IF(OR($AU16>Total_transportation_distances,BA$6>Total_flow_rates),"",SUMIFS(PipelineInfrastructureCost[Levelised lifetime cost of pipeline (£/t CO2)],PipelineInfrastructureCost[Pressure drop (MPa)],$AW$4,PipelineInfrastructureCost[Transportation distance (km)],$AV16,PipelineInfrastructureCost[Flow rate (Mt CO2/y)],BA$8)) ->  | BN16: =IF(OR($AU16>Total_transportation_distances,BB$6>Total_flow_rates),"",SUMIFS(PipelineInfrastructureCost[Levelised lifetime cost of pipeline (£/t CO2)],PipelineInfrastructureCost[Pressure drop (MPa)],$AW$4,PipelineInfrastructureCost[Transportation distance (km)],$AV16,PipelineInfrastructureCost[Flow rate (Mt CO2/y)],BB$8)) ->  | BO16: =IF(OR($AU16>Total_transportation_distances,BC$6>Total_flow_rates),"",SUMIFS(PipelineInfrastructureCost[Levelised lifetime cost of pipeline (£/t CO2)],PipelineInfrastructureCost[Pressure drop (MPa)],$AW$4,PipelineInfrastructureCost[Transportation distance (km)],$AV16,PipelineInfrastructureCost[Flow rate (Mt CO2/y)],BC$8)) ->  | BP16: =IF(OR($AU16>Total_transportation_distances,BD$6>Total_flow_rates),"",SUMIFS(PipelineInfrastructureCost[Levelised lifetime cost of pipeline (£/t CO2)],PipelineInfrastructureCost[Pressure drop (MPa)],$AW$4,PipelineInfrastructureCost[Transportation distance (km)],$AV16,PipelineInfrastructureCost[Flow rate (Mt CO2/y)],BD$8)) ->  | BQ16: =IF(OR($AU16>Total_transportation_distances,BE$6>Total_flow_rates),"",SUMIFS(PipelineInfrastructureCost[Levelised lifetime cost of pipeline (£/t CO2)],PipelineInfrastructureCost[Pressure drop (MPa)],$AW$4,PipelineInfrastructureCost[Transportation distance (km)],$AV16,PipelineInfrastructureCost[Flow rate (Mt CO2/y)],BE$8)) ->  | BR16: =IF(OR($AU16>Total_transportation_distances,BF$6>Total_flow_rates),"",SUMIFS(PipelineInfrastructureCost[Levelised lifetime cost of pipeline (£/t CO2)],PipelineInfrastructureCost[Pressure drop (MPa)],$AW$4,PipelineInfrastructureCost[Transportation distance (km)],$AV16,PipelineInfrastructureCost[Flow rate (Mt CO2/y)],BF$8)) -> 
I17: 10 | J17: =IF(FrictionLossesBySizeFlow[[#This Row],[ID]]>Total_flow_rates*Total_pipeline_sizes,"",OFFSET(FlowRates[[#Headers],[Flow rate (Mt CO2/y)]],QUOTIENT(FrictionLossesBySizeFlow[[#This Row],[ID]]-1,Total_pipeline_sizes)+1,0)) -> 0.1 | K17: =IF(FrictionLossesBySizeFlow[[#This Row],[ID]]>Total_flow_rates*Total_pipeline_sizes,"",OFFSET(PipelineSizes[[#Headers],[Pipeline diameter (inches)]],MOD(FrictionLossesBySizeFlow[[#This Row],[ID]]-1,Total_pipeline_sizes)+1,0)) -> 22 | L17: =IF(FrictionLossesBySizeFlow[[#This Row],[ID]]>Total_flow_rates*Total_pipeline_sizes,"",4*FrictionLossesBySizeFlow[[#This Row],[Flow rate (Mt CO2/y)]]/Pipe_utilisation_factor*SUMIFS(ConversionFactors[Conversion value],ConversionFactors[Initial unit],"Mt",ConversionFactors[Final unit],"kg")/SUMIFS(ConversionFactors[Conversion value],ConversionFactors[Initial unit],"Year",ConversionFactors[Final unit],"second")/(PI()*SUMIFS(CO2PhysicalProperties[Viscosity (Pas)],CO2PhysicalProperties[Pressure (MPa)],Minimum_pipeline_pressure)*FrictionLossesBySizeFlow[[#This Row],[Pipeline diameter (inches)]]*SUMIFS(ConversionFactors[Conversion value],ConversionFactors[Initial unit],"Inch",ConversionFactors[Final unit],"metre"))) -> 130399.7022 | M17: =IF(FrictionLossesBySizeFlow[[#This Row],[ID]]>Total_flow_rates*Total_pipeline_sizes,"",1.325/(LN(Pipeline_roughness/(3.7*FrictionLossesBySizeFlow[[#This Row],[Pipeline diameter (inches)]]*SUMIFS(ConversionFactors[Conversion value],ConversionFactors[Initial unit],"Inch",ConversionFactors[Final unit],"metre"))+(5.74/FrictionLossesBySizeFlow[[#This Row],[Reynold''s Number]]^0.9)))^2) -> 0.01746713727 | N17: =IF(FrictionLossesBySizeFlow[[#This Row],[ID]]>Total_flow_rates*Total_pipeline_sizes,"",8*FrictionLossesBySizeFlow[[#This Row],[Friction factor]]*(FrictionLossesBySizeFlow[[#This Row],[Flow rate (Mt CO2/y)]]/Pipe_utilisation_factor*SUMIFS(ConversionFactors[Conversion value],ConversionFactors[Initial unit],"Mt",ConversionFactors[Final unit],"kg")/SUMIFS(ConversionFactors[Conversion value],ConversionFactors[Initial unit],"Year",ConversionFactors[Final unit],"second"))^2/(SUMIFS(CO2PhysicalProperties[Density (kg/m3)],CO2PhysicalProperties[Pressure (MPa)],Minimum_pipeline_pressure)*PI()^2*(FrictionLossesBySizeFlow[[#This Row],[Pipeline diameter (inches)]]*SUMIFS(ConversionFactors[Conversion value],ConversionFactors[Initial unit],"Inch",ConversionFactors[Final unit],"metre"))^5)/10^6) -> 5.681165342e-09 | P17: 9 | Q17: =IF($P17>Total_pipeline_sizes,"",OFFSET(PipelineSizes[[#Headers],[Pipeline diameter (inches)]],$P17,0)) -> 20 | R17: =IF(OR($P17>Total_pipeline_sizes,R$6>Total_flow_rates),"",SUMIFS(FrictionLossesBySizeFlow[Pressure drop (MPa/m)],FrictionLossesBySizeFlow[Pipeline diameter (inches)],$Q17,FrictionLossesBySizeFlow[Flow rate (Mt CO2/y)],R$8)*10^3) -> 9.025648071e-06 | S17: =IF(OR($P17>Total_pipeline_sizes,S$6>Total_flow_rates),"",SUMIFS(FrictionLossesBySizeFlow[Pressure drop (MPa/m)],FrictionLossesBySizeFlow[Pipeline diameter (inches)],$Q17,FrictionLossesBySizeFlow[Flow rate (Mt CO2/y)],S$8)*10^3) -> 3.233325081e-05 | T17: =IF(OR($P17>Total_pipeline_sizes,T$6>Total_flow_rates),"",SUMIFS(FrictionLossesBySizeFlow[Pressure drop (MPa/m)],FrictionLossesBySizeFlow[Pipeline diameter (inches)],$Q17,FrictionLossesBySizeFlow[Flow rate (Mt CO2/y)],T$8)*10^3) -> 0.0001804215176 | U17: =IF(OR($P17>Total_pipeline_sizes,U$6>Total_flow_rates),"",SUMIFS(FrictionLossesBySizeFlow[Pressure drop (MPa/m)],FrictionLossesBySizeFlow[Pipeline diameter (inches)],$Q17,FrictionLossesBySizeFlow[Flow rate (Mt CO2/y)],U$8)*10^3) -> 0.0006793851184 | V17: =IF(OR($P17>Total_pipeline_sizes,V$6>Total_flow_rates),"",SUMIFS(FrictionLossesBySizeFlow[Pressure drop (MPa/m)],FrictionLossesBySizeFlow[Pipeline diameter (inches)],$Q17,FrictionLossesBySizeFlow[Flow rate (Mt CO2/y)],V$8)*10^3) -> 0.002608933022 | W17: =IF(OR($P17>Total_pipeline_sizes,W$6>Total_flow_rates),"",SUMIFS(FrictionLossesBySizeFlow[Pressure drop (MPa/m)],FrictionLossesBySizeFlow[Pipeline diameter (inches)],$Q17,FrictionLossesBySizeFlow[Flow rate (Mt CO2/y)],W$8)*10^3) -> 0.01580350292 | X17: =IF(OR($P17>Total_pipeline_sizes,X$6>Total_flow_rates),"",SUMIFS(FrictionLossesBySizeFlow[Pressure drop (MPa/m)],FrictionLossesBySizeFlow[Pipeline diameter (inches)],$Q17,FrictionLossesBySizeFlow[Flow rate (Mt CO2/y)],X$8)*10^3) -> 0.06242357757 | Y17: =IF(OR($P17>Total_pipeline_sizes,Y$6>Total_flow_rates),"",SUMIFS(FrictionLossesBySizeFlow[Pressure drop (MPa/m)],FrictionLossesBySizeFlow[Pipeline diameter (inches)],$Q17,FrictionLossesBySizeFlow[Flow rate (Mt CO2/y)],Y$8)*10^3) ->  | Z17: =IF(OR($P17>Total_pipeline_sizes,Z$6>Total_flow_rates),"",SUMIFS(FrictionLossesBySizeFlow[Pressure drop (MPa/m)],FrictionLossesBySizeFlow[Pipeline diameter (inches)],$Q17,FrictionLossesBySizeFlow[Flow rate (Mt CO2/y)],Z$8)*10^3) ->  | AA17: =IF(OR($P17>Total_pipeline_sizes,AA$6>Total_flow_rates),"",SUMIFS(FrictionLossesBySizeFlow[Pressure drop (MPa/m)],FrictionLossesBySizeFlow[Pipeline diameter (inches)],$Q17,FrictionLossesBySizeFlow[Flow rate (Mt CO2/y)],AA$8)*10^3) ->  | AC17: 10 | AD17: =IF(PipelineInfrastructureCost[[#This Row],[ID]]>Total_pressure_drop*Total_flow_rates*Total_transportation_distances,0,1) -> 1 | AE17: =IF(PipelineInfrastructureCost[[#This Row],[Active]]=0,"",OFFSET(PressureDrop[[#Headers],[Pressure drop (MPa)]],QUOTIENT(PipelineInfrastructureCost[[#This Row],[ID]]-1,Total_flow_rates*Total_transportation_distances)+1,0)) -> 5 | AF17: =IF(PipelineInfrastructureCost[[#This Row],[Active]]=0,"",OFFSET(FlowRates[[#Headers],[Flow rate (Mt CO2/y)]],MOD(QUOTIENT(PipelineInfrastructureCost[[#This Row],[ID]]-1,Total_transportation_distances),Total_flow_rates)+1,0)) -> 0.5 | AG17: =IF(PipelineInfrastructureCost[[#This Row],[Active]]=0,"",IF(Active_scenario_switch="Yes",Selected_distance,OFFSET(TransportationDistances[[#Headers],[Transportation distance (km)]],MOD(PipelineInfrastructureCost[[#This Row],[ID]]-1,Total_transportation_distances)+1,0))) -> 476 | AH17: =IF(PipelineInfrastructureCost[[#This Row],[Active]]=0,"",MAX(IF(TransmissionPipelineCost[Transmission pipeline length (km)]<=PipelineInfrastructureCost[[#This Row],[Transportation distance (km)]],TransmissionPipelineCost[Transmission pipeline length (km)]))) -> 400 | AI17: =IF(PipelineInfrastructureCost[[#This Row],[Active]]=0,"",PipelineInfrastructureCost[[#This Row],[Pressure drop (MPa)]]/PipelineInfrastructureCost[[#This Row],[Transportation distance (km)]]/10^3) -> 1.050420168e-05 | AJ17: =IF(PipelineInfrastructureCost[[#This Row],[Active]]=0,"",MIN(IF(FrictionLossesBySizeFlow[Flow rate (Mt CO2/y)]=PipelineInfrastructureCost[[#This Row],[Flow rate (Mt CO2/y)]],IF(FrictionLossesBySizeFlow[Pressure drop (MPa/m)]<PipelineInfrastructureCost[[#This Row],[Pressure drop (MPa/m)]],FrictionLossesBySizeFlow[Pipeline diameter (inches)])))) -> 10 | AK17: =IF(PipelineInfrastructureCost[[#This Row],[Active]]=0,"",PipelineInfrastructureCost[[#This Row],[Flow rate (Mt CO2/y)]]/Pipe_utilisation_factor*SUMIFS(ConversionFactors[Conversion value],ConversionFactors[Initial unit],"Mt",ConversionFactors[Final unit],"kg")/SUMIFS(ConversionFactors[Conversion value],ConversionFactors[Initial unit],"Year",ConversionFactors[Final unit],"second")/SUMIFS(CO2PhysicalProperties[Density (kg/m3)],CO2PhysicalProperties[Pressure (MPa)],Shoreline_supply_pressure)*(Maximum_pipeline_pressure-Minimum_pipeline_pressure)/Compressor_efficiency) -> 0.5171009215 | AL17: =IF(PipelineInfrastructureCost[[#This Row],[Active]]=0,"",PipelineInfrastructureCost[[#This Row],[Compressor size (MW)]]*CompressorCost[Compressor capex (£/MW)]) -> 1939128.456 | AM17: =IF(PipelineInfrastructureCost[[#This Row],[Active]]=0,"",PipelineInfrastructureCost[[#This Row],[Compressor capex (£)]]*CompressorCost[Opex (share of capex)]) -> 77565.13823 | AN17: =IF(PipelineInfrastructureCost[[#This Row],[Active]]=0,"",PipelineInfrastructureCost[[#This Row],[Compressor size (MW)]]*8760*Pipe_utilisation_factor*10^3*SUMIFS(FuelCost[Cost (£/kWh)],FuelCost[Fuel],CompressionFuel,FuelCost[Scenario],Liquefaction_compression_fuel_cost)) -> 271788.2443 | AO17: =IF(PipelineInfrastructureCost[[#This Row],[Active]]=0,"",SUMIFS(TransmissionPipelineCost[Capex (£/inch/km)],TransmissionPipelineCost[Transmission pipeline length (km)],PipelineInfrastructureCost[[#This Row],[Matching transportation distance (km)]])*PipelineInfrastructureCost[[#This Row],[Pipeline diameter (inches)]]*PipelineInfrastructureCost[[#This Row],[Transportation distance (km)]]) -> 266391226 | AP17: =IF(PipelineInfrastructureCost[[#This Row],[Active]]=0,"",SUMIFS(TransmissionPipelineCost[Opex (share of capex)],TransmissionPipelineCost[Transmission pipeline length (km)],PipelineInfrastructureCost[[#This Row],[Matching transportation distance (km)]])*PipelineInfrastructureCost[[#This Row],[Transmission pipeline capex (£)]]) -> 2663912.26 | AQ17: =IF(PipelineInfrastructureCost[[#This Row],[Active]]=0,"",PipelineInfrastructureCost[[#This Row],[Compressor capex (£)]]+PipelineInfrastructureCost[[#This Row],[Transmission pipeline capex (£)]]) -> 268330354.4 | AR17: =IF(PipelineInfrastructureCost[[#This Row],[Active]]=0,"",-PV(Discount_rate,PipelineLifetime,PipelineInfrastructureCost[[#This Row],[Compressor opex (£/y)]]+PipelineInfrastructureCost[[#This Row],[Compressor energy cost (£/y)]]+PipelineInfrastructureCost[[#This Row],[Transmission pipeline opex (£/y)]])) -> 60265312.84 | AS17: =IF(PipelineInfrastructureCost[[#This Row],[Active]]=0,"",SUM(PipelineInfrastructureCost[[#This Row],[Total capex (£/y)]:[Total lifetime discounted opex (£/y)]])/-PV(Discount_rate,PipelineLifetime,PipelineInfrastructureCost[[#This Row],[Flow rate (Mt CO2/y)]])/10^6) -> 32.85956673 | AU17: 9 | AV17: =IF($AU17>Total_transportation_distances,"",IF(Active_scenario_switch="Yes",Selected_distance,OFFSET(TransportationDistances[[#Headers],[Transportation distance (km)]],$AU17,0))) ->  | AW17: =IF(OR($AU17>Total_transportation_distances,AW$6>Total_flow_rates),"",SUMIFS(PipelineInfrastructureCost[Pipeline diameter (inches)],PipelineInfrastructureCost[Pressure drop (MPa)],$AW$4,PipelineInfrastructureCost[Transportation distance (km)],$AV17,PipelineInfrastructureCost[Flow rate (Mt CO2/y)],AW$8)) ->  | AX17: =IF(OR($AU17>Total_transportation_distances,AX$6>Total_flow_rates),"",SUMIFS(PipelineInfrastructureCost[Pipeline diameter (inches)],PipelineInfrastructureCost[Pressure drop (MPa)],$AW$4,PipelineInfrastructureCost[Transportation distance (km)],$AV17,PipelineInfrastructureCost[Flow rate (Mt CO2/y)],AX$8)) ->  | AY17: =IF(OR($AU17>Total_transportation_distances,AY$6>Total_flow_rates),"",SUMIFS(PipelineInfrastructureCost[Pipeline diameter (inches)],PipelineInfrastructureCost[Pressure drop (MPa)],$AW$4,PipelineInfrastructureCost[Transportation distance (km)],$AV17,PipelineInfrastructureCost[Flow rate (Mt CO2/y)],AY$8)) ->  | AZ17: =IF(OR($AU17>Total_transportation_distances,AZ$6>Total_flow_rates),"",SUMIFS(PipelineInfrastructureCost[Pipeline diameter (inches)],PipelineInfrastructureCost[Pressure drop (MPa)],$AW$4,PipelineInfrastructureCost[Transportation distance (km)],$AV17,PipelineInfrastructureCost[Flow rate (Mt CO2/y)],AZ$8)) ->  | BA17: =IF(OR($AU17>Total_transportation_distances,BA$6>Total_flow_rates),"",SUMIFS(PipelineInfrastructureCost[Pipeline diameter (inches)],PipelineInfrastructureCost[Pressure drop (MPa)],$AW$4,PipelineInfrastructureCost[Transportation distance (km)],$AV17,PipelineInfrastructureCost[Flow rate (Mt CO2/y)],BA$8)) ->  | BB17: =IF(OR($AU17>Total_transportation_distances,BB$6>Total_flow_rates),"",SUMIFS(PipelineInfrastructureCost[Pipeline diameter (inches)],PipelineInfrastructureCost[Pressure drop (MPa)],$AW$4,PipelineInfrastructureCost[Transportation distance (km)],$AV17,PipelineInfrastructureCost[Flow rate (Mt CO2/y)],BB$8)) ->  | BC17: =IF(OR($AU17>Total_transportation_distances,BC$6>Total_flow_rates),"",SUMIFS(PipelineInfrastructureCost[Pipeline diameter (inches)],PipelineInfrastructureCost[Pressure drop (MPa)],$AW$4,PipelineInfrastructureCost[Transportation distance (km)],$AV17,PipelineInfrastructureCost[Flow rate (Mt CO2/y)],BC$8)) ->  | BD17: =IF(OR($AU17>Total_transportation_distances,BD$6>Total_flow_rates),"",SUMIFS(PipelineInfrastructureCost[Pipeline diameter (inches)],PipelineInfrastructureCost[Pressure drop (MPa)],$AW$4,PipelineInfrastructureCost[Transportation distance (km)],$AV17,PipelineInfrastructureCost[Flow rate (Mt CO2/y)],BD$8)) ->  | BE17: =IF(OR($AU17>Total_transportation_distances,BE$6>Total_flow_rates),"",SUMIFS(PipelineInfrastructureCost[Pipeline diameter (inches)],PipelineInfrastructureCost[Pressure drop (MPa)],$AW$4,PipelineInfrastructureCost[Transportation distance (km)],$AV17,PipelineInfrastructureCost[Flow rate (Mt CO2/y)],BE$8)) ->  | BF17: =IF(OR($AU17>Total_transportation_distances,BF$6>Total_flow_rates),"",SUMIFS(PipelineInfrastructureCost[Pipeline diameter (inches)],PipelineInfrastructureCost[Pressure drop (MPa)],$AW$4,PipelineInfrastructureCost[Transportation distance (km)],$AV17,PipelineInfrastructureCost[Flow rate (Mt CO2/y)],BF$8)) ->  | BH17: =IF($AU17>Total_transportation_distances,"",IF(Active_scenario_switch="Yes",Selected_distance,OFFSET(TransportationDistances[[#Headers],[Transportation distance (km)]],$AU17,0))) ->  | BI17: =IF(OR($AU17>Total_transportation_distances,AW$6>Total_flow_rates),"",SUMIFS(PipelineInfrastructureCost[Levelised lifetime cost of pipeline (£/t CO2)],PipelineInfrastructureCost[Pressure drop (MPa)],$AW$4,PipelineInfrastructureCost[Transportation distance (km)],$AV17,PipelineInfrastructureCost[Flow rate (Mt CO2/y)],AW$8)) ->  | BJ17: =IF(OR($AU17>Total_transportation_distances,AX$6>Total_flow_rates),"",SUMIFS(PipelineInfrastructureCost[Levelised lifetime cost of pipeline (£/t CO2)],PipelineInfrastructureCost[Pressure drop (MPa)],$AW$4,PipelineInfrastructureCost[Transportation distance (km)],$AV17,PipelineInfrastructureCost[Flow rate (Mt CO2/y)],AX$8)) ->  | BK17: =IF(OR($AU17>Total_transportation_distances,AY$6>Total_flow_rates),"",SUMIFS(PipelineInfrastructureCost[Levelised lifetime cost of pipeline (£/t CO2)],PipelineInfrastructureCost[Pressure drop (MPa)],$AW$4,PipelineInfrastructureCost[Transportation distance (km)],$AV17,PipelineInfrastructureCost[Flow rate (Mt CO2/y)],AY$8)) ->  | BL17: =IF(OR($AU17>Total_transportation_distances,AZ$6>Total_flow_rates),"",SUMIFS(PipelineInfrastructureCost[Levelised lifetime cost of pipeline (£/t CO2)],PipelineInfrastructureCost[Pressure drop (MPa)],$AW$4,PipelineInfrastructureCost[Transportation distance (km)],$AV17,PipelineInfrastructureCost[Flow rate (Mt CO2/y)],AZ$8)) ->  | BM17: =IF(OR($AU17>Total_transportation_distances,BA$6>Total_flow_rates),"",SUMIFS(PipelineInfrastructureCost[Levelised lifetime cost of pipeline (£/t CO2)],PipelineInfrastructureCost[Pressure drop (MPa)],$AW$4,PipelineInfrastructureCost[Transportation distance (km)],$AV17,PipelineInfrastructureCost[Flow rate (Mt CO2/y)],BA$8)) ->  | BN17: =IF(OR($AU17>Total_transportation_distances,BB$6>Total_flow_rates),"",SUMIFS(PipelineInfrastructureCost[Levelised lifetime cost of pipeline (£/t CO2)],PipelineInfrastructureCost[Pressure drop (MPa)],$AW$4,PipelineInfrastructureCost[Transportation distance (km)],$AV17,PipelineInfrastructureCost[Flow rate (Mt CO2/y)],BB$8)) ->  | BO17: =IF(OR($AU17>Total_transportation_distances,BC$6>Total_flow_rates),"",SUMIFS(PipelineInfrastructureCost[Levelised lifetime cost of pipeline (£/t CO2)],PipelineInfrastructureCost[Pressure drop (MPa)],$AW$4,PipelineInfrastructureCost[Transportation distance (km)],$AV17,PipelineInfrastructureCost[Flow rate (Mt CO2/y)],BC$8)) ->  | BP17: =IF(OR($AU17>Total_transportation_distances,BD$6>Total_flow_rates),"",SUMIFS(PipelineInfrastructureCost[Levelised lifetime cost of pipeline (£/t CO2)],PipelineInfrastructureCost[Pressure drop (MPa)],$AW$4,PipelineInfrastructureCost[Transportation distance (km)],$AV17,PipelineInfrastructureCost[Flow rate (Mt CO2/y)],BD$8)) ->  | BQ17: =IF(OR($AU17>Total_transportation_distances,BE$6>Total_flow_rates),"",SUMIFS(PipelineInfrastructureCost[Levelised lifetime cost of pipeline (£/t CO2)],PipelineInfrastructureCost[Pressure drop (MPa)],$AW$4,PipelineInfrastructureCost[Transportation distance (km)],$AV17,PipelineInfrastructureCost[Flow rate (Mt CO2/y)],BE$8)) ->  | BR17: =IF(OR($AU17>Total_transportation_distances,BF$6>Total_flow_rates),"",SUMIFS(PipelineInfrastructureCost[Levelised lifetime cost of pipeline (£/t CO2)],PipelineInfrastructureCost[Pressure drop (MPa)],$AW$4,PipelineInfrastructureCost[Transportation distance (km)],$AV17,PipelineInfrastructureCost[Flow rate (Mt CO2/y)],BF$8)) -> 
I18: 11 | J18: =IF(FrictionLossesBySizeFlow[[#This Row],[ID]]>Total_flow_rates*Total_pipeline_sizes,"",OFFSET(FlowRates[[#Headers],[Flow rate (Mt CO2/y)]],QUOTIENT(FrictionLossesBySizeFlow[[#This Row],[ID]]-1,Total_pipeline_sizes)+1,0)) -> 0.1 | K18: =IF(FrictionLossesBySizeFlow[[#This Row],[ID]]>Total_flow_rates*Total_pipeline_sizes,"",OFFSET(PipelineSizes[[#Headers],[Pipeline diameter (inches)]],MOD(FrictionLossesBySizeFlow[[#This Row],[ID]]-1,Total_pipeline_sizes)+1,0)) -> 24 | L18: =IF(FrictionLossesBySizeFlow[[#This Row],[ID]]>Total_flow_rates*Total_pipeline_sizes,"",4*FrictionLossesBySizeFlow[[#This Row],[Flow rate (Mt CO2/y)]]/Pipe_utilisation_factor*SUMIFS(ConversionFactors[Conversion value],ConversionFactors[Initial unit],"Mt",ConversionFactors[Final unit],"kg")/SUMIFS(ConversionFactors[Conversion value],ConversionFactors[Initial unit],"Year",ConversionFactors[Final unit],"second")/(PI()*SUMIFS(CO2PhysicalProperties[Viscosity (Pas)],CO2PhysicalProperties[Pressure (MPa)],Minimum_pipeline_pressure)*FrictionLossesBySizeFlow[[#This Row],[Pipeline diameter (inches)]]*SUMIFS(ConversionFactors[Conversion value],ConversionFactors[Initial unit],"Inch",ConversionFactors[Final unit],"metre"))) -> 119533.0604 | M18: =IF(FrictionLossesBySizeFlow[[#This Row],[ID]]>Total_flow_rates*Total_pipeline_sizes,"",1.325/(LN(Pipeline_roughness/(3.7*FrictionLossesBySizeFlow[[#This Row],[Pipeline diameter (inches)]]*SUMIFS(ConversionFactors[Conversion value],ConversionFactors[Initial unit],"Inch",ConversionFactors[Final unit],"metre"))+(5.74/FrictionLossesBySizeFlow[[#This Row],[Reynold''s Number]]^0.9)))^2) -> 0.0177010232 | N18: =IF(FrictionLossesBySizeFlow[[#This Row],[ID]]>Total_flow_rates*Total_pipeline_sizes,"",8*FrictionLossesBySizeFlow[[#This Row],[Friction factor]]*(FrictionLossesBySizeFlow[[#This Row],[Flow rate (Mt CO2/y)]]/Pipe_utilisation_factor*SUMIFS(ConversionFactors[Conversion value],ConversionFactors[Initial unit],"Mt",ConversionFactors[Final unit],"kg")/SUMIFS(ConversionFactors[Conversion value],ConversionFactors[Initial unit],"Year",ConversionFactors[Final unit],"second"))^2/(SUMIFS(CO2PhysicalProperties[Density (kg/m3)],CO2PhysicalProperties[Pressure (MPa)],Minimum_pipeline_pressure)*PI()^2*(FrictionLossesBySizeFlow[[#This Row],[Pipeline diameter (inches)]]*SUMIFS(ConversionFactors[Conversion value],ConversionFactors[Initial unit],"Inch",ConversionFactors[Final unit],"metre"))^5)/10^6) -> 3.726243768e-09 | P18: 10 | Q18: =IF($P18>Total_pipeline_sizes,"",OFFSET(PipelineSizes[[#Headers],[Pipeline diameter (inches)]],$P18,0)) -> 22 | R18: =IF(OR($P18>Total_pipeline_sizes,R$6>Total_flow_rates),"",SUMIFS(FrictionLossesBySizeFlow[Pressure drop (MPa/m)],FrictionLossesBySizeFlow[Pipeline diameter (inches)],$Q18,FrictionLossesBySizeFlow[Flow rate (Mt CO2/y)],R$8)*10^3) -> 5.681165342e-06 | S18: =IF(OR($P18>Total_pipeline_sizes,S$6>Total_flow_rates),"",SUMIFS(FrictionLossesBySizeFlow[Pressure drop (MPa/m)],FrictionLossesBySizeFlow[Pipeline diameter (inches)],$Q18,FrictionLossesBySizeFlow[Flow rate (Mt CO2/y)],S$8)*10^3) -> 2.026120709e-05 | T18: =IF(OR($P18>Total_pipeline_sizes,T$6>Total_flow_rates),"",SUMIFS(FrictionLossesBySizeFlow[Pressure drop (MPa/m)],FrictionLossesBySizeFlow[Pipeline diameter (inches)],$Q18,FrictionLossesBySizeFlow[Flow rate (Mt CO2/y)],T$8)*10^3) -> 0.000112256953 | U18: =IF(OR($P18>Total_pipeline_sizes,U$6>Total_flow_rates),"",SUMIFS(FrictionLossesBySizeFlow[Pressure drop (MPa/m)],FrictionLossesBySizeFlow[Pipeline diameter (inches)],$Q18,FrictionLossesBySizeFlow[Flow rate (Mt CO2/y)],U$8)*10^3) -> 0.0004203486902 | V18: =IF(OR($P18>Total_pipeline_sizes,V$6>Total_flow_rates),"",SUMIFS(FrictionLossesBySizeFlow[Pressure drop (MPa/m)],FrictionLossesBySizeFlow[Pipeline diameter (inches)],$Q18,FrictionLossesBySizeFlow[Flow rate (Mt CO2/y)],V$8)*10^3) -> 0.001606333454 | W18: =IF(OR($P18>Total_pipeline_sizes,W$6>Total_flow_rates),"",SUMIFS(FrictionLossesBySizeFlow[Pressure drop (MPa/m)],FrictionLossesBySizeFlow[Pipeline diameter (inches)],$Q18,FrictionLossesBySizeFlow[Flow rate (Mt CO2/y)],W$8)*10^3) -> 0.009686038159 | X18: =IF(OR($P18>Total_pipeline_sizes,X$6>Total_flow_rates),"",SUMIFS(FrictionLossesBySizeFlow[Pressure drop (MPa/m)],FrictionLossesBySizeFlow[Pipeline diameter (inches)],$Q18,FrictionLossesBySizeFlow[Flow rate (Mt CO2/y)],X$8)*10^3) -> 0.03818033736 | Y18: =IF(OR($P18>Total_pipeline_sizes,Y$6>Total_flow_rates),"",SUMIFS(FrictionLossesBySizeFlow[Pressure drop (MPa/m)],FrictionLossesBySizeFlow[Pipeline diameter (inches)],$Q18,FrictionLossesBySizeFlow[Flow rate (Mt CO2/y)],Y$8)*10^3) ->  | Z18: =IF(OR($P18>Total_pipeline_sizes,Z$6>Total_flow_rates),"",SUMIFS(FrictionLossesBySizeFlow[Pressure drop (MPa/m)],FrictionLossesBySizeFlow[Pipeline diameter (inches)],$Q18,FrictionLossesBySizeFlow[Flow rate (Mt CO2/y)],Z$8)*10^3) ->  | AA18: =IF(OR($P18>Total_pipeline_sizes,AA$6>Total_flow_rates),"",SUMIFS(FrictionLossesBySizeFlow[Pressure drop (MPa/m)],FrictionLossesBySizeFlow[Pipeline diameter (inches)],$Q18,FrictionLossesBySizeFlow[Flow rate (Mt CO2/y)],AA$8)*10^3) ->  | AC18: 11 | AD18: =IF(PipelineInfrastructureCost[[#This Row],[ID]]>Total_pressure_drop*Total_flow_rates*Total_transportation_distances,0,1) -> 1 | AE18: =IF(PipelineInfrastructureCost[[#This Row],[Active]]=0,"",OFFSET(PressureDrop[[#Headers],[Pressure drop (MPa)]],QUOTIENT(PipelineInfrastructureCost[[#This Row],[ID]]-1,Total_flow_rates*Total_transportation_distances)+1,0)) -> 5 | AF18: =IF(PipelineInfrastructureCost[[#This Row],[Active]]=0,"",OFFSET(FlowRates[[#Headers],[Flow rate (Mt CO2/y)]],MOD(QUOTIENT(PipelineInfrastructureCost[[#This Row],[ID]]-1,Total_transportation_distances),Total_flow_rates)+1,0)) -> 1 | AG18: =IF(PipelineInfrastructureCost[[#This Row],[Active]]=0,"",IF(Active_scenario_switch="Yes",Selected_distance,OFFSET(TransportationDistances[[#Headers],[Transportation distance (km)]],MOD(PipelineInfrastructureCost[[#This Row],[ID]]-1,Total_transportation_distances)+1,0))) -> 476 | AH18: =IF(PipelineInfrastructureCost[[#This Row],[Active]]=0,"",MAX(IF(TransmissionPipelineCost[Transmission pipeline length (km)]<=PipelineInfrastructureCost[[#This Row],[Transportation distance (km)]],TransmissionPipelineCost[Transmission pipeline length (km)]))) -> 400 | AI18: =IF(PipelineInfrastructureCost[[#This Row],[Active]]=0,"",PipelineInfrastructureCost[[#This Row],[Pressure drop (MPa)]]/PipelineInfrastructureCost[[#This Row],[Transportation distance (km)]]/10^3) -> 1.050420168e-05 | AJ18: =IF(PipelineInfrastructureCost[[#This Row],[Active]]=0,"",MIN(IF(FrictionLossesBySizeFlow[Flow rate (Mt CO2/y)]=PipelineInfrastructureCost[[#This Row],[Flow rate (Mt CO2/y)]],IF(FrictionLossesBySizeFlow[Pressure drop (MPa/m)]<PipelineInfrastructureCost[[#This Row],[Pressure drop (MPa/m)]],FrictionLossesBySizeFlow[Pipeline diameter (inches)])))) -> 12 | AK18: =IF(PipelineInfrastructureCost[[#This Row],[Active]]=0,"",PipelineInfrastructureCost[[#This Row],[Flow rate (Mt CO2/y)]]/Pipe_utilisation_factor*SUMIFS(ConversionFactors[Conversion value],ConversionFactors[Initial unit],"Mt",ConversionFactors[Final unit],"kg")/SUMIFS(ConversionFactors[Conversion value],ConversionFactors[Initial unit],"Year",ConversionFactors[Final unit],"second")/SUMIFS(CO2PhysicalProperties[Density (kg/m3)],CO2PhysicalProperties[Pressure (MPa)],Shoreline_supply_pressure)*(Maximum_pipeline_pressure-Minimum_pipeline_pressure)/Compressor_efficiency) -> 1.034201843 | AL18: =IF(PipelineInfrastructureCost[[#This Row],[Active]]=0,"",PipelineInfrastructureCost[[#This Row],[Compressor size (MW)]]*CompressorCost[Compressor capex (£/MW)]) -> 3878256.911 | AM18: =IF(PipelineInfrastructureCost[[#This Row],[Active]]=0,"",PipelineInfrastructureCost[[#This Row],[Compressor capex (£)]]*CompressorCost[Opex (share of capex)]) -> 155130.2765 | AN18: =IF(PipelineInfrastructureCost[[#This Row],[Active]]=0,"",PipelineInfrastructureCost[[#This Row],[Compressor size (MW)]]*8760*Pipe_utilisation_factor*10^3*SUMIFS(FuelCost[Cost (£/kWh)],FuelCost[Fuel],CompressionFuel,FuelCost[Scenario],Liquefaction_compression_fuel_cost)) -> 543576.4887 | AO18: =IF(PipelineInfrastructureCost[[#This Row],[Active]]=0,"",SUMIFS(TransmissionPipelineCost[Capex (£/inch/km)],TransmissionPipelineCost[Transmission pipeline length (km)],PipelineInfrastructureCost[[#This Row],[Matching transportation distance (km)]])*PipelineInfrastructureCost[[#This Row],[Pipeline diameter (inches)]]*PipelineInfrastructureCost[[#This Row],[Transportation distance (km)]]) -> 319669471.2 | AP18: =IF(PipelineInfrastructureCost[[#This Row],[Active]]=0,"",SUMIFS(TransmissionPipelineCost[Opex (share of capex)],TransmissionPipelineCost[Transmission pipeline length (km)],PipelineInfrastructureCost[[#This Row],[Matching transportation distance (km)]])*PipelineInfrastructureCost[[#This Row],[Transmission pipeline capex (£)]]) -> 3196694.712 | AQ18: =IF(PipelineInfrastructureCost[[#This Row],[Active]]=0,"",PipelineInfrastructureCost[[#This Row],[Compressor capex (£)]]+PipelineInfrastructureCost[[#This Row],[Transmission pipeline capex (£)]]) -> 323547728.1 | AR18: =IF(PipelineInfrastructureCost[[#This Row],[Active]]=0,"",-PV(Discount_rate,PipelineLifetime,PipelineInfrastructureCost[[#This Row],[Compressor opex (£/y)]]+PipelineInfrastructureCost[[#This Row],[Compressor energy cost (£/y)]]+PipelineInfrastructureCost[[#This Row],[Transmission pipeline opex (£/y)]])) -> 77908029.53 | AS18: =IF(PipelineInfrastructureCost[[#This Row],[Active]]=0,"",SUM(PipelineInfrastructureCost[[#This Row],[Total capex (£/y)]:[Total lifetime discounted opex (£/y)]])/-PV(Discount_rate,PipelineLifetime,PipelineInfrastructureCost[[#This Row],[Flow rate (Mt CO2/y)]])/10^6) -> 20.07278788 | AU18: 10 | AV18: =IF($AU18>Total_transportation_distances,"",IF(Active_scenario_switch="Yes",Selected_distance,OFFSET(TransportationDistances[[#Headers],[Transportation distance (km)]],$AU18,0))) ->  | AW18: =IF(OR($AU18>Total_transportation_distances,AW$6>Total_flow_rates),"",SUMIFS(PipelineInfrastructureCost[Pipeline diameter (inches)],PipelineInfrastructureCost[Pressure drop (MPa)],$AW$4,PipelineInfrastructureCost[Transportation distance (km)],$AV18,PipelineInfrastructureCost[Flow rate (Mt CO2/y)],AW$8)) ->  | AX18: =IF(OR($AU18>Total_transportation_distances,AX$6>Total_flow_rates),"",SUMIFS(PipelineInfrastructureCost[Pipeline diameter (inches)],PipelineInfrastructureCost[Pressure drop (MPa)],$AW$4,PipelineInfrastructureCost[Transportation distance (km)],$AV18,PipelineInfrastructureCost[Flow rate (Mt CO2/y)],AX$8)) ->  | AY18: =IF(OR($AU18>Total_transportation_distances,AY$6>Total_flow_rates),"",SUMIFS(PipelineInfrastructureCost[Pipeline diameter (inches)],PipelineInfrastructureCost[Pressure drop (MPa)],$AW$4,PipelineInfrastructureCost[Transportation distance (km)],$AV18,PipelineInfrastructureCost[Flow rate (Mt CO2/y)],AY$8)) ->  | AZ18: =IF(OR($AU18>Total_transportation_distances,AZ$6>Total_flow_rates),"",SUMIFS(PipelineInfrastructureCost[Pipeline diameter (inches)],PipelineInfrastructureCost[Pressure drop (MPa)],$AW$4,PipelineInfrastructureCost[Transportation distance (km)],$AV18,PipelineInfrastructureCost[Flow rate (Mt CO2/y)],AZ$8)) ->  | BA18: =IF(OR($AU18>Total_transportation_distances,BA$6>Total_flow_rates),"",SUMIFS(PipelineInfrastructureCost[Pipeline diameter (inches)],PipelineInfrastructureCost[Pressure drop (MPa)],$AW$4,PipelineInfrastructureCost[Transportation distance (km)],$AV18,PipelineInfrastructureCost[Flow rate (Mt CO2/y)],BA$8)) ->  | BB18: =IF(OR($AU18>Total_transportation_distances,BB$6>Total_flow_rates),"",SUMIFS(PipelineInfrastructureCost[Pipeline diameter (inches)],PipelineInfrastructureCost[Pressure drop (MPa)],$AW$4,PipelineInfrastructureCost[Transportation distance (km)],$AV18,PipelineInfrastructureCost[Flow rate (Mt CO2/y)],BB$8)) ->  | BC18: =IF(OR($AU18>Total_transportation_distances,BC$6>Total_flow_rates),"",SUMIFS(PipelineInfrastructureCost[Pipeline diameter (inches)],PipelineInfrastructureCost[Pressure drop (MPa)],$AW$4,PipelineInfrastructureCost[Transportation distance (km)],$AV18,PipelineInfrastructureCost[Flow rate (Mt CO2/y)],BC$8)) ->  | BD18: =IF(OR($AU18>Total_transportation_distances,BD$6>Total_flow_rates),"",SUMIFS(PipelineInfrastructureCost[Pipeline diameter (inches)],PipelineInfrastructureCost[Pressure drop (MPa)],$AW$4,PipelineInfrastructureCost[Transportation distance (km)],$AV18,PipelineInfrastructureCost[Flow rate (Mt CO2/y)],BD$8)) ->  | BE18: =IF(OR($AU18>Total_transportation_distances,BE$6>Total_flow_rates),"",SUMIFS(PipelineInfrastructureCost[Pipeline diameter (inches)],PipelineInfrastructureCost[Pressure drop (MPa)],$AW$4,PipelineInfrastructureCost[Transportation distance (km)],$AV18,PipelineInfrastructureCost[Flow rate (Mt CO2/y)],BE$8)) ->  | BF18: =IF(OR($AU18>Total_transportation_distances,BF$6>Total_flow_rates),"",SUMIFS(PipelineInfrastructureCost[Pipeline diameter (inches)],PipelineInfrastructureCost[Pressure drop (MPa)],$AW$4,PipelineInfrastructureCost[Transportation distance (km)],$AV18,PipelineInfrastructureCost[Flow rate (Mt CO2/y)],BF$8)) ->  | BH18: =IF($AU18>Total_transportation_distances,"",IF(Active_scenario_switch="Yes",Selected_distance,OFFSET(TransportationDistances[[#Headers],[Transportation distance (km)]],$AU18,0))) ->  | BI18: =IF(OR($AU18>Total_transportation_distances,AW$6>Total_flow_rates),"",SUMIFS(PipelineInfrastructureCost[Levelised lifetime cost of pipeline (£/t CO2)],PipelineInfrastructureCost[Pressure drop (MPa)],$AW$4,PipelineInfrastructureCost[Transportation distance (km)],$AV18,PipelineInfrastructureCost[Flow rate (Mt CO2/y)],AW$8)) ->  | BJ18: =IF(OR($AU18>Total_transportation_distances,AX$6>Total_flow_rates),"",SUMIFS(PipelineInfrastructureCost[Levelised lifetime cost of pipeline (£/t CO2)],PipelineInfrastructureCost[Pressure drop (MPa)],$AW$4,PipelineInfrastructureCost[Transportation distance (km)],$AV18,PipelineInfrastructureCost[Flow rate (Mt CO2/y)],AX$8)) ->  | BK18: =IF(OR($AU18>Total_transportation_distances,AY$6>Total_flow_rates),"",SUMIFS(PipelineInfrastructureCost[Levelised lifetime cost of pipeline (£/t CO2)],PipelineInfrastructureCost[Pressure drop (MPa)],$AW$4,PipelineInfrastructureCost[Transportation distance (km)],$AV18,PipelineInfrastructureCost[Flow rate (Mt CO2/y)],AY$8)) ->  | BL18: =IF(OR($AU18>Total_transportation_distances,AZ$6>Total_flow_rates),"",SUMIFS(PipelineInfrastructureCost[Levelised lifetime cost of pipeline (£/t CO2)],PipelineInfrastructureCost[Pressure drop (MPa)],$AW$4,PipelineInfrastructureCost[Transportation distance (km)],$AV18,PipelineInfrastructureCost[Flow rate (Mt CO2/y)],AZ$8)) ->  | BM18: =IF(OR($AU18>Total_transportation_distances,BA$6>Total_flow_rates),"",SUMIFS(PipelineInfrastructureCost[Levelised lifetime cost of pipeline (£/t CO2)],PipelineInfrastructureCost[Pressure drop (MPa)],$AW$4,PipelineInfrastructureCost[Transportation distance (km)],$AV18,PipelineInfrastructureCost[Flow rate (Mt CO2/y)],BA$8)) ->  | BN18: =IF(OR($AU18>Total_transportation_distances,BB$6>Total_flow_rates),"",SUMIFS(PipelineInfrastructureCost[Levelised lifetime cost of pipeline (£/t CO2)],PipelineInfrastructureCost[Pressure drop (MPa)],$AW$4,PipelineInfrastructureCost[Transportation distance (km)],$AV18,PipelineInfrastructureCost[Flow rate (Mt CO2/y)],BB$8)) ->  | BO18: =IF(OR($AU18>Total_transportation_distances,BC$6>Total_flow_rates),"",SUMIFS(PipelineInfrastructureCost[Levelised lifetime cost of pipeline (£/t CO2)],PipelineInfrastructureCost[Pressure drop (MPa)],$AW$4,PipelineInfrastructureCost[Transportation distance (km)],$AV18,PipelineInfrastructureCost[Flow rate (Mt CO2/y)],BC$8)) ->  | BP18: =IF(OR($AU18>Total_transportation_distances,BD$6>Total_flow_rates),"",SUMIFS(PipelineInfrastructureCost[Levelised lifetime cost of pipeline (£/t CO2)],PipelineInfrastructureCost[Pressure drop (MPa)],$AW$4,PipelineInfrastructureCost[Transportation distance (km)],$AV18,PipelineInfrastructureCost[Flow rate (Mt CO2/y)],BD$8)) ->  | BQ18: =IF(OR($AU18>Total_transportation_distances,BE$6>Total_flow_rates),"",SUMIFS(PipelineInfrastructureCost[Levelised lifetime cost of pipeline (£/t CO2)],PipelineInfrastructureCost[Pressure drop (MPa)],$AW$4,PipelineInfrastructureCost[Transportation distance (km)],$AV18,PipelineInfrastructureCost[Flow rate (Mt CO2/y)],BE$8)) ->  | BR18: =IF(OR($AU18>Total_transportation_distances,BF$6>Total_flow_rates),"",SUMIFS(PipelineInfrastructureCost[Levelised lifetime cost of pipeline (£/t CO2)],PipelineInfrastructureCost[Pressure drop (MPa)],$AW$4,PipelineInfrastructureCost[Transportation distance (km)],$AV18,PipelineInfrastructureCost[Flow rate (Mt CO2/y)],BF$8)) -> 
I19: 12 | J19: =IF(FrictionLossesBySizeFlow[[#This Row],[ID]]>Total_flow_rates*Total_pipeline_sizes,"",OFFSET(FlowRates[[#Headers],[Flow rate (Mt CO2/y)]],QUOTIENT(FrictionLossesBySizeFlow[[#This Row],[ID]]-1,Total_pipeline_sizes)+1,0)) -> 0.1 | K19: =IF(FrictionLossesBySizeFlow[[#This Row],[ID]]>Total_flow_rates*Total_pipeline_sizes,"",OFFSET(PipelineSizes[[#Headers],[Pipeline diameter (inches)]],MOD(FrictionLossesBySizeFlow[[#This Row],[ID]]-1,Total_pipeline_sizes)+1,0)) -> 26 | L19: =IF(FrictionLossesBySizeFlow[[#This Row],[ID]]>Total_flow_rates*Total_pipeline_sizes,"",4*FrictionLossesBySizeFlow[[#This Row],[Flow rate (Mt CO2/y)]]/Pipe_utilisation_factor*SUMIFS(ConversionFactors[Conversion value],ConversionFactors[Initial unit],"Mt",ConversionFactors[Final unit],"kg")/SUMIFS(ConversionFactors[Conversion value],ConversionFactors[Initial unit],"Year",ConversionFactors[Final unit],"second")/(PI()*SUMIFS(CO2PhysicalProperties[Viscosity (Pas)],CO2PhysicalProperties[Pressure (MPa)],Minimum_pipeline_pressure)*FrictionLossesBySizeFlow[[#This Row],[Pipeline diameter (inches)]]*SUMIFS(ConversionFactors[Conversion value],ConversionFactors[Initial unit],"Inch",ConversionFactors[Final unit],"metre"))) -> 110338.2096 | M19: =IF(FrictionLossesBySizeFlow[[#This Row],[ID]]>Total_flow_rates*Total_pipeline_sizes,"",1.325/(LN(Pipeline_roughness/(3.7*FrictionLossesBySizeFlow[[#This Row],[Pipeline diameter (inches)]]*SUMIFS(ConversionFactors[Conversion value],ConversionFactors[Initial unit],"Inch",ConversionFactors[Final unit],"metre"))+(5.74/FrictionLossesBySizeFlow[[#This Row],[Reynold''s Number]]^0.9)))^2) -> 0.01793068773 | N19: =IF(FrictionLossesBySizeFlow[[#This Row],[ID]]>Total_flow_rates*Total_pipeline_sizes,"",8*FrictionLossesBySizeFlow[[#This Row],[Friction factor]]*(FrictionLossesBySizeFlow[[#This Row],[Flow rate (Mt CO2/y)]]/Pipe_utilisation_factor*SUMIFS(ConversionFactors[Conversion value],ConversionFactors[Initial unit],"Mt",ConversionFactors[Final unit],"kg")/SUMIFS(ConversionFactors[Conversion value],ConversionFactors[Initial unit],"Year",ConversionFactors[Final unit],"second"))^2/(SUMIFS(CO2PhysicalProperties[Density (kg/m3)],CO2PhysicalProperties[Pressure (MPa)],Minimum_pipeline_pressure)*PI()^2*(FrictionLossesBySizeFlow[[#This Row],[Pipeline diameter (inches)]]*SUMIFS(ConversionFactors[Conversion value],ConversionFactors[Initial unit],"Inch",ConversionFactors[Final unit],"metre"))^5)/10^6) -> 2.529643421e-09 | P19: 11 | Q19: =IF($P19>Total_pipeline_sizes,"",OFFSET(PipelineSizes[[#Headers],[Pipeline diameter (inches)]],$P19,0)) -> 24 | R19: =IF(OR($P19>Total_pipeline_sizes,R$6>Total_flow_rates),"",SUMIFS(FrictionLossesBySizeFlow[Pressure drop (MPa/m)],FrictionLossesBySizeFlow[Pipeline diameter (inches)],$Q19,FrictionLossesBySizeFlow[Flow rate (Mt CO2/y)],R$8)*10^3) -> 3.726243768e-06 | S19: =IF(OR($P19>Total_pipeline_sizes,S$6>Total_flow_rates),"",SUMIFS(FrictionLossesBySizeFlow[Pressure drop (MPa/m)],FrictionLossesBySizeFlow[Pipeline diameter (inches)],$Q19,FrictionLossesBySizeFlow[Flow rate (Mt CO2/y)],S$8)*10^3) -> 1.323862355e-05 | T19: =IF(OR($P19>Total_pipeline_sizes,T$6>Total_flow_rates),"",SUMIFS(FrictionLossesBySizeFlow[Pressure drop (MPa/m)],FrictionLossesBySizeFlow[Pipeline diameter (inches)],$Q19,FrictionLossesBySizeFlow[Flow rate (Mt CO2/y)],T$8)*10^3) -> 7.2893779e-05 | U19: =IF(OR($P19>Total_pipeline_sizes,U$6>Total_flow_rates),"",SUMIFS(FrictionLossesBySizeFlow[Pressure drop (MPa/m)],FrictionLossesBySizeFlow[Pipeline diameter (inches)],$Q19,FrictionLossesBySizeFlow[Flow rate (Mt CO2/y)],U$8)*10^3) -> 0.0002715605466 | V19: =IF(OR($P19>Total_pipeline_sizes,V$6>Total_flow_rates),"",SUMIFS(FrictionLossesBySizeFlow[Pressure drop (MPa/m)],FrictionLossesBySizeFlow[Pipeline diameter (inches)],$Q19,FrictionLossesBySizeFlow[Flow rate (Mt CO2/y)],V$8)*10^3) -> 0.001032919755 | W19: =IF(OR($P19>Total_pipeline_sizes,W$6>Total_flow_rates),"",SUMIFS(FrictionLossesBySizeFlow[Pressure drop (MPa/m)],FrictionLossesBySizeFlow[Pipeline diameter (inches)],$Q19,FrictionLossesBySizeFlow[Flow rate (Mt CO2/y)],W$8)*10^3) -> 0.006200095407 | X19: =IF(OR($P19>Total_pipeline_sizes,X$6>Total_flow_rates),"",SUMIFS(FrictionLossesBySizeFlow[Pressure drop (MPa/m)],FrictionLossesBySizeFlow[Pipeline diameter (inches)],$Q19,FrictionLossesBySizeFlow[Flow rate (Mt CO2/y)],X$8)*10^3) -> 0.02438709204 | Y19: =IF(OR($P19>Total_pipeline_sizes,Y$6>Total_flow_rates),"",SUMIFS(FrictionLossesBySizeFlow[Pressure drop (MPa/m)],FrictionLossesBySizeFlow[Pipeline diameter (inches)],$Q19,FrictionLossesBySizeFlow[Flow rate (Mt CO2/y)],Y$8)*10^3) ->  | Z19: =IF(OR($P19>Total_pipeline_sizes,Z$6>Total_flow_rates),"",SUMIFS(FrictionLossesBySizeFlow[Pressure drop (MPa/m)],FrictionLossesBySizeFlow[Pipeline diameter (inches)],$Q19,FrictionLossesBySizeFlow[Flow rate (Mt CO2/y)],Z$8)*10^3) ->  | AA19: =IF(OR($P19>Total_pipeline_sizes,AA$6>Total_flow_rates),"",SUMIFS(FrictionLossesBySizeFlow[Pressure drop (MPa/m)],FrictionLossesBySizeFlow[Pipeline diameter (inches)],$Q19,FrictionLossesBySizeFlow[Flow rate (Mt CO2/y)],AA$8)*10^3) ->  | AC19: 12 | AD19: =IF(PipelineInfrastructureCost[[#This Row],[ID]]>Total_pressure_drop*Total_flow_rates*Total_transportation_distances,0,1) -> 1 | AE19: =IF(PipelineInfrastructureCost[[#This Row],[Active]]=0,"",OFFSET(PressureDrop[[#Headers],[Pressure drop (MPa)]],QUOTIENT(PipelineInfrastructureCost[[#This Row],[ID]]-1,Total_flow_rates*Total_transportation_distances)+1,0)) -> 5 | AF19: =IF(PipelineInfrastructureCost[[#This Row],[Active]]=0,"",OFFSET(FlowRates[[#Headers],[Flow rate (Mt CO2/y)]],MOD(QUOTIENT(PipelineInfrastructureCost[[#This Row],[ID]]-1,Total_transportation_distances),Total_flow_rates)+1,0)) -> 2 | AG19: =IF(PipelineInfrastructureCost[[#This Row],[Active]]=0,"",IF(Active_scenario_switch="Yes",Selected_distance,OFFSET(TransportationDistances[[#Headers],[Transportation distance (km)]],MOD(PipelineInfrastructureCost[[#This Row],[ID]]-1,Total_transportation_distances)+1,0))) -> 476 | AH19: =IF(PipelineInfrastructureCost[[#This Row],[Active]]=0,"",MAX(IF(TransmissionPipelineCost[Transmission pipeline length (km)]<=PipelineInfrastructureCost[[#This Row],[Transportation distance (km)]],TransmissionPipelineCost[Transmission pipeline length (km)]))) -> 400 | AI19: =IF(PipelineInfrastructureCost[[#This Row],[Active]]=0,"",PipelineInfrastructureCost[[#This Row],[Pressure drop (MPa)]]/PipelineInfrastructureCost[[#This Row],[Transportation distance (km)]]/10^3) -> 1.050420168e-05 | AJ19: =IF(PipelineInfrastructureCost[[#This Row],[Active]]=0,"",MIN(IF(FrictionLossesBySizeFlow[Flow rate (Mt CO2/y)]=PipelineInfrastructureCost[[#This Row],[Flow rate (Mt CO2/y)]],IF(FrictionLossesBySizeFlow[Pressure drop (MPa/m)]<PipelineInfrastructureCost[[#This Row],[Pressure drop (MPa/m)]],FrictionLossesBySizeFlow[Pipeline diameter (inches)])))) -> 16 | AK19: =IF(PipelineInfrastructureCost[[#This Row],[Active]]=0,"",PipelineInfrastructureCost[[#This Row],[Flow rate (Mt CO2/y)]]/Pipe_utilisation_factor*SUMIFS(ConversionFactors[Conversion value],ConversionFactors[Initial unit],"Mt",ConversionFactors[Final unit],"kg")/SUMIFS(ConversionFactors[Conversion value],ConversionFactors[Initial unit],"Year",ConversionFactors[Final unit],"second")/SUMIFS(CO2PhysicalProperties[Density (kg/m3)],CO2PhysicalProperties[Pressure (MPa)],Shoreline_supply_pressure)*(Maximum_pipeline_pressure-Minimum_pipeline_pressure)/Compressor_efficiency) -> 2.068403686 | AL19: =IF(PipelineInfrastructureCost[[#This Row],[Active]]=0,"",PipelineInfrastructureCost[[#This Row],[Compressor size (MW)]]*CompressorCost[Compressor capex (£/MW)]) -> 7756513.823 | AM19: =IF(PipelineInfrastructureCost[[#This Row],[Active]]=0,"",PipelineInfrastructureCost[[#This Row],[Compressor capex (£)]]*CompressorCost[Opex (share of capex)]) -> 310260.5529 | AN19: =IF(PipelineInfrastructureCost[[#This Row],[Active]]=0,"",PipelineInfrastructureCost[[#This Row],[Compressor size (MW)]]*8760*Pipe_utilisation_factor*10^3*SUMIFS(FuelCost[Cost (£/kWh)],FuelCost[Fuel],CompressionFuel,FuelCost[Scenario],Liquefaction_compression_fuel_cost)) -> 1087152.977 | AO19: =IF(PipelineInfrastructureCost[[#This Row],[Active]]=0,"",SUMIFS(TransmissionPipelineCost[Capex (£/inch/km)],TransmissionPipelineCost[Transmission pipeline length (km)],PipelineInfrastructureCost[[#This Row],[Matching transportation distance (km)]])*PipelineInfrastructureCost[[#This Row],[Pipeline diameter (inches)]]*PipelineInfrastructureCost[[#This Row],[Transportation distance (km)]]) -> 426225961.5 | AP19: =IF(PipelineInfrastructureCost[[#This Row],[Active]]=0,"",SUMIFS(TransmissionPipelineCost[Opex (share of capex)],TransmissionPipelineCost[Transmission pipeline length (km)],PipelineInfrastructureCost[[#This Row],[Matching transportation distance (km)]])*PipelineInfrastructureCost[[#This Row],[Transmission pipeline capex (£)]]) -> 4262259.615 | AQ19: =IF(PipelineInfrastructureCost[[#This Row],[Active]]=0,"",PipelineInfrastructureCost[[#This Row],[Compressor capex (£)]]+PipelineInfrastructureCost[[#This Row],[Transmission pipeline capex (£)]]) -> 433982475.4 | AR19: =IF(PipelineInfrastructureCost[[#This Row],[Active]]=0,"",-PV(Discount_rate,PipelineLifetime,PipelineInfrastructureCost[[#This Row],[Compressor opex (£/y)]]+PipelineInfrastructureCost[[#This Row],[Compressor energy cost (£/y)]]+PipelineInfrastructureCost[[#This Row],[Transmission pipeline opex (£/y)]])) -> 113193462.9 | AS19: =IF(PipelineInfrastructureCost[[#This Row],[Active]]=0,"",SUM(PipelineInfrastructureCost[[#This Row],[Total capex (£/y)]:[Total lifetime discounted opex (£/y)]])/-PV(Discount_rate,PipelineLifetime,PipelineInfrastructureCost[[#This Row],[Flow rate (Mt CO2/y)]])/10^6) -> 13.67939846
I20: 13 | J20: =IF(FrictionLossesBySizeFlow[[#This Row],[ID]]>Total_flow_rates*Total_pipeline_sizes,"",OFFSET(FlowRates[[#Headers],[Flow rate (Mt CO2/y)]],QUOTIENT(FrictionLossesBySizeFlow[[#This Row],[ID]]-1,Total_pipeline_sizes)+1,0)) -> 0.1 | K20: =IF(FrictionLossesBySizeFlow[[#This Row],[ID]]>Total_flow_rates*Total_pipeline_sizes,"",OFFSET(PipelineSizes[[#Headers],[Pipeline diameter (inches)]],MOD(FrictionLossesBySizeFlow[[#This Row],[ID]]-1,Total_pipeline_sizes)+1,0)) -> 28 | L20: =IF(FrictionLossesBySizeFlow[[#This Row],[ID]]>Total_flow_rates*Total_pipeline_sizes,"",4*FrictionLossesBySizeFlow[[#This Row],[Flow rate (Mt CO2/y)]]/Pipe_utilisation_factor*SUMIFS(ConversionFactors[Conversion value],ConversionFactors[Initial unit],"Mt",ConversionFactors[Final unit],"kg")/SUMIFS(ConversionFactors[Conversion value],ConversionFactors[Initial unit],"Year",ConversionFactors[Final unit],"second")/(PI()*SUMIFS(CO2PhysicalProperties[Viscosity (Pas)],CO2PhysicalProperties[Pressure (MPa)],Minimum_pipeline_pressure)*FrictionLossesBySizeFlow[[#This Row],[Pipeline diameter (inches)]]*SUMIFS(ConversionFactors[Conversion value],ConversionFactors[Initial unit],"Inch",ConversionFactors[Final unit],"metre"))) -> 102456.9089 | M20: =IF(FrictionLossesBySizeFlow[[#This Row],[ID]]>Total_flow_rates*Total_pipeline_sizes,"",1.325/(LN(Pipeline_roughness/(3.7*FrictionLossesBySizeFlow[[#This Row],[Pipeline diameter (inches)]]*SUMIFS(ConversionFactors[Conversion value],ConversionFactors[Initial unit],"Inch",ConversionFactors[Final unit],"metre"))+(5.74/FrictionLossesBySizeFlow[[#This Row],[Reynold''s Number]]^0.9)))^2) -> 0.01815531685 | N20: =IF(FrictionLossesBySizeFlow[[#This Row],[ID]]>Total_flow_rates*Total_pipeline_sizes,"",8*FrictionLossesBySizeFlow[[#This Row],[Friction factor]]*(FrictionLossesBySizeFlow[[#This Row],[Flow rate (Mt CO2/y)]]/Pipe_utilisation_factor*SUMIFS(ConversionFactors[Conversion value],ConversionFactors[Initial unit],"Mt",ConversionFactors[Final unit],"kg")/SUMIFS(ConversionFactors[Conversion value],ConversionFactors[Initial unit],"Year",ConversionFactors[Final unit],"second"))^2/(SUMIFS(CO2PhysicalProperties[Density (kg/m3)],CO2PhysicalProperties[Pressure (MPa)],Minimum_pipeline_pressure)*PI()^2*(FrictionLossesBySizeFlow[[#This Row],[Pipeline diameter (inches)]]*SUMIFS(ConversionFactors[Conversion value],ConversionFactors[Initial unit],"Inch",ConversionFactors[Final unit],"metre"))^5)/10^6) -> 1.768246373e-09 | P20: 12 | Q20: =IF($P20>Total_pipeline_sizes,"",OFFSET(PipelineSizes[[#Headers],[Pipeline diameter (inches)]],$P20,0)) -> 26 | R20: =IF(OR($P20>Total_pipeline_sizes,R$6>Total_flow_rates),"",SUMIFS(FrictionLossesBySizeFlow[Pressure drop (MPa/m)],FrictionLossesBySizeFlow[Pipeline diameter (inches)],$Q20,FrictionLossesBySizeFlow[Flow rate (Mt CO2/y)],R$8)*10^3) -> 2.529643421e-06 | S20: =IF(OR($P20>Total_pipeline_sizes,S$6>Total_flow_rates),"",SUMIFS(FrictionLossesBySizeFlow[Pressure drop (MPa/m)],FrictionLossesBySizeFlow[Pipeline diameter (inches)],$Q20,FrictionLossesBySizeFlow[Flow rate (Mt CO2/y)],S$8)*10^3) -> 8.957828201e-06 | T20: =IF(OR($P20>Total_pipeline_sizes,T$6>Total_flow_rates),"",SUMIFS(FrictionLossesBySizeFlow[Pressure drop (MPa/m)],FrictionLossesBySizeFlow[Pipeline diameter (inches)],$Q20,FrictionLossesBySizeFlow[Flow rate (Mt CO2/y)],T$8)*10^3) -> 4.905483045e-05 | U20: =IF(OR($P20>Total_pipeline_sizes,U$6>Total_flow_rates),"",SUMIFS(FrictionLossesBySizeFlow[Pressure drop (MPa/m)],FrictionLossesBySizeFlow[Pipeline diameter (inches)],$Q20,FrictionLossesBySizeFlow[Flow rate (Mt CO2/y)],U$8)*10^3) -> 0.0001819016898 | V20: =IF(OR($P20>Total_pipeline_sizes,V$6>Total_flow_rates),"",SUMIFS(FrictionLossesBySizeFlow[Pressure drop (MPa/m)],FrictionLossesBySizeFlow[Pipeline diameter (inches)],$Q20,FrictionLossesBySizeFlow[Flow rate (Mt CO2/y)],V$8)*10^3) -> 0.000688834404 | W20: =IF(OR($P20>Total_pipeline_sizes,W$6>Total_flow_rates),"",SUMIFS(FrictionLossesBySizeFlow[Pressure drop (MPa/m)],FrictionLossesBySizeFlow[Pipeline diameter (inches)],$Q20,FrictionLossesBySizeFlow[Flow rate (Mt CO2/y)],W$8)*10^3) -> 0.004116102201 | X20: =IF(OR($P20>Total_pipeline_sizes,X$6>Total_flow_rates),"",SUMIFS(FrictionLossesBySizeFlow[Pressure drop (MPa/m)],FrictionLossesBySizeFlow[Pipeline diameter (inches)],$Q20,FrictionLossesBySizeFlow[Flow rate (Mt CO2/y)],X$8)*10^3) -> 0.01615446731 | Y20: =IF(OR($P20>Total_pipeline_sizes,Y$6>Total_flow_rates),"",SUMIFS(FrictionLossesBySizeFlow[Pressure drop (MPa/m)],FrictionLossesBySizeFlow[Pipeline diameter (inches)],$Q20,FrictionLossesBySizeFlow[Flow rate (Mt CO2/y)],Y$8)*10^3) ->  | Z20: =IF(OR($P20>Total_pipeline_sizes,Z$6>Total_flow_rates),"",SUMIFS(FrictionLossesBySizeFlow[Pressure drop (MPa/m)],FrictionLossesBySizeFlow[Pipeline diameter (inches)],$Q20,FrictionLossesBySizeFlow[Flow rate (Mt CO2/y)],Z$8)*10^3) ->  | AA20: =IF(OR($P20>Total_pipeline_sizes,AA$6>Total_flow_rates),"",SUMIFS(FrictionLossesBySizeFlow[Pressure drop (MPa/m)],FrictionLossesBySizeFlow[Pipeline diameter (inches)],$Q20,FrictionLossesBySizeFlow[Flow rate (Mt CO2/y)],AA$8)*10^3) ->  | AC20: 13 | AD20: =IF(PipelineInfrastructureCost[[#This Row],[ID]]>Total_pressure_drop*Total_flow_rates*Total_transportation_distances,0,1) -> 1 | AE20: =IF(PipelineInfrastructureCost[[#This Row],[Active]]=0,"",OFFSET(PressureDrop[[#Headers],[Pressure drop (MPa)]],QUOTIENT(PipelineInfrastructureCost[[#This Row],[ID]]-1,Total_flow_rates*Total_transportation_distances)+1,0)) -> 5 | AF20: =IF(PipelineInfrastructureCost[[#This Row],[Active]]=0,"",OFFSET(FlowRates[[#Headers],[Flow rate (Mt CO2/y)]],MOD(QUOTIENT(PipelineInfrastructureCost[[#This Row],[ID]]-1,Total_transportation_distances),Total_flow_rates)+1,0)) -> 5 | AG20: =IF(PipelineInfrastructureCost[[#This Row],[Active]]=0,"",IF(Active_scenario_switch="Yes",Selected_distance,OFFSET(TransportationDistances[[#Headers],[Transportation distance (km)]],MOD(PipelineInfrastructureCost[[#This Row],[ID]]-1,Total_transportation_distances)+1,0))) -> 476 | AH20: =IF(PipelineInfrastructureCost[[#This Row],[Active]]=0,"",MAX(IF(TransmissionPipelineCost[Transmission pipeline length (km)]<=PipelineInfrastructureCost[[#This Row],[Transportation distance (km)]],TransmissionPipelineCost[Transmission pipeline length (km)]))) -> 400 | AI20: =IF(PipelineInfrastructureCost[[#This Row],[Active]]=0,"",PipelineInfrastructureCost[[#This Row],[Pressure drop (MPa)]]/PipelineInfrastructureCost[[#This Row],[Transportation distance (km)]]/10^3) -> 1.050420168e-05 | AJ20: =IF(PipelineInfrastructureCost[[#This Row],[Active]]=0,"",MIN(IF(FrictionLossesBySizeFlow[Flow rate (Mt CO2/y)]=PipelineInfrastructureCost[[#This Row],[Flow rate (Mt CO2/y)]],IF(FrictionLossesBySizeFlow[Pressure drop (MPa/m)]<PipelineInfrastructureCost[[#This Row],[Pressure drop (MPa/m)]],FrictionLossesBySizeFlow[Pipeline diameter (inches)])))) -> 22 | AK20: =IF(PipelineInfrastructureCost[[#This Row],[Active]]=0,"",PipelineInfrastructureCost[[#This Row],[Flow rate (Mt CO2/y)]]/Pipe_utilisation_factor*SUMIFS(ConversionFactors[Conversion value],ConversionFactors[Initial unit],"Mt",ConversionFactors[Final unit],"kg")/SUMIFS(ConversionFactors[Conversion value],ConversionFactors[Initial unit],"Year",ConversionFactors[Final unit],"second")/SUMIFS(CO2PhysicalProperties[Density (kg/m3)],CO2PhysicalProperties[Pressure (MPa)],Shoreline_supply_pressure)*(Maximum_pipeline_pressure-Minimum_pipeline_pressure)/Compressor_efficiency) -> 5.171009215 | AL20: =IF(PipelineInfrastructureCost[[#This Row],[Active]]=0,"",PipelineInfrastructureCost[[#This Row],[Compressor size (MW)]]*CompressorCost[Compressor capex (£/MW)]) -> 19391284.56 | AM20: =IF(PipelineInfrastructureCost[[#This Row],[Active]]=0,"",PipelineInfrastructureCost[[#This Row],[Compressor capex (£)]]*CompressorCost[Opex (share of capex)]) -> 775651.3823 | AN20: =IF(PipelineInfrastructureCost[[#This Row],[Active]]=0,"",PipelineInfrastructureCost[[#This Row],[Compressor size (MW)]]*8760*Pipe_utilisation_factor*10^3*SUMIFS(FuelCost[Cost (£/kWh)],FuelCost[Fuel],CompressionFuel,FuelCost[Scenario],Liquefaction_compression_fuel_cost)) -> 2717882.443 | AO20: =IF(PipelineInfrastructureCost[[#This Row],[Active]]=0,"",SUMIFS(TransmissionPipelineCost[Capex (£/inch/km)],TransmissionPipelineCost[Transmission pipeline length (km)],PipelineInfrastructureCost[[#This Row],[Matching transportation distance (km)]])*PipelineInfrastructureCost[[#This Row],[Pipeline diameter (inches)]]*PipelineInfrastructureCost[[#This Row],[Transportation distance (km)]]) -> 586060697.1 | AP20: =IF(PipelineInfrastructureCost[[#This Row],[Active]]=0,"",SUMIFS(TransmissionPipelineCost[Opex (share of capex)],TransmissionPipelineCost[Transmission pipeline length (km)],PipelineInfrastructureCost[[#This Row],[Matching transportation distance (km)]])*PipelineInfrastructureCost[[#This Row],[Transmission pipeline capex (£)]]) -> 5860606.971 | AQ20: =IF(PipelineInfrastructureCost[[#This Row],[Active]]=0,"",PipelineInfrastructureCost[[#This Row],[Compressor capex (£)]]+PipelineInfrastructureCost[[#This Row],[Transmission pipeline capex (£)]]) -> 605451981.7 | AR20: =IF(PipelineInfrastructureCost[[#This Row],[Active]]=0,"",-PV(Discount_rate,PipelineLifetime,PipelineInfrastructureCost[[#This Row],[Compressor opex (£/y)]]+PipelineInfrastructureCost[[#This Row],[Compressor energy cost (£/y)]]+PipelineInfrastructureCost[[#This Row],[Transmission pipeline opex (£/y)]])) -> 187082815.9 | AS20: =IF(PipelineInfrastructureCost[[#This Row],[Active]]=0,"",SUM(PipelineInfrastructureCost[[#This Row],[Total capex (£/y)]:[Total lifetime discounted opex (£/y)]])/-PV(Discount_rate,PipelineLifetime,PipelineInfrastructureCost[[#This Row],[Flow rate (Mt CO2/y)]])/10^6) -> 7.925347976 | BH20: Levelised lifetime cost of pipeline vs shipping | BI20: 1 | BJ20: 2 | BK20: 3 | BL20: 4 | BM20: 5 | BN20: 6 | BO20: 7 | BP20: 8 | BQ20: 9 | BR20: 10
I21: 14 | J21: =IF(FrictionLossesBySizeFlow[[#This Row],[ID]]>Total_flow_rates*Total_pipeline_sizes,"",OFFSET(FlowRates[[#Headers],[Flow rate (Mt CO2/y)]],QUOTIENT(FrictionLossesBySizeFlow[[#This Row],[ID]]-1,Total_pipeline_sizes)+1,0)) -> 0.1 | K21: =IF(FrictionLossesBySizeFlow[[#This Row],[ID]]>Total_flow_rates*Total_pipeline_sizes,"",OFFSET(PipelineSizes[[#Headers],[Pipeline diameter (inches)]],MOD(FrictionLossesBySizeFlow[[#This Row],[ID]]-1,Total_pipeline_sizes)+1,0)) -> 32 | L21: =IF(FrictionLossesBySizeFlow[[#This Row],[ID]]>Total_flow_rates*Total_pipeline_sizes,"",4*FrictionLossesBySizeFlow[[#This Row],[Flow rate (Mt CO2/y)]]/Pipe_utilisation_factor*SUMIFS(ConversionFactors[Conversion value],ConversionFactors[Initial unit],"Mt",ConversionFactors[Final unit],"kg")/SUMIFS(ConversionFactors[Conversion value],ConversionFactors[Initial unit],"Year",ConversionFactors[Final unit],"second")/(PI()*SUMIFS(CO2PhysicalProperties[Viscosity (Pas)],CO2PhysicalProperties[Pressure (MPa)],Minimum_pipeline_pressure)*FrictionLossesBySizeFlow[[#This Row],[Pipeline diameter (inches)]]*SUMIFS(ConversionFactors[Conversion value],ConversionFactors[Initial unit],"Inch",ConversionFactors[Final unit],"metre"))) -> 89649.79526 | M21: =IF(FrictionLossesBySizeFlow[[#This Row],[ID]]>Total_flow_rates*Total_pipeline_sizes,"",1.325/(LN(Pipeline_roughness/(3.7*FrictionLossesBySizeFlow[[#This Row],[Pipeline diameter (inches)]]*SUMIFS(ConversionFactors[Conversion value],ConversionFactors[Initial unit],"Inch",ConversionFactors[Final unit],"metre"))+(5.74/FrictionLossesBySizeFlow[[#This Row],[Reynold''s Number]]^0.9)))^2) -> 0.01858818143 | N21: =IF(FrictionLossesBySizeFlow[[#This Row],[ID]]>Total_flow_rates*Total_pipeline_sizes,"",8*FrictionLossesBySizeFlow[[#This Row],[Friction factor]]*(FrictionLossesBySizeFlow[[#This Row],[Flow rate (Mt CO2/y)]]/Pipe_utilisation_factor*SUMIFS(ConversionFactors[Conversion value],ConversionFactors[Initial unit],"Mt",ConversionFactors[Final unit],"kg")/SUMIFS(ConversionFactors[Conversion value],ConversionFactors[Initial unit],"Year",ConversionFactors[Final unit],"second"))^2/(SUMIFS(CO2PhysicalProperties[Density (kg/m3)],CO2PhysicalProperties[Pressure (MPa)],Minimum_pipeline_pressure)*PI()^2*(FrictionLossesBySizeFlow[[#This Row],[Pipeline diameter (inches)]]*SUMIFS(ConversionFactors[Conversion value],ConversionFactors[Initial unit],"Inch",ConversionFactors[Final unit],"metre"))^5)/10^6) -> 9.285731273e-10 | P21: 13 | Q21: =IF($P21>Total_pipeline_sizes,"",OFFSET(PipelineSizes[[#Headers],[Pipeline diameter (inches)]],$P21,0)) -> 28 | R21: =IF(OR($P21>Total_pipeline_sizes,R$6>Total_flow_rates),"",SUMIFS(FrictionLossesBySizeFlow[Pressure drop (MPa/m)],FrictionLossesBySizeFlow[Pipeline diameter (inches)],$Q21,FrictionLossesBySizeFlow[Flow rate (Mt CO2/y)],R$8)*10^3) -> 1.768246373e-06 | S21: =IF(OR($P21>Total_pipeline_sizes,S$6>Total_flow_rates),"",SUMIFS(FrictionLossesBySizeFlow[Pressure drop (MPa/m)],FrictionLossesBySizeFlow[Pipeline diameter (inches)],$Q21,FrictionLossesBySizeFlow[Flow rate (Mt CO2/y)],S$8)*10^3) -> 6.243690506e-06 | T21: =IF(OR($P21>Total_pipeline_sizes,T$6>Total_flow_rates),"",SUMIFS(FrictionLossesBySizeFlow[Pressure drop (MPa/m)],FrictionLossesBySizeFlow[Pipeline diameter (inches)],$Q21,FrictionLossesBySizeFlow[Flow rate (Mt CO2/y)],T$8)*10^3) -> 3.402770767e-05 | U21: =IF(OR($P21>Total_pipeline_sizes,U$6>Total_flow_rates),"",SUMIFS(FrictionLossesBySizeFlow[Pressure drop (MPa/m)],FrictionLossesBySizeFlow[Pipeline diameter (inches)],$Q21,FrictionLossesBySizeFlow[Flow rate (Mt CO2/y)],U$8)*10^3) -> 0.000125646443 | V21: =IF(OR($P21>Total_pipeline_sizes,V$6>Total_flow_rates),"",SUMIFS(FrictionLossesBySizeFlow[Pressure drop (MPa/m)],FrictionLossesBySizeFlow[Pipeline diameter (inches)],$Q21,FrictionLossesBySizeFlow[Flow rate (Mt CO2/y)],V$8)*10^3) -> 0.0004738219277 | W21: =IF(OR($P21>Total_pipeline_sizes,W$6>Total_flow_rates),"",SUMIFS(FrictionLossesBySizeFlow[Pressure drop (MPa/m)],FrictionLossesBySizeFlow[Pipeline diameter (inches)],$Q21,FrictionLossesBySizeFlow[Flow rate (Mt CO2/y)],W$8)*10^3) -> 0.00281875869 | X21: =IF(OR($P21>Total_pipeline_sizes,X$6>Total_flow_rates),"",SUMIFS(FrictionLossesBySizeFlow[Pressure drop (MPa/m)],FrictionLossesBySizeFlow[Pipeline diameter (inches)],$Q21,FrictionLossesBySizeFlow[Flow rate (Mt CO2/y)],X$8)*10^3) -> 0.01103805349 | Y21: =IF(OR($P21>Total_pipeline_sizes,Y$6>Total_flow_rates),"",SUMIFS(FrictionLossesBySizeFlow[Pressure drop (MPa/m)],FrictionLossesBySizeFlow[Pipeline diameter (inches)],$Q21,FrictionLossesBySizeFlow[Flow rate (Mt CO2/y)],Y$8)*10^3) ->  | Z21: =IF(OR($P21>Total_pipeline_sizes,Z$6>Total_flow_rates),"",SUMIFS(FrictionLossesBySizeFlow[Pressure drop (MPa/m)],FrictionLossesBySizeFlow[Pipeline diameter (inches)],$Q21,FrictionLossesBySizeFlow[Flow rate (Mt CO2/y)],Z$8)*10^3) ->  | AA21: =IF(OR($P21>Total_pipeline_sizes,AA$6>Total_flow_rates),"",SUMIFS(FrictionLossesBySizeFlow[Pressure drop (MPa/m)],FrictionLossesBySizeFlow[Pipeline diameter (inches)],$Q21,FrictionLossesBySizeFlow[Flow rate (Mt CO2/y)],AA$8)*10^3) ->  | AC21: 14 | AD21: =IF(PipelineInfrastructureCost[[#This Row],[ID]]>Total_pressure_drop*Total_flow_rates*Total_transportation_distances,0,1) -> 1 | AE21: =IF(PipelineInfrastructureCost[[#This Row],[Active]]=0,"",OFFSET(PressureDrop[[#Headers],[Pressure drop (MPa)]],QUOTIENT(PipelineInfrastructureCost[[#This Row],[ID]]-1,Total_flow_rates*Total_transportation_distances)+1,0)) -> 5 | AF21: =IF(PipelineInfrastructureCost[[#This Row],[Active]]=0,"",OFFSET(FlowRates[[#Headers],[Flow rate (Mt CO2/y)]],MOD(QUOTIENT(PipelineInfrastructureCost[[#This Row],[ID]]-1,Total_transportation_distances),Total_flow_rates)+1,0)) -> 10 | AG21: =IF(PipelineInfrastructureCost[[#This Row],[Active]]=0,"",IF(Active_scenario_switch="Yes",Selected_distance,OFFSET(TransportationDistances[[#Headers],[Transportation distance (km)]],MOD(PipelineInfrastructureCost[[#This Row],[ID]]-1,Total_transportation_distances)+1,0))) -> 476 | AH21: =IF(PipelineInfrastructureCost[[#This Row],[Active]]=0,"",MAX(IF(TransmissionPipelineCost[Transmission pipeline length (km)]<=PipelineInfrastructureCost[[#This Row],[Transportation distance (km)]],TransmissionPipelineCost[Transmission pipeline length (km)]))) -> 400 | AI21: =IF(PipelineInfrastructureCost[[#This Row],[Active]]=0,"",PipelineInfrastructureCost[[#This Row],[Pressure drop (MPa)]]/PipelineInfrastructureCost[[#This Row],[Transportation distance (km)]]/10^3) -> 1.050420168e-05 | AJ21: =IF(PipelineInfrastructureCost[[#This Row],[Active]]=0,"",MIN(IF(FrictionLossesBySizeFlow[Flow rate (Mt CO2/y)]=PipelineInfrastructureCost[[#This Row],[Flow rate (Mt CO2/y)]],IF(FrictionLossesBySizeFlow[Pressure drop (MPa/m)]<PipelineInfrastructureCost[[#This Row],[Pressure drop (MPa/m)]],FrictionLossesBySizeFlow[Pipeline diameter (inches)])))) -> 32 | AK21: =IF(PipelineInfrastructureCost[[#This Row],[Active]]=0,"",PipelineInfrastructureCost[[#This Row],[Flow rate (Mt CO2/y)]]/Pipe_utilisation_factor*SUMIFS(ConversionFactors[Conversion value],ConversionFactors[Initial unit],"Mt",ConversionFactors[Final unit],"kg")/SUMIFS(ConversionFactors[Conversion value],ConversionFactors[Initial unit],"Year",ConversionFactors[Final unit],"second")/SUMIFS(CO2PhysicalProperties[Density (kg/m3)],CO2PhysicalProperties[Pressure (MPa)],Shoreline_supply_pressure)*(Maximum_pipeline_pressure-Minimum_pipeline_pressure)/Compressor_efficiency) -> 10.34201843 | AL21: =IF(PipelineInfrastructureCost[[#This Row],[Active]]=0,"",PipelineInfrastructureCost[[#This Row],[Compressor size (MW)]]*CompressorCost[Compressor capex (£/MW)]) -> 38782569.11 | AM21: =IF(PipelineInfrastructureCost[[#This Row],[Active]]=0,"",PipelineInfrastructureCost[[#This Row],[Compressor capex (£)]]*CompressorCost[Opex (share of capex)]) -> 1551302.765 | AN21: =IF(PipelineInfrastructureCost[[#This Row],[Active]]=0,"",PipelineInfrastructureCost[[#This Row],[Compressor size (MW)]]*8760*Pipe_utilisation_factor*10^3*SUMIFS(FuelCost[Cost (£/kWh)],FuelCost[Fuel],CompressionFuel,FuelCost[Scenario],Liquefaction_compression_fuel_cost)) -> 5435764.887 | AO21: =IF(PipelineInfrastructureCost[[#This Row],[Active]]=0,"",SUMIFS(TransmissionPipelineCost[Capex (£/inch/km)],TransmissionPipelineCost[Transmission pipeline length (km)],PipelineInfrastructureCost[[#This Row],[Matching transportation distance (km)]])*PipelineInfrastructureCost[[#This Row],[Pipeline diameter (inches)]]*PipelineInfrastructureCost[[#This Row],[Transportation distance (km)]]) -> 852451923.1 | AP21: =IF(PipelineInfrastructureCost[[#This Row],[Active]]=0,"",SUMIFS(TransmissionPipelineCost[Opex (share of capex)],TransmissionPipelineCost[Transmission pipeline length (km)],PipelineInfrastructureCost[[#This Row],[Matching transportation distance (km)]])*PipelineInfrastructureCost[[#This Row],[Transmission pipeline capex (£)]]) -> 8524519.231 | AQ21: =IF(PipelineInfrastructureCost[[#This Row],[Active]]=0,"",PipelineInfrastructureCost[[#This Row],[Compressor capex (£)]]+PipelineInfrastructureCost[[#This Row],[Transmission pipeline capex (£)]]) -> 891234492.2 | AR21: =IF(PipelineInfrastructureCost[[#This Row],[Active]]=0,"",-PV(Discount_rate,PipelineLifetime,PipelineInfrastructureCost[[#This Row],[Compressor opex (£/y)]]+PipelineInfrastructureCost[[#This Row],[Compressor energy cost (£/y)]]+PipelineInfrastructureCost[[#This Row],[Transmission pipeline opex (£/y)]])) -> 310231737.6 | AS21: =IF(PipelineInfrastructureCost[[#This Row],[Active]]=0,"",SUM(PipelineInfrastructureCost[[#This Row],[Total capex (£/y)]:[Total lifetime discounted opex (£/y)]])/-PV(Discount_rate,PipelineLifetime,PipelineInfrastructureCost[[#This Row],[Flow rate (Mt CO2/y)]])/10^6) -> 6.007331149 | BI21: Flow rate (Mt CO2/y)
I22: 15 | J22: =IF(FrictionLossesBySizeFlow[[#This Row],[ID]]>Total_flow_rates*Total_pipeline_sizes,"",OFFSET(FlowRates[[#Headers],[Flow rate (Mt CO2/y)]],QUOTIENT(FrictionLossesBySizeFlow[[#This Row],[ID]]-1,Total_pipeline_sizes)+1,0)) -> 0.1 | K22: =IF(FrictionLossesBySizeFlow[[#This Row],[ID]]>Total_flow_rates*Total_pipeline_sizes,"",OFFSET(PipelineSizes[[#Headers],[Pipeline diameter (inches)]],MOD(FrictionLossesBySizeFlow[[#This Row],[ID]]-1,Total_pipeline_sizes)+1,0)) -> 36 | L22: =IF(FrictionLossesBySizeFlow[[#This Row],[ID]]>Total_flow_rates*Total_pipeline_sizes,"",4*FrictionLossesBySizeFlow[[#This Row],[Flow rate (Mt CO2/y)]]/Pipe_utilisation_factor*SUMIFS(ConversionFactors[Conversion value],ConversionFactors[Initial unit],"Mt",ConversionFactors[Final unit],"kg")/SUMIFS(ConversionFactors[Conversion value],ConversionFactors[Initial unit],"Year",ConversionFactors[Final unit],"second")/(PI()*SUMIFS(CO2PhysicalProperties[Viscosity (Pas)],CO2PhysicalProperties[Pressure (MPa)],Minimum_pipeline_pressure)*FrictionLossesBySizeFlow[[#This Row],[Pipeline diameter (inches)]]*SUMIFS(ConversionFactors[Conversion value],ConversionFactors[Initial unit],"Inch",ConversionFactors[Final unit],"metre"))) -> 79688.7069 | M22: =IF(FrictionLossesBySizeFlow[[#This Row],[ID]]>Total_flow_rates*Total_pipeline_sizes,"",1.325/(LN(Pipeline_roughness/(3.7*FrictionLossesBySizeFlow[[#This Row],[Pipeline diameter (inches)]]*SUMIFS(ConversionFactors[Conversion value],ConversionFactors[Initial unit],"Inch",ConversionFactors[Final unit],"metre"))+(5.74/FrictionLossesBySizeFlow[[#This Row],[Reynold''s Number]]^0.9)))^2) -> 0.01899905402 | N22: =IF(FrictionLossesBySizeFlow[[#This Row],[ID]]>Total_flow_rates*Total_pipeline_sizes,"",8*FrictionLossesBySizeFlow[[#This Row],[Friction factor]]*(FrictionLossesBySizeFlow[[#This Row],[Flow rate (Mt CO2/y)]]/Pipe_utilisation_factor*SUMIFS(ConversionFactors[Conversion value],ConversionFactors[Initial unit],"Mt",ConversionFactors[Final unit],"kg")/SUMIFS(ConversionFactors[Conversion value],ConversionFactors[Initial unit],"Year",ConversionFactors[Final unit],"second"))^2/(SUMIFS(CO2PhysicalProperties[Density (kg/m3)],CO2PhysicalProperties[Pressure (MPa)],Minimum_pipeline_pressure)*PI()^2*(FrictionLossesBySizeFlow[[#This Row],[Pipeline diameter (inches)]]*SUMIFS(ConversionFactors[Conversion value],ConversionFactors[Initial unit],"Inch",ConversionFactors[Final unit],"metre"))^5)/10^6) -> 5.266821182e-10 | P22: 14 | Q22: =IF($P22>Total_pipeline_sizes,"",OFFSET(PipelineSizes[[#Headers],[Pipeline diameter (inches)]],$P22,0)) -> 32 | R22: =IF(OR($P22>Total_pipeline_sizes,R$6>Total_flow_rates),"",SUMIFS(FrictionLossesBySizeFlow[Pressure drop (MPa/m)],FrictionLossesBySizeFlow[Pipeline diameter (inches)],$Q22,FrictionLossesBySizeFlow[Flow rate (Mt CO2/y)],R$8)*10^3) -> 9.285731273e-07 | S22: =IF(OR($P22>Total_pipeline_sizes,S$6>Total_flow_rates),"",SUMIFS(FrictionLossesBySizeFlow[Pressure drop (MPa/m)],FrictionLossesBySizeFlow[Pipeline diameter (inches)],$Q22,FrictionLossesBySizeFlow[Flow rate (Mt CO2/y)],S$8)*10^3) -> 3.263206844e-06 | T22: =IF(OR($P22>Total_pipeline_sizes,T$6>Total_flow_rates),"",SUMIFS(FrictionLossesBySizeFlow[Pressure drop (MPa/m)],FrictionLossesBySizeFlow[Pipeline diameter (inches)],$Q22,FrictionLossesBySizeFlow[Flow rate (Mt CO2/y)],T$8)*10^3) -> 1.764160074e-05 | U22: =IF(OR($P22>Total_pipeline_sizes,U$6>Total_flow_rates),"",SUMIFS(FrictionLossesBySizeFlow[Pressure drop (MPa/m)],FrictionLossesBySizeFlow[Pipeline diameter (inches)],$Q22,FrictionLossesBySizeFlow[Flow rate (Mt CO2/y)],U$8)*10^3) -> 6.466461373e-05 | V22: =IF(OR($P22>Total_pipeline_sizes,V$6>Total_flow_rates),"",SUMIFS(FrictionLossesBySizeFlow[Pressure drop (MPa/m)],FrictionLossesBySizeFlow[Pipeline diameter (inches)],$Q22,FrictionLossesBySizeFlow[Flow rate (Mt CO2/y)],V$8)*10^3) -> 0.0002420088697 | W22: =IF(OR($P22>Total_pipeline_sizes,W$6>Total_flow_rates),"",SUMIFS(FrictionLossesBySizeFlow[Pressure drop (MPa/m)],FrictionLossesBySizeFlow[Pipeline diameter (inches)],$Q22,FrictionLossesBySizeFlow[Flow rate (Mt CO2/y)],W$8)*10^3) -> 0.001427424078 | X22: =IF(OR($P22>Total_pipeline_sizes,X$6>Total_flow_rates),"",SUMIFS(FrictionLossesBySizeFlow[Pressure drop (MPa/m)],FrictionLossesBySizeFlow[Pipeline diameter (inches)],$Q22,FrictionLossesBySizeFlow[Flow rate (Mt CO2/y)],X$8)*10^3) -> 0.005564377776 | Y22: =IF(OR($P22>Total_pipeline_sizes,Y$6>Total_flow_rates),"",SUMIFS(FrictionLossesBySizeFlow[Pressure drop (MPa/m)],FrictionLossesBySizeFlow[Pipeline diameter (inches)],$Q22,FrictionLossesBySizeFlow[Flow rate (Mt CO2/y)],Y$8)*10^3) ->  | Z22: =IF(OR($P22>Total_pipeline_sizes,Z$6>Total_flow_rates),"",SUMIFS(FrictionLossesBySizeFlow[Pressure drop (MPa/m)],FrictionLossesBySizeFlow[Pipeline diameter (inches)],$Q22,FrictionLossesBySizeFlow[Flow rate (Mt CO2/y)],Z$8)*10^3) ->  | AA22: =IF(OR($P22>Total_pipeline_sizes,AA$6>Total_flow_rates),"",SUMIFS(FrictionLossesBySizeFlow[Pressure drop (MPa/m)],FrictionLossesBySizeFlow[Pipeline diameter (inches)],$Q22,FrictionLossesBySizeFlow[Flow rate (Mt CO2/y)],AA$8)*10^3) ->  | AC22: 15 | AD22: =IF(PipelineInfrastructureCost[[#This Row],[ID]]>Total_pressure_drop*Total_flow_rates*Total_transportation_distances,0,1) -> 1 | AE22: =IF(PipelineInfrastructureCost[[#This Row],[Active]]=0,"",OFFSET(PressureDrop[[#Headers],[Pressure drop (MPa)]],QUOTIENT(PipelineInfrastructureCost[[#This Row],[ID]]-1,Total_flow_rates*Total_transportation_distances)+1,0)) -> 10 | AF22: =IF(PipelineInfrastructureCost[[#This Row],[Active]]=0,"",OFFSET(FlowRates[[#Headers],[Flow rate (Mt CO2/y)]],MOD(QUOTIENT(PipelineInfrastructureCost[[#This Row],[ID]]-1,Total_transportation_distances),Total_flow_rates)+1,0)) -> 0.1 | AG22: =IF(PipelineInfrastructureCost[[#This Row],[Active]]=0,"",IF(Active_scenario_switch="Yes",Selected_distance,OFFSET(TransportationDistances[[#Headers],[Transportation distance (km)]],MOD(PipelineInfrastructureCost[[#This Row],[ID]]-1,Total_transportation_distances)+1,0))) -> 476 | AH22: =IF(PipelineInfrastructureCost[[#This Row],[Active]]=0,"",MAX(IF(TransmissionPipelineCost[Transmission pipeline length (km)]<=PipelineInfrastructureCost[[#This Row],[Transportation distance (km)]],TransmissionPipelineCost[Transmission pipeline length (km)]))) -> 400 | AI22: =IF(PipelineInfrastructureCost[[#This Row],[Active]]=0,"",PipelineInfrastructureCost[[#This Row],[Pressure drop (MPa)]]/PipelineInfrastructureCost[[#This Row],[Transportation distance (km)]]/10^3) -> 2.100840336e-05 | AJ22: =IF(PipelineInfrastructureCost[[#This Row],[Active]]=0,"",MIN(IF(FrictionLossesBySizeFlow[Flow rate (Mt CO2/y)]=PipelineInfrastructureCost[[#This Row],[Flow rate (Mt CO2/y)]],IF(FrictionLossesBySizeFlow[Pressure drop (MPa/m)]<PipelineInfrastructureCost[[#This Row],[Pressure drop (MPa/m)]],FrictionLossesBySizeFlow[Pipeline diameter (inches)])))) -> 4.5 | AK22: =IF(PipelineInfrastructureCost[[#This Row],[Active]]=0,"",PipelineInfrastructureCost[[#This Row],[Flow rate (Mt CO2/y)]]/Pipe_utilisation_factor*SUMIFS(ConversionFactors[Conversion value],ConversionFactors[Initial unit],"Mt",ConversionFactors[Final unit],"kg")/SUMIFS(ConversionFactors[Conversion value],ConversionFactors[Initial unit],"Year",ConversionFactors[Final unit],"second")/SUMIFS(CO2PhysicalProperties[Density (kg/m3)],CO2PhysicalProperties[Pressure (MPa)],Shoreline_supply_pressure)*(Maximum_pipeline_pressure-Minimum_pipeline_pressure)/Compressor_efficiency) -> 0.1034201843 | AL22: =IF(PipelineInfrastructureCost[[#This Row],[Active]]=0,"",PipelineInfrastructureCost[[#This Row],[Compressor size (MW)]]*CompressorCost[Compressor capex (£/MW)]) -> 387825.6911 | AM22: =IF(PipelineInfrastructureCost[[#This Row],[Active]]=0,"",PipelineInfrastructureCost[[#This Row],[Compressor capex (£)]]*CompressorCost[Opex (share of capex)]) -> 15513.02765 | AN22: =IF(PipelineInfrastructureCost[[#This Row],[Active]]=0,"",PipelineInfrastructureCost[[#This Row],[Compressor size (MW)]]*8760*Pipe_utilisation_factor*10^3*SUMIFS(FuelCost[Cost (£/kWh)],FuelCost[Fuel],CompressionFuel,FuelCost[Scenario],Liquefaction_compression_fuel_cost)) -> 54357.64887 | AO22: =IF(PipelineInfrastructureCost[[#This Row],[Active]]=0,"",SUMIFS(TransmissionPipelineCost[Capex (£/inch/km)],TransmissionPipelineCost[Transmission pipeline length (km)],PipelineInfrastructureCost[[#This Row],[Matching transportation distance (km)]])*PipelineInfrastructureCost[[#This Row],[Pipeline diameter (inches)]]*PipelineInfrastructureCost[[#This Row],[Transportation distance (km)]]) -> 119876051.7 | AP22: =IF(PipelineInfrastructureCost[[#This Row],[Active]]=0,"",SUMIFS(TransmissionPipelineCost[Opex (share of capex)],TransmissionPipelineCost[Transmission pipeline length (km)],PipelineInfrastructureCost[[#This Row],[Matching transportation distance (km)]])*PipelineInfrastructureCost[[#This Row],[Transmission pipeline capex (£)]]) -> 1198760.517 | AQ22: =IF(PipelineInfrastructureCost[[#This Row],[Active]]=0,"",PipelineInfrastructureCost[[#This Row],[Compressor capex (£)]]+PipelineInfrastructureCost[[#This Row],[Transmission pipeline capex (£)]]) -> 120263877.4 | AR22: =IF(PipelineInfrastructureCost[[#This Row],[Active]]=0,"",-PV(Discount_rate,PipelineLifetime,PipelineInfrastructureCost[[#This Row],[Compressor opex (£/y)]]+PipelineInfrastructureCost[[#This Row],[Compressor energy cost (£/y)]]+PipelineInfrastructureCost[[#This Row],[Transmission pipeline opex (£/y)]])) -> 25372623.87 | AS22: =IF(PipelineInfrastructureCost[[#This Row],[Active]]=0,"",SUM(PipelineInfrastructureCost[[#This Row],[Total capex (£/y)]:[Total lifetime discounted opex (£/y)]])/-PV(Discount_rate,PipelineLifetime,PipelineInfrastructureCost[[#This Row],[Flow rate (Mt CO2/y)]])/10^6) -> 72.81825062 | BH22: Transportation distance (km) | BI22: =IF(BI$6>Total_flow_rates,"",OFFSET(FlowRates[[#Headers],[Flow rate (Mt CO2/y)]],BI$6,0)) -> 0.1 | BJ22: =IF(BJ$6>Total_flow_rates,"",OFFSET(FlowRates[[#Headers],[Flow rate (Mt CO2/y)]],BJ$6,0)) -> 0.2 | BK22: =IF(BK$6>Total_flow_rates,"",OFFSET(FlowRates[[#Headers],[Flow rate (Mt CO2/y)]],BK$6,0)) -> 0.5 | BL22: =IF(BL$6>Total_flow_rates,"",OFFSET(FlowRates[[#Headers],[Flow rate (Mt CO2/y)]],BL$6,0)) -> 1 | BM22: =IF(BM$6>Total_flow_rates,"",OFFSET(FlowRates[[#Headers],[Flow rate (Mt CO2/y)]],BM$6,0)) -> 2 | BN22: =IF(BN$6>Total_flow_rates,"",OFFSET(FlowRates[[#Headers],[Flow rate (Mt CO2/y)]],BN$6,0)) -> 5 | BO22: =IF(BO$6>Total_flow_rates,"",OFFSET(FlowRates[[#Headers],[Flow rate (Mt CO2/y)]],BO$6,0)) -> 10 | BP22: =IF(BP$6>Total_flow_rates,"",OFFSET(FlowRates[[#Headers],[Flow rate (Mt CO2/y)]],BP$6,0)) ->  | BQ22: =IF(BQ$6>Total_flow_rates,"",OFFSET(FlowRates[[#Headers],[Flow rate (Mt CO2/y)]],BQ$6,0)) ->  | BR22: =IF(BR$6>Total_flow_rates,"",OFFSET(FlowRates[[#Headers],[Flow rate (Mt CO2/y)]],BR$6,0)) -> 
I23: 16 | J23: =IF(FrictionLossesBySizeFlow[[#This Row],[ID]]>Total_flow_rates*Total_pipeline_sizes,"",OFFSET(FlowRates[[#Headers],[Flow rate (Mt CO2/y)]],QUOTIENT(FrictionLossesBySizeFlow[[#This Row],[ID]]-1,Total_pipeline_sizes)+1,0)) -> 0.1 | K23: =IF(FrictionLossesBySizeFlow[[#This Row],[ID]]>Total_flow_rates*Total_pipeline_sizes,"",OFFSET(PipelineSizes[[#Headers],[Pipeline diameter (inches)]],MOD(FrictionLossesBySizeFlow[[#This Row],[ID]]-1,Total_pipeline_sizes)+1,0)) -> 40 | L23: =IF(FrictionLossesBySizeFlow[[#This Row],[ID]]>Total_flow_rates*Total_pipeline_sizes,"",4*FrictionLossesBySizeFlow[[#This Row],[Flow rate (Mt CO2/y)]]/Pipe_utilisation_factor*SUMIFS(ConversionFactors[Conversion value],ConversionFactors[Initial unit],"Mt",ConversionFactors[Final unit],"kg")/SUMIFS(ConversionFactors[Conversion value],ConversionFactors[Initial unit],"Year",ConversionFactors[Final unit],"second")/(PI()*SUMIFS(CO2PhysicalProperties[Viscosity (Pas)],CO2PhysicalProperties[Pressure (MPa)],Minimum_pipeline_pressure)*FrictionLossesBySizeFlow[[#This Row],[Pipeline diameter (inches)]]*SUMIFS(ConversionFactors[Conversion value],ConversionFactors[Initial unit],"Inch",ConversionFactors[Final unit],"metre"))) -> 71719.83621 | M23: =IF(FrictionLossesBySizeFlow[[#This Row],[ID]]>Total_flow_rates*Total_pipeline_sizes,"",1.325/(LN(Pipeline_roughness/(3.7*FrictionLossesBySizeFlow[[#This Row],[Pipeline diameter (inches)]]*SUMIFS(ConversionFactors[Conversion value],ConversionFactors[Initial unit],"Inch",ConversionFactors[Final unit],"metre"))+(5.74/FrictionLossesBySizeFlow[[#This Row],[Reynold''s Number]]^0.9)))^2) -> 0.01938905707 | N23: =IF(FrictionLossesBySizeFlow[[#This Row],[ID]]>Total_flow_rates*Total_pipeline_sizes,"",8*FrictionLossesBySizeFlow[[#This Row],[Friction factor]]*(FrictionLossesBySizeFlow[[#This Row],[Flow rate (Mt CO2/y)]]/Pipe_utilisation_factor*SUMIFS(ConversionFactors[Conversion value],ConversionFactors[Initial unit],"Mt",ConversionFactors[Final unit],"kg")/SUMIFS(ConversionFactors[Conversion value],ConversionFactors[Initial unit],"Year",ConversionFactors[Final unit],"second"))^2/(SUMIFS(CO2PhysicalProperties[Density (kg/m3)],CO2PhysicalProperties[Pressure (MPa)],Minimum_pipeline_pressure)*PI()^2*(FrictionLossesBySizeFlow[[#This Row],[Pipeline diameter (inches)]]*SUMIFS(ConversionFactors[Conversion value],ConversionFactors[Initial unit],"Inch",ConversionFactors[Final unit],"metre"))^5)/10^6) -> 3.173845868e-10 | P23: 15 | Q23: =IF($P23>Total_pipeline_sizes,"",OFFSET(PipelineSizes[[#Headers],[Pipeline diameter (inches)]],$P23,0)) -> 36 | R23: =IF(OR($P23>Total_pipeline_sizes,R$6>Total_flow_rates),"",SUMIFS(FrictionLossesBySizeFlow[Pressure drop (MPa/m)],FrictionLossesBySizeFlow[Pipeline diameter (inches)],$Q23,FrictionLossesBySizeFlow[Flow rate (Mt CO2/y)],R$8)*10^3) -> 5.266821182e-07 | S23: =IF(OR($P23>Total_pipeline_sizes,S$6>Total_flow_rates),"",SUMIFS(FrictionLossesBySizeFlow[Pressure drop (MPa/m)],FrictionLossesBySizeFlow[Pipeline diameter (inches)],$Q23,FrictionLossesBySizeFlow[Flow rate (Mt CO2/y)],S$8)*10^3) -> 1.843806578e-06 | T23: =IF(OR($P23>Total_pipeline_sizes,T$6>Total_flow_rates),"",SUMIFS(FrictionLossesBySizeFlow[Pressure drop (MPa/m)],FrictionLossesBySizeFlow[Pipeline diameter (inches)],$Q23,FrictionLossesBySizeFlow[Flow rate (Mt CO2/y)],T$8)*10^3) -> 9.903828065e-06 | U23: =IF(OR($P23>Total_pipeline_sizes,U$6>Total_flow_rates),"",SUMIFS(FrictionLossesBySizeFlow[Pressure drop (MPa/m)],FrictionLossesBySizeFlow[Pipeline diameter (inches)],$Q23,FrictionLossesBySizeFlow[Flow rate (Mt CO2/y)],U$8)*10^3) -> 3.608168521e-05 | V23: =IF(OR($P23>Total_pipeline_sizes,V$6>Total_flow_rates),"",SUMIFS(FrictionLossesBySizeFlow[Pressure drop (MPa/m)],FrictionLossesBySizeFlow[Pipeline diameter (inches)],$Q23,FrictionLossesBySizeFlow[Flow rate (Mt CO2/y)],V$8)*10^3) -> 0.0001341416981 | W23: =IF(OR($P23>Total_pipeline_sizes,W$6>Total_flow_rates),"",SUMIFS(FrictionLossesBySizeFlow[Pressure drop (MPa/m)],FrictionLossesBySizeFlow[Pipeline diameter (inches)],$Q23,FrictionLossesBySizeFlow[Flow rate (Mt CO2/y)],W$8)*10^3) -> 0.0007848560911 | X23: =IF(OR($P23>Total_pipeline_sizes,X$6>Total_flow_rates),"",SUMIFS(FrictionLossesBySizeFlow[Pressure drop (MPa/m)],FrictionLossesBySizeFlow[Pipeline diameter (inches)],$Q23,FrictionLossesBySizeFlow[Flow rate (Mt CO2/y)],X$8)*10^3) -> 0.003045642867 | Y23: =IF(OR($P23>Total_pipeline_sizes,Y$6>Total_flow_rates),"",SUMIFS(FrictionLossesBySizeFlow[Pressure drop (MPa/m)],FrictionLossesBySizeFlow[Pipeline diameter (inches)],$Q23,FrictionLossesBySizeFlow[Flow rate (Mt CO2/y)],Y$8)*10^3) ->  | Z23: =IF(OR($P23>Total_pipeline_sizes,Z$6>Total_flow_rates),"",SUMIFS(FrictionLossesBySizeFlow[Pressure drop (MPa/m)],FrictionLossesBySizeFlow[Pipeline diameter (inches)],$Q23,FrictionLossesBySizeFlow[Flow rate (Mt CO2/y)],Z$8)*10^3) ->  | AA23: =IF(OR($P23>Total_pipeline_sizes,AA$6>Total_flow_rates),"",SUMIFS(FrictionLossesBySizeFlow[Pressure drop (MPa/m)],FrictionLossesBySizeFlow[Pipeline diameter (inches)],$Q23,FrictionLossesBySizeFlow[Flow rate (Mt CO2/y)],AA$8)*10^3) ->  | AC23: 16 | AD23: =IF(PipelineInfrastructureCost[[#This Row],[ID]]>Total_pressure_drop*Total_flow_rates*Total_transportation_distances,0,1) -> 1 | AE23: =IF(PipelineInfrastructureCost[[#This Row],[Active]]=0,"",OFFSET(PressureDrop[[#Headers],[Pressure drop (MPa)]],QUOTIENT(PipelineInfrastructureCost[[#This Row],[ID]]-1,Total_flow_rates*Total_transportation_distances)+1,0)) -> 10 | AF23: =IF(PipelineInfrastructureCost[[#This Row],[Active]]=0,"",OFFSET(FlowRates[[#Headers],[Flow rate (Mt CO2/y)]],MOD(QUOTIENT(PipelineInfrastructureCost[[#This Row],[ID]]-1,Total_transportation_distances),Total_flow_rates)+1,0)) -> 0.2 | AG23: =IF(PipelineInfrastructureCost[[#This Row],[Active]]=0,"",IF(Active_scenario_switch="Yes",Selected_distance,OFFSET(TransportationDistances[[#Headers],[Transportation distance (km)]],MOD(PipelineInfrastructureCost[[#This Row],[ID]]-1,Total_transportation_distances)+1,0))) -> 476 | AH23: =IF(PipelineInfrastructureCost[[#This Row],[Active]]=0,"",MAX(IF(TransmissionPipelineCost[Transmission pipeline length (km)]<=PipelineInfrastructureCost[[#This Row],[Transportation distance (km)]],TransmissionPipelineCost[Transmission pipeline length (km)]))) -> 400 | AI23: =IF(PipelineInfrastructureCost[[#This Row],[Active]]=0,"",PipelineInfrastructureCost[[#This Row],[Pressure drop (MPa)]]/PipelineInfrastructureCost[[#This Row],[Transportation distance (km)]]/10^3) -> 2.100840336e-05 | AJ23: =IF(PipelineInfrastructureCost[[#This Row],[Active]]=0,"",MIN(IF(FrictionLossesBySizeFlow[Flow rate (Mt CO2/y)]=PipelineInfrastructureCost[[#This Row],[Flow rate (Mt CO2/y)]],IF(FrictionLossesBySizeFlow[Pressure drop (MPa/m)]<PipelineInfrastructureCost[[#This Row],[Pressure drop (MPa/m)]],FrictionLossesBySizeFlow[Pipeline diameter (inches)])))) -> 6 | AK23: =IF(PipelineInfrastructureCost[[#This Row],[Active]]=0,"",PipelineInfrastructureCost[[#This Row],[Flow rate (Mt CO2/y)]]/Pipe_utilisation_factor*SUMIFS(ConversionFactors[Conversion value],ConversionFactors[Initial unit],"Mt",ConversionFactors[Final unit],"kg")/SUMIFS(ConversionFactors[Conversion value],ConversionFactors[Initial unit],"Year",ConversionFactors[Final unit],"second")/SUMIFS(CO2PhysicalProperties[Density (kg/m3)],CO2PhysicalProperties[Pressure (MPa)],Shoreline_supply_pressure)*(Maximum_pipeline_pressure-Minimum_pipeline_pressure)/Compressor_efficiency) -> 0.2068403686 | AL23: =IF(PipelineInfrastructureCost[[#This Row],[Active]]=0,"",PipelineInfrastructureCost[[#This Row],[Compressor size (MW)]]*CompressorCost[Compressor capex (£/MW)]) -> 775651.3823 | AM23: =IF(PipelineInfrastructureCost[[#This Row],[Active]]=0,"",PipelineInfrastructureCost[[#This Row],[Compressor capex (£)]]*CompressorCost[Opex (share of capex)]) -> 31026.05529 | AN23: =IF(PipelineInfrastructureCost[[#This Row],[Active]]=0,"",PipelineInfrastructureCost[[#This Row],[Compressor size (MW)]]*8760*Pipe_utilisation_factor*10^3*SUMIFS(FuelCost[Cost (£/kWh)],FuelCost[Fuel],CompressionFuel,FuelCost[Scenario],Liquefaction_compression_fuel_cost)) -> 108715.2977 | AO23: =IF(PipelineInfrastructureCost[[#This Row],[Active]]=0,"",SUMIFS(TransmissionPipelineCost[Capex (£/inch/km)],TransmissionPipelineCost[Transmission pipeline length (km)],PipelineInfrastructureCost[[#This Row],[Matching transportation distance (km)]])*PipelineInfrastructureCost[[#This Row],[Pipeline diameter (inches)]]*PipelineInfrastructureCost[[#This Row],[Transportation distance (km)]]) -> 159834735.6 | AP23: =IF(PipelineInfrastructureCost[[#This Row],[Active]]=0,"",SUMIFS(TransmissionPipelineCost[Opex (share of capex)],TransmissionPipelineCost[Transmission pipeline length (km)],PipelineInfrastructureCost[[#This Row],[Matching transportation distance (km)]])*PipelineInfrastructureCost[[#This Row],[Transmission pipeline capex (£)]]) -> 1598347.356 | AQ23: =IF(PipelineInfrastructureCost[[#This Row],[Active]]=0,"",PipelineInfrastructureCost[[#This Row],[Compressor capex (£)]]+PipelineInfrastructureCost[[#This Row],[Transmission pipeline capex (£)]]) -> 160610387 | AR23: =IF(PipelineInfrastructureCost[[#This Row],[Active]]=0,"",-PV(Discount_rate,PipelineLifetime,PipelineInfrastructureCost[[#This Row],[Compressor opex (£/y)]]+PipelineInfrastructureCost[[#This Row],[Compressor energy cost (£/y)]]+PipelineInfrastructureCost[[#This Row],[Transmission pipeline opex (£/y)]])) -> 34761774.18 | AS23: =IF(PipelineInfrastructureCost[[#This Row],[Active]]=0,"",SUM(PipelineInfrastructureCost[[#This Row],[Total capex (£/y)]:[Total lifetime discounted opex (£/y)]])/-PV(Discount_rate,PipelineLifetime,PipelineInfrastructureCost[[#This Row],[Flow rate (Mt CO2/y)]])/10^6) -> 48.84304028 | BG23: =COUNTIFS(BI23:BR23,"<1") -> 2 | BH23: =IF($AU9>Total_transportation_distances,"",IF(Active_scenario_switch="Yes",Selected_distance,OFFSET(TransportationDistances[[#Headers],[Transportation distance (km)]],$AU9,0))) -> 476 | BI23: =IF(OR($AU9>Total_transportation_distances,BI$6>Total_flow_rates),"",BI9/'Shipping infrastructure costs'!DB9) -> 2.926784172 | BJ23: =IF(OR($AU9>Total_transportation_distances,BJ$6>Total_flow_rates),"",BJ9/'Shipping infrastructure costs'!DC9) -> 2.747421479 | BK23: =IF(OR($AU9>Total_transportation_distances,BK$6>Total_flow_rates),"",BK9/'Shipping infrastructure costs'!DD9) -> 2.027701742 | BL23: =IF(OR($AU9>Total_transportation_distances,BL$6>Total_flow_rates),"",BL9/'Shipping infrastructure costs'!DE9) -> 1.71606559 | BM23: =IF(OR($AU9>Total_transportation_distances,BM$6>Total_flow_rates),"",BM9/'Shipping infrastructure costs'!DF9) -> 1.427639123 | BN23: =IF(OR($AU9>Total_transportation_distances,BN$6>Total_flow_rates),"",BN9/'Shipping infrastructure costs'!DG9) -> 0.8982598995 | BO23: =IF(OR($AU9>Total_transportation_distances,BO$6>Total_flow_rates),"",BO9/'Shipping infrastructure costs'!DH9) -> 0.6974110876 | BP23: =IF(OR($AU9>Total_transportation_distances,BP$6>Total_flow_rates),"",BP9/'Shipping infrastructure costs'!DI9) ->  | BQ23: =IF(OR($AU9>Total_transportation_distances,BQ$6>Total_flow_rates),"",BQ9/'Shipping infrastructure costs'!DJ9) ->  | BR23: =IF(OR($AU9>Total_transportation_distances,BR$6>Total_flow_rates),"",BR9/'Shipping infrastructure costs'!DK9) -> 
I24: 17 | J24: =IF(FrictionLossesBySizeFlow[[#This Row],[ID]]>Total_flow_rates*Total_pipeline_sizes,"",OFFSET(FlowRates[[#Headers],[Flow rate (Mt CO2/y)]],QUOTIENT(FrictionLossesBySizeFlow[[#This Row],[ID]]-1,Total_pipeline_sizes)+1,0)) -> 0.1 | K24: =IF(FrictionLossesBySizeFlow[[#This Row],[ID]]>Total_flow_rates*Total_pipeline_sizes,"",OFFSET(PipelineSizes[[#Headers],[Pipeline diameter (inches)]],MOD(FrictionLossesBySizeFlow[[#This Row],[ID]]-1,Total_pipeline_sizes)+1,0)) -> 44 | L24: =IF(FrictionLossesBySizeFlow[[#This Row],[ID]]>Total_flow_rates*Total_pipeline_sizes,"",4*FrictionLossesBySizeFlow[[#This Row],[Flow rate (Mt CO2/y)]]/Pipe_utilisation_factor*SUMIFS(ConversionFactors[Conversion value],ConversionFactors[Initial unit],"Mt",ConversionFactors[Final unit],"kg")/SUMIFS(ConversionFactors[Conversion value],ConversionFactors[Initial unit],"Year",ConversionFactors[Final unit],"second")/(PI()*SUMIFS(CO2PhysicalProperties[Viscosity (Pas)],CO2PhysicalProperties[Pressure (MPa)],Minimum_pipeline_pressure)*FrictionLossesBySizeFlow[[#This Row],[Pipeline diameter (inches)]]*SUMIFS(ConversionFactors[Conversion value],ConversionFactors[Initial unit],"Inch",ConversionFactors[Final unit],"metre"))) -> 65199.8511 | M24: =IF(FrictionLossesBySizeFlow[[#This Row],[ID]]>Total_flow_rates*Total_pipeline_sizes,"",1.325/(LN(Pipeline_roughness/(3.7*FrictionLossesBySizeFlow[[#This Row],[Pipeline diameter (inches)]]*SUMIFS(ConversionFactors[Conversion value],ConversionFactors[Initial unit],"Inch",ConversionFactors[Final unit],"metre"))+(5.74/FrictionLossesBySizeFlow[[#This Row],[Reynold''s Number]]^0.9)))^2) -> 0.01975984826 | N24: =IF(FrictionLossesBySizeFlow[[#This Row],[ID]]>Total_flow_rates*Total_pipeline_sizes,"",8*FrictionLossesBySizeFlow[[#This Row],[Friction factor]]*(FrictionLossesBySizeFlow[[#This Row],[Flow rate (Mt CO2/y)]]/Pipe_utilisation_factor*SUMIFS(ConversionFactors[Conversion value],ConversionFactors[Initial unit],"Mt",ConversionFactors[Final unit],"kg")/SUMIFS(ConversionFactors[Conversion value],ConversionFactors[Initial unit],"Year",ConversionFactors[Final unit],"second"))^2/(SUMIFS(CO2PhysicalProperties[Density (kg/m3)],CO2PhysicalProperties[Pressure (MPa)],Minimum_pipeline_pressure)*PI()^2*(FrictionLossesBySizeFlow[[#This Row],[Pipeline diameter (inches)]]*SUMIFS(ConversionFactors[Conversion value],ConversionFactors[Initial unit],"Inch",ConversionFactors[Final unit],"metre"))^5)/10^6) -> 2.008395884e-10 | P24: 16 | Q24: =IF($P24>Total_pipeline_sizes,"",OFFSET(PipelineSizes[[#Headers],[Pipeline diameter (inches)]],$P24,0)) -> 40 | R24: =IF(OR($P24>Total_pipeline_sizes,R$6>Total_flow_rates),"",SUMIFS(FrictionLossesBySizeFlow[Pressure drop (MPa/m)],FrictionLossesBySizeFlow[Pipeline diameter (inches)],$Q24,FrictionLossesBySizeFlow[Flow rate (Mt CO2/y)],R$8)*10^3) -> 3.173845868e-07 | S24: =IF(OR($P24>Total_pipeline_sizes,S$6>Total_flow_rates),"",SUMIFS(FrictionLossesBySizeFlow[Pressure drop (MPa/m)],FrictionLossesBySizeFlow[Pipeline diameter (inches)],$Q24,FrictionLossesBySizeFlow[Flow rate (Mt CO2/y)],S$8)*10^3) -> 1.107587869e-06 | T24: =IF(OR($P24>Total_pipeline_sizes,T$6>Total_flow_rates),"",SUMIFS(FrictionLossesBySizeFlow[Pressure drop (MPa/m)],FrictionLossesBySizeFlow[Pipeline diameter (inches)],$Q24,FrictionLossesBySizeFlow[Flow rate (Mt CO2/y)],T$8)*10^3) -> 5.917903584e-06 | U24: =IF(OR($P24>Total_pipeline_sizes,U$6>Total_flow_rates),"",SUMIFS(FrictionLossesBySizeFlow[Pressure drop (MPa/m)],FrictionLossesBySizeFlow[Pipeline diameter (inches)],$Q24,FrictionLossesBySizeFlow[Flow rate (Mt CO2/y)],U$8)*10^3) -> 2.145067557e-05 | V24: =IF(OR($P24>Total_pipeline_sizes,V$6>Total_flow_rates),"",SUMIFS(FrictionLossesBySizeFlow[Pressure drop (MPa/m)],FrictionLossesBySizeFlow[Pipeline diameter (inches)],$Q24,FrictionLossesBySizeFlow[Flow rate (Mt CO2/y)],V$8)*10^3) -> 7.928693084e-05 | W24: =IF(OR($P24>Total_pipeline_sizes,W$6>Total_flow_rates),"",SUMIFS(FrictionLossesBySizeFlow[Pressure drop (MPa/m)],FrictionLossesBySizeFlow[Pipeline diameter (inches)],$Q24,FrictionLossesBySizeFlow[Flow rate (Mt CO2/y)],W$8)*10^3) -> 0.0004604530728 | X24: =IF(OR($P24>Total_pipeline_sizes,X$6>Total_flow_rates),"",SUMIFS(FrictionLossesBySizeFlow[Pressure drop (MPa/m)],FrictionLossesBySizeFlow[Pipeline diameter (inches)],$Q24,FrictionLossesBySizeFlow[Flow rate (Mt CO2/y)],X$8)*10^3) -> 0.001778801814 | Y24: =IF(OR($P24>Total_pipeline_sizes,Y$6>Total_flow_rates),"",SUMIFS(FrictionLossesBySizeFlow[Pressure drop (MPa/m)],FrictionLossesBySizeFlow[Pipeline diameter (inches)],$Q24,FrictionLossesBySizeFlow[Flow rate (Mt CO2/y)],Y$8)*10^3) ->  | Z24: =IF(OR($P24>Total_pipeline_sizes,Z$6>Total_flow_rates),"",SUMIFS(FrictionLossesBySizeFlow[Pressure drop (MPa/m)],FrictionLossesBySizeFlow[Pipeline diameter (inches)],$Q24,FrictionLossesBySizeFlow[Flow rate (Mt CO2/y)],Z$8)*10^3) ->  | AA24: =IF(OR($P24>Total_pipeline_sizes,AA$6>Total_flow_rates),"",SUMIFS(FrictionLossesBySizeFlow[Pressure drop (MPa/m)],FrictionLossesBySizeFlow[Pipeline diameter (inches)],$Q24,FrictionLossesBySizeFlow[Flow rate (Mt CO2/y)],AA$8)*10^3) ->  | AC24: 17 | AD24: =IF(PipelineInfrastructureCost[[#This Row],[ID]]>Total_pressure_drop*Total_flow_rates*Total_transportation_distances,0,1) -> 1 | AE24: =IF(PipelineInfrastructureCost[[#This Row],[Active]]=0,"",OFFSET(PressureDrop[[#Headers],[Pressure drop (MPa)]],QUOTIENT(PipelineInfrastructureCost[[#This Row],[ID]]-1,Total_flow_rates*Total_transportation_distances)+1,0)) -> 10 | AF24: =IF(PipelineInfrastructureCost[[#This Row],[Active]]=0,"",OFFSET(FlowRates[[#Headers],[Flow rate (Mt CO2/y)]],MOD(QUOTIENT(PipelineInfrastructureCost[[#This Row],[ID]]-1,Total_transportation_distances),Total_flow_rates)+1,0)) -> 0.5 | AG24: =IF(PipelineInfrastructureCost[[#This Row],[Active]]=0,"",IF(Active_scenario_switch="Yes",Selected_distance,OFFSET(TransportationDistances[[#Headers],[Transportation distance (km)]],MOD(PipelineInfrastructureCost[[#This Row],[ID]]-1,Total_transportation_distances)+1,0))) -> 476 | AH24: =IF(PipelineInfrastructureCost[[#This Row],[Active]]=0,"",MAX(IF(TransmissionPipelineCost[Transmission pipeline length (km)]<=PipelineInfrastructureCost[[#This Row],[Transportation distance (km)]],TransmissionPipelineCost[Transmission pipeline length (km)]))) -> 400 | AI24: =IF(PipelineInfrastructureCost[[#This Row],[Active]]=0,"",PipelineInfrastructureCost[[#This Row],[Pressure drop (MPa)]]/PipelineInfrastructureCost[[#This Row],[Transportation distance (km)]]/10^3) -> 2.100840336e-05 | AJ24: =IF(PipelineInfrastructureCost[[#This Row],[Active]]=0,"",MIN(IF(FrictionLossesBySizeFlow[Flow rate (Mt CO2/y)]=PipelineInfrastructureCost[[#This Row],[Flow rate (Mt CO2/y)]],IF(FrictionLossesBySizeFlow[Pressure drop (MPa/m)]<PipelineInfrastructureCost[[#This Row],[Pressure drop (MPa/m)]],FrictionLossesBySizeFlow[Pipeline diameter (inches)])))) -> 8 | AK24: =IF(PipelineInfrastructureCost[[#This Row],[Active]]=0,"",PipelineInfrastructureCost[[#This Row],[Flow rate (Mt CO2/y)]]/Pipe_utilisation_factor*SUMIFS(ConversionFactors[Conversion value],ConversionFactors[Initial unit],"Mt",ConversionFactors[Final unit],"kg")/SUMIFS(ConversionFactors[Conversion value],ConversionFactors[Initial unit],"Year",ConversionFactors[Final unit],"second")/SUMIFS(CO2PhysicalProperties[Density (kg/m3)],CO2PhysicalProperties[Pressure (MPa)],Shoreline_supply_pressure)*(Maximum_pipeline_pressure-Minimum_pipeline_pressure)/Compressor_efficiency) -> 0.5171009215 | AL24: =IF(PipelineInfrastructureCost[[#This Row],[Active]]=0,"",PipelineInfrastructureCost[[#This Row],[Compressor size (MW)]]*CompressorCost[Compressor capex (£/MW)]) -> 1939128.456 | AM24: =IF(PipelineInfrastructureCost[[#This Row],[Active]]=0,"",PipelineInfrastructureCost[[#This Row],[Compressor capex (£)]]*CompressorCost[Opex (share of capex)]) -> 77565.13823 | AN24: =IF(PipelineInfrastructureCost[[#This Row],[Active]]=0,"",PipelineInfrastructureCost[[#This Row],[Compressor size (MW)]]*8760*Pipe_utilisation_factor*10^3*SUMIFS(FuelCost[Cost (£/kWh)],FuelCost[Fuel],CompressionFuel,FuelCost[Scenario],Liquefaction_compression_fuel_cost)) -> 271788.2443 | AO24: =IF(PipelineInfrastructureCost[[#This Row],[Active]]=0,"",SUMIFS(TransmissionPipelineCost[Capex (£/inch/km)],TransmissionPipelineCost[Transmission pipeline length (km)],PipelineInfrastructureCost[[#This Row],[Matching transportation distance (km)]])*PipelineInfrastructureCost[[#This Row],[Pipeline diameter (inches)]]*PipelineInfrastructureCost[[#This Row],[Transportation distance (km)]]) -> 213112980.8 | AP24: =IF(PipelineInfrastructureCost[[#This Row],[Active]]=0,"",SUMIFS(TransmissionPipelineCost[Opex (share of capex)],TransmissionPipelineCost[Transmission pipeline length (km)],PipelineInfrastructureCost[[#This Row],[Matching transportation distance (km)]])*PipelineInfrastructureCost[[#This Row],[Transmission pipeline capex (£)]]) -> 2131129.808 | AQ24: =IF(PipelineInfrastructureCost[[#This Row],[Active]]=0,"",PipelineInfrastructureCost[[#This Row],[Compressor capex (£)]]+PipelineInfrastructureCost[[#This Row],[Transmission pipeline capex (£)]]) -> 215052109.2 | AR24: =IF(PipelineInfrastructureCost[[#This Row],[Active]]=0,"",-PV(Discount_rate,PipelineLifetime,PipelineInfrastructureCost[[#This Row],[Compressor opex (£/y)]]+PipelineInfrastructureCost[[#This Row],[Compressor energy cost (£/y)]]+PipelineInfrastructureCost[[#This Row],[Transmission pipeline opex (£/y)]])) -> 49609663.81 | AS24: =IF(PipelineInfrastructureCost[[#This Row],[Active]]=0,"",SUM(PipelineInfrastructureCost[[#This Row],[Total capex (£/y)]:[Total lifetime discounted opex (£/y)]])/-PV(Discount_rate,PipelineLifetime,PipelineInfrastructureCost[[#This Row],[Flow rate (Mt CO2/y)]])/10^6) -> 26.4661773 | BG24: =COUNTIFS(BI24:BR24,"<1") -> 0 | BH24: =IF($AU10>Total_transportation_distances,"",IF(Active_scenario_switch="Yes",Selected_distance,OFFSET(TransportationDistances[[#Headers],[Transportation distance (km)]],$AU10,0))) ->  | BI24: =IF(OR($AU10>Total_transportation_distances,BI$6>Total_flow_rates),"",BI10/'Shipping infrastructure costs'!DB10) ->  | BJ24: =IF(OR($AU10>Total_transportation_distances,BJ$6>Total_flow_rates),"",BJ10/'Shipping infrastructure costs'!DC10) ->  | BK24: =IF(OR($AU10>Total_transportation_distances,BK$6>Total_flow_rates),"",BK10/'Shipping infrastructure costs'!DD10) ->  | BL24: =IF(OR($AU10>Total_transportation_distances,BL$6>Total_flow_rates),"",BL10/'Shipping infrastructure costs'!DE10) ->  | BM24: =IF(OR($AU10>Total_transportation_distances,BM$6>Total_flow_rates),"",BM10/'Shipping infrastructure costs'!DF10) ->  | BN24: =IF(OR($AU10>Total_transportation_distances,BN$6>Total_flow_rates),"",BN10/'Shipping infrastructure costs'!DG10) ->  | BO24: =IF(OR($AU10>Total_transportation_distances,BO$6>Total_flow_rates),"",BO10/'Shipping infrastructure costs'!DH10) ->  | BP24: =IF(OR($AU10>Total_transportation_distances,BP$6>Total_flow_rates),"",BP10/'Shipping infrastructure costs'!DI10) ->  | BQ24: =IF(OR($AU10>Total_transportation_distances,BQ$6>Total_flow_rates),"",BQ10/'Shipping infrastructure costs'!DJ10) ->  | BR24: =IF(OR($AU10>Total_transportation_distances,BR$6>Total_flow_rates),"",BR10/'Shipping infrastructure costs'!DK10) -> 
I25: 18 | J25: =IF(FrictionLossesBySizeFlow[[#This Row],[ID]]>Total_flow_rates*Total_pipeline_sizes,"",OFFSET(FlowRates[[#Headers],[Flow rate (Mt CO2/y)]],QUOTIENT(FrictionLossesBySizeFlow[[#This Row],[ID]]-1,Total_pipeline_sizes)+1,0)) -> 0.1 | K25: =IF(FrictionLossesBySizeFlow[[#This Row],[ID]]>Total_flow_rates*Total_pipeline_sizes,"",OFFSET(PipelineSizes[[#Headers],[Pipeline diameter (inches)]],MOD(FrictionLossesBySizeFlow[[#This Row],[ID]]-1,Total_pipeline_sizes)+1,0)) -> 48 | L25: =IF(FrictionLossesBySizeFlow[[#This Row],[ID]]>Total_flow_rates*Total_pipeline_sizes,"",4*FrictionLossesBySizeFlow[[#This Row],[Flow rate (Mt CO2/y)]]/Pipe_utilisation_factor*SUMIFS(ConversionFactors[Conversion value],ConversionFactors[Initial unit],"Mt",ConversionFactors[Final unit],"kg")/SUMIFS(ConversionFactors[Conversion value],ConversionFactors[Initial unit],"Year",ConversionFactors[Final unit],"second")/(PI()*SUMIFS(CO2PhysicalProperties[Viscosity (Pas)],CO2PhysicalProperties[Pressure (MPa)],Minimum_pipeline_pressure)*FrictionLossesBySizeFlow[[#This Row],[Pipeline diameter (inches)]]*SUMIFS(ConversionFactors[Conversion value],ConversionFactors[Initial unit],"Inch",ConversionFactors[Final unit],"metre"))) -> 59766.53018 | M25: =IF(FrictionLossesBySizeFlow[[#This Row],[ID]]>Total_flow_rates*Total_pipeline_sizes,"",1.325/(LN(Pipeline_roughness/(3.7*FrictionLossesBySizeFlow[[#This Row],[Pipeline diameter (inches)]]*SUMIFS(ConversionFactors[Conversion value],ConversionFactors[Initial unit],"Inch",ConversionFactors[Final unit],"metre"))+(5.74/FrictionLossesBySizeFlow[[#This Row],[Reynold''s Number]]^0.9)))^2) -> 0.02011316678 | N25: =IF(FrictionLossesBySizeFlow[[#This Row],[ID]]>Total_flow_rates*Total_pipeline_sizes,"",8*FrictionLossesBySizeFlow[[#This Row],[Friction factor]]*(FrictionLossesBySizeFlow[[#This Row],[Flow rate (Mt CO2/y)]]/Pipe_utilisation_factor*SUMIFS(ConversionFactors[Conversion value],ConversionFactors[Initial unit],"Mt",ConversionFactors[Final unit],"kg")/SUMIFS(ConversionFactors[Conversion value],ConversionFactors[Initial unit],"Year",ConversionFactors[Final unit],"second"))^2/(SUMIFS(CO2PhysicalProperties[Density (kg/m3)],CO2PhysicalProperties[Pressure (MPa)],Minimum_pipeline_pressure)*PI()^2*(FrictionLossesBySizeFlow[[#This Row],[Pipeline diameter (inches)]]*SUMIFS(ConversionFactors[Conversion value],ConversionFactors[Initial unit],"Inch",ConversionFactors[Final unit],"metre"))^5)/10^6) -> 1.323132594e-10 | P25: 17 | Q25: =IF($P25>Total_pipeline_sizes,"",OFFSET(PipelineSizes[[#Headers],[Pipeline diameter (inches)]],$P25,0)) -> 44 | R25: =IF(OR($P25>Total_pipeline_sizes,R$6>Total_flow_rates),"",SUMIFS(FrictionLossesBySizeFlow[Pressure drop (MPa/m)],FrictionLossesBySizeFlow[Pipeline diameter (inches)],$Q25,FrictionLossesBySizeFlow[Flow rate (Mt CO2/y)],R$8)*10^3) -> 2.008395884e-07 | S25: =IF(OR($P25>Total_pipeline_sizes,S$6>Total_flow_rates),"",SUMIFS(FrictionLossesBySizeFlow[Pressure drop (MPa/m)],FrictionLossesBySizeFlow[Pipeline diameter (inches)],$Q25,FrictionLossesBySizeFlow[Flow rate (Mt CO2/y)],S$8)*10^3) -> 6.989985545e-07 | T25: =IF(OR($P25>Total_pipeline_sizes,T$6>Total_flow_rates),"",SUMIFS(FrictionLossesBySizeFlow[Pressure drop (MPa/m)],FrictionLossesBySizeFlow[Pipeline diameter (inches)],$Q25,FrictionLossesBySizeFlow[Flow rate (Mt CO2/y)],T$8)*10^3) -> 3.718321358e-06 | U25: =IF(OR($P25>Total_pipeline_sizes,U$6>Total_flow_rates),"",SUMIFS(FrictionLossesBySizeFlow[Pressure drop (MPa/m)],FrictionLossesBySizeFlow[Pipeline diameter (inches)],$Q25,FrictionLossesBySizeFlow[Flow rate (Mt CO2/y)],U$8)*10^3) -> 1.342007231e-05 | V25: =IF(OR($P25>Total_pipeline_sizes,V$6>Total_flow_rates),"",SUMIFS(FrictionLossesBySizeFlow[Pressure drop (MPa/m)],FrictionLossesBySizeFlow[Pipeline diameter (inches)],$Q25,FrictionLossesBySizeFlow[Flow rate (Mt CO2/y)],V$8)*10^3) -> 4.935409332e-05 | W25: =IF(OR($P25>Total_pipeline_sizes,W$6>Total_flow_rates),"",SUMIFS(FrictionLossesBySizeFlow[Pressure drop (MPa/m)],FrictionLossesBySizeFlow[Pipeline diameter (inches)],$Q25,FrictionLossesBySizeFlow[Flow rate (Mt CO2/y)],W$8)*10^3) -> 0.0002846588135 | X25: =IF(OR($P25>Total_pipeline_sizes,X$6>Total_flow_rates),"",SUMIFS(FrictionLossesBySizeFlow[Pressure drop (MPa/m)],FrictionLossesBySizeFlow[Pipeline diameter (inches)],$Q25,FrictionLossesBySizeFlow[Flow rate (Mt CO2/y)],X$8)*10^3) -> 0.001094892624 | Y25: =IF(OR($P25>Total_pipeline_sizes,Y$6>Total_flow_rates),"",SUMIFS(FrictionLossesBySizeFlow[Pressure drop (MPa/m)],FrictionLossesBySizeFlow[Pipeline diameter (inches)],$Q25,FrictionLossesBySizeFlow[Flow rate (Mt CO2/y)],Y$8)*10^3) ->  | Z25: =IF(OR($P25>Total_pipeline_sizes,Z$6>Total_flow_rates),"",SUMIFS(FrictionLossesBySizeFlow[Pressure drop (MPa/m)],FrictionLossesBySizeFlow[Pipeline diameter (inches)],$Q25,FrictionLossesBySizeFlow[Flow rate (Mt CO2/y)],Z$8)*10^3) ->  | AA25: =IF(OR($P25>Total_pipeline_sizes,AA$6>Total_flow_rates),"",SUMIFS(FrictionLossesBySizeFlow[Pressure drop (MPa/m)],FrictionLossesBySizeFlow[Pipeline diameter (inches)],$Q25,FrictionLossesBySizeFlow[Flow rate (Mt CO2/y)],AA$8)*10^3) ->  | AC25: 18 | AD25: =IF(PipelineInfrastructureCost[[#This Row],[ID]]>Total_pressure_drop*Total_flow_rates*Total_transportation_distances,0,1) -> 1 | AE25: =IF(PipelineInfrastructureCost[[#This Row],[Active]]=0,"",OFFSET(PressureDrop[[#Headers],[Pressure drop (MPa)]],QUOTIENT(PipelineInfrastructureCost[[#This Row],[ID]]-1,Total_flow_rates*Total_transportation_distances)+1,0)) -> 10 | AF25: =IF(PipelineInfrastructureCost[[#This Row],[Active]]=0,"",OFFSET(FlowRates[[#Headers],[Flow rate (Mt CO2/y)]],MOD(QUOTIENT(PipelineInfrastructureCost[[#This Row],[ID]]-1,Total_transportation_distances),Total_flow_rates)+1,0)) -> 1 | AG25: =IF(PipelineInfrastructureCost[[#This Row],[Active]]=0,"",IF(Active_scenario_switch="Yes",Selected_distance,OFFSET(TransportationDistances[[#Headers],[Transportation distance (km)]],MOD(PipelineInfrastructureCost[[#This Row],[ID]]-1,Total_transportation_distances)+1,0))) -> 476 | AH25: =IF(PipelineInfrastructureCost[[#This Row],[Active]]=0,"",MAX(IF(TransmissionPipelineCost[Transmission pipeline length (km)]<=PipelineInfrastructureCost[[#This Row],[Transportation distance (km)]],TransmissionPipelineCost[Transmission pipeline length (km)]))) -> 400 | AI25: =IF(PipelineInfrastructureCost[[#This Row],[Active]]=0,"",PipelineInfrastructureCost[[#This Row],[Pressure drop (MPa)]]/PipelineInfrastructureCost[[#This Row],[Transportation distance (km)]]/10^3) -> 2.100840336e-05 | AJ25: =IF(PipelineInfrastructureCost[[#This Row],[Active]]=0,"",MIN(IF(FrictionLossesBySizeFlow[Flow rate (Mt CO2/y)]=PipelineInfrastructureCost[[#This Row],[Flow rate (Mt CO2/y)]],IF(FrictionLossesBySizeFlow[Pressure drop (MPa/m)]<PipelineInfrastructureCost[[#This Row],[Pressure drop (MPa/m)]],FrictionLossesBySizeFlow[Pipeline diameter (inches)])))) -> 12 | AK25: =IF(PipelineInfrastructureCost[[#This Row],[Active]]=0,"",PipelineInfrastructureCost[[#This Row],[Flow rate (Mt CO2/y)]]/Pipe_utilisation_factor*SUMIFS(ConversionFactors[Conversion value],ConversionFactors[Initial unit],"Mt",ConversionFactors[Final unit],"kg")/SUMIFS(ConversionFactors[Conversion value],ConversionFactors[Initial unit],"Year",ConversionFactors[Final unit],"second")/SUMIFS(CO2PhysicalProperties[Density (kg/m3)],CO2PhysicalProperties[Pressure (MPa)],Shoreline_supply_pressure)*(Maximum_pipeline_pressure-Minimum_pipeline_pressure)/Compressor_efficiency) -> 1.034201843 | AL25: =IF(PipelineInfrastructureCost[[#This Row],[Active]]=0,"",PipelineInfrastructureCost[[#This Row],[Compressor size (MW)]]*CompressorCost[Compressor capex (£/MW)]) -> 3878256.911 | AM25: =IF(PipelineInfrastructureCost[[#This Row],[Active]]=0,"",PipelineInfrastructureCost[[#This Row],[Compressor capex (£)]]*CompressorCost[Opex (share of capex)]) -> 155130.2765 | AN25: =IF(PipelineInfrastructureCost[[#This Row],[Active]]=0,"",PipelineInfrastructureCost[[#This Row],[Compressor size (MW)]]*8760*Pipe_utilisation_factor*10^3*SUMIFS(FuelCost[Cost (£/kWh)],FuelCost[Fuel],CompressionFuel,FuelCost[Scenario],Liquefaction_compression_fuel_cost)) -> 543576.4887 | AO25: =IF(PipelineInfrastructureCost[[#This Row],[Active]]=0,"",SUMIFS(TransmissionPipelineCost[Capex (£/inch/km)],TransmissionPipelineCost[Transmission pipeline length (km)],PipelineInfrastructureCost[[#This Row],[Matching transportation distance (km)]])*PipelineInfrastructureCost[[#This Row],[Pipeline diameter (inches)]]*PipelineInfrastructureCost[[#This Row],[Transportation distance (km)]]) -> 319669471.2 | AP25: =IF(PipelineInfrastructureCost[[#This Row],[Active]]=0,"",SUMIFS(TransmissionPipelineCost[Opex (share of capex)],TransmissionPipelineCost[Transmission pipeline length (km)],PipelineInfrastructureCost[[#This Row],[Matching transportation distance (km)]])*PipelineInfrastructureCost[[#This Row],[Transmission pipeline capex (£)]]) -> 3196694.712 | AQ25: =IF(PipelineInfrastructureCost[[#This Row],[Active]]=0,"",PipelineInfrastructureCost[[#This Row],[Compressor capex (£)]]+PipelineInfrastructureCost[[#This Row],[Transmission pipeline capex (£)]]) -> 323547728.1 | AR25: =IF(PipelineInfrastructureCost[[#This Row],[Active]]=0,"",-PV(Discount_rate,PipelineLifetime,PipelineInfrastructureCost[[#This Row],[Compressor opex (£/y)]]+PipelineInfrastructureCost[[#This Row],[Compressor energy cost (£/y)]]+PipelineInfrastructureCost[[#This Row],[Transmission pipeline opex (£/y)]])) -> 77908029.53 | AS25: =IF(PipelineInfrastructureCost[[#This Row],[Active]]=0,"",SUM(PipelineInfrastructureCost[[#This Row],[Total capex (£/y)]:[Total lifetime discounted opex (£/y)]])/-PV(Discount_rate,PipelineLifetime,PipelineInfrastructureCost[[#This Row],[Flow rate (Mt CO2/y)]])/10^6) -> 20.07278788 | BG25: 0 | BH25: =IF($AU11>Total_transportation_distances,"",IF(Active_scenario_switch="Yes",Selected_distance,OFFSET(TransportationDistances[[#Headers],[Transportation distance (km)]],$AU11,0))) ->  | BI25: =IF(OR($AU11>Total_transportation_distances,BI$6>Total_flow_rates),"",BI11/'Shipping infrastructure costs'!DB11) ->  | BJ25: =IF(OR($AU11>Total_transportation_distances,BJ$6>Total_flow_rates),"",BJ11/'Shipping infrastructure costs'!DC11) ->  | BK25: =IF(OR($AU11>Total_transportation_distances,BK$6>Total_flow_rates),"",BK11/'Shipping infrastructure costs'!DD11) ->  | BL25: =IF(OR($AU11>Total_transportation_distances,BL$6>Total_flow_rates),"",BL11/'Shipping infrastructure costs'!DE11) ->  | BM25: =IF(OR($AU11>Total_transportation_distances,BM$6>Total_flow_rates),"",BM11/'Shipping infrastructure costs'!DF11) ->  | BN25: =IF(OR($AU11>Total_transportation_distances,BN$6>Total_flow_rates),"",BN11/'Shipping infrastructure costs'!DG11) ->  | BO25: =IF(OR($AU11>Total_transportation_distances,BO$6>Total_flow_rates),"",BO11/'Shipping infrastructure costs'!DH11) ->  | BP25: =IF(OR($AU11>Total_transportation_distances,BP$6>Total_flow_rates),"",BP11/'Shipping infrastructure costs'!DI11) ->  | BQ25: =IF(OR($AU11>Total_transportation_distances,BQ$6>Total_flow_rates),"",BQ11/'Shipping infrastructure costs'!DJ11) ->  | BR25: =IF(OR($AU11>Total_transportation_distances,BR$6>Total_flow_rates),"",BR11/'Shipping infrastructure costs'!DK11) -> 
I26: 19 | J26: =IF(FrictionLossesBySizeFlow[[#This Row],[ID]]>Total_flow_rates*Total_pipeline_sizes,"",OFFSET(FlowRates[[#Headers],[Flow rate (Mt CO2/y)]],QUOTIENT(FrictionLossesBySizeFlow[[#This Row],[ID]]-1,Total_pipeline_sizes)+1,0)) -> 0.1 | K26: =IF(FrictionLossesBySizeFlow[[#This Row],[ID]]>Total_flow_rates*Total_pipeline_sizes,"",OFFSET(PipelineSizes[[#Headers],[Pipeline diameter (inches)]],MOD(FrictionLossesBySizeFlow[[#This Row],[ID]]-1,Total_pipeline_sizes)+1,0)) -> 52 | L26: =IF(FrictionLossesBySizeFlow[[#This Row],[ID]]>Total_flow_rates*Total_pipeline_sizes,"",4*FrictionLossesBySizeFlow[[#This Row],[Flow rate (Mt CO2/y)]]/Pipe_utilisation_factor*SUMIFS(ConversionFactors[Conversion value],ConversionFactors[Initial unit],"Mt",ConversionFactors[Final unit],"kg")/SUMIFS(ConversionFactors[Conversion value],ConversionFactors[Initial unit],"Year",ConversionFactors[Final unit],"second")/(PI()*SUMIFS(CO2PhysicalProperties[Viscosity (Pas)],CO2PhysicalProperties[Pressure (MPa)],Minimum_pipeline_pressure)*FrictionLossesBySizeFlow[[#This Row],[Pipeline diameter (inches)]]*SUMIFS(ConversionFactors[Conversion value],ConversionFactors[Initial unit],"Inch",ConversionFactors[Final unit],"metre"))) -> 55169.10478 | M26: =IF(FrictionLossesBySizeFlow[[#This Row],[ID]]>Total_flow_rates*Total_pipeline_sizes,"",1.325/(LN(Pipeline_roughness/(3.7*FrictionLossesBySizeFlow[[#This Row],[Pipeline diameter (inches)]]*SUMIFS(ConversionFactors[Conversion value],ConversionFactors[Initial unit],"Inch",ConversionFactors[Final unit],"metre"))+(5.74/FrictionLossesBySizeFlow[[#This Row],[Reynold''s Number]]^0.9)))^2) -> 0.02045065823 | N26: =IF(FrictionLossesBySizeFlow[[#This Row],[ID]]>Total_flow_rates*Total_pipeline_sizes,"",8*FrictionLossesBySizeFlow[[#This Row],[Friction factor]]*(FrictionLossesBySizeFlow[[#This Row],[Flow rate (Mt CO2/y)]]/Pipe_utilisation_factor*SUMIFS(ConversionFactors[Conversion value],ConversionFactors[Initial unit],"Mt",ConversionFactors[Final unit],"kg")/SUMIFS(ConversionFactors[Conversion value],ConversionFactors[Initial unit],"Year",ConversionFactors[Final unit],"second"))^2/(SUMIFS(CO2PhysicalProperties[Density (kg/m3)],CO2PhysicalProperties[Pressure (MPa)],Minimum_pipeline_pressure)*PI()^2*(FrictionLossesBySizeFlow[[#This Row],[Pipeline diameter (inches)]]*SUMIFS(ConversionFactors[Conversion value],ConversionFactors[Initial unit],"Inch",ConversionFactors[Final unit],"metre"))^5)/10^6) -> 9.016119776e-11 | P26: 18 | Q26: =IF($P26>Total_pipeline_sizes,"",OFFSET(PipelineSizes[[#Headers],[Pipeline diameter (inches)]],$P26,0)) -> 48 | R26: =IF(OR($P26>Total_pipeline_sizes,R$6>Total_flow_rates),"",SUMIFS(FrictionLossesBySizeFlow[Pressure drop (MPa/m)],FrictionLossesBySizeFlow[Pipeline diameter (inches)],$Q26,FrictionLossesBySizeFlow[Flow rate (Mt CO2/y)],R$8)*10^3) -> 1.323132594e-07 | S26: =IF(OR($P26>Total_pipeline_sizes,S$6>Total_flow_rates),"",SUMIFS(FrictionLossesBySizeFlow[Pressure drop (MPa/m)],FrictionLossesBySizeFlow[Pipeline diameter (inches)],$Q26,FrictionLossesBySizeFlow[Flow rate (Mt CO2/y)],S$8)*10^3) -> 4.594323838e-07 | T26: =IF(OR($P26>Total_pipeline_sizes,T$6>Total_flow_rates),"",SUMIFS(FrictionLossesBySizeFlow[Pressure drop (MPa/m)],FrictionLossesBySizeFlow[Pipeline diameter (inches)],$Q26,FrictionLossesBySizeFlow[Flow rate (Mt CO2/y)],T$8)*10^3) -> 2.434789731e-06 | U26: =IF(OR($P26>Total_pipeline_sizes,U$6>Total_flow_rates),"",SUMIFS(FrictionLossesBySizeFlow[Pressure drop (MPa/m)],FrictionLossesBySizeFlow[Pipeline diameter (inches)],$Q26,FrictionLossesBySizeFlow[Flow rate (Mt CO2/y)],U$8)*10^3) -> 8.755474543e-06 | V26: =IF(OR($P26>Total_pipeline_sizes,V$6>Total_flow_rates),"",SUMIFS(FrictionLossesBySizeFlow[Pressure drop (MPa/m)],FrictionLossesBySizeFlow[Pipeline diameter (inches)],$Q26,FrictionLossesBySizeFlow[Flow rate (Mt CO2/y)],V$8)*10^3) -> 3.205781252e-05 | W26: =IF(OR($P26>Total_pipeline_sizes,W$6>Total_flow_rates),"",SUMIFS(FrictionLossesBySizeFlow[Pressure drop (MPa/m)],FrictionLossesBySizeFlow[Pipeline diameter (inches)],$Q26,FrictionLossesBySizeFlow[Flow rate (Mt CO2/y)],W$8)*10^3) -> 0.0001837415089 | X26: =IF(OR($P26>Total_pipeline_sizes,X$6>Total_flow_rates),"",SUMIFS(FrictionLossesBySizeFlow[Pressure drop (MPa/m)],FrictionLossesBySizeFlow[Pipeline diameter (inches)],$Q26,FrictionLossesBySizeFlow[Flow rate (Mt CO2/y)],X$8)*10^3) -> 0.000703764023 | Y26: =IF(OR($P26>Total_pipeline_sizes,Y$6>Total_flow_rates),"",SUMIFS(FrictionLossesBySizeFlow[Pressure drop (MPa/m)],FrictionLossesBySizeFlow[Pipeline diameter (inches)],$Q26,FrictionLossesBySizeFlow[Flow rate (Mt CO2/y)],Y$8)*10^3) ->  | Z26: =IF(OR($P26>Total_pipeline_sizes,Z$6>Total_flow_rates),"",SUMIFS(FrictionLossesBySizeFlow[Pressure drop (MPa/m)],FrictionLossesBySizeFlow[Pipeline diameter (inches)],$Q26,FrictionLossesBySizeFlow[Flow rate (Mt CO2/y)],Z$8)*10^3) ->  | AA26: =IF(OR($P26>Total_pipeline_sizes,AA$6>Total_flow_rates),"",SUMIFS(FrictionLossesBySizeFlow[Pressure drop (MPa/m)],FrictionLossesBySizeFlow[Pipeline diameter (inches)],$Q26,FrictionLossesBySizeFlow[Flow rate (Mt CO2/y)],AA$8)*10^3) ->  | AC26: 19 | AD26: =IF(PipelineInfrastructureCost[[#This Row],[ID]]>Total_pressure_drop*Total_flow_rates*Total_transportation_distances,0,1) -> 1 | AE26: =IF(PipelineInfrastructureCost[[#This Row],[Active]]=0,"",OFFSET(PressureDrop[[#Headers],[Pressure drop (MPa)]],QUOTIENT(PipelineInfrastructureCost[[#This Row],[ID]]-1,Total_flow_rates*Total_transportation_distances)+1,0)) -> 10 | AF26: =IF(PipelineInfrastructureCost[[#This Row],[Active]]=0,"",OFFSET(FlowRates[[#Headers],[Flow rate (Mt CO2/y)]],MOD(QUOTIENT(PipelineInfrastructureCost[[#This Row],[ID]]-1,Total_transportation_distances),Total_flow_rates)+1,0)) -> 2 | AG26: =IF(PipelineInfrastructureCost[[#This Row],[Active]]=0,"",IF(Active_scenario_switch="Yes",Selected_distance,OFFSET(TransportationDistances[[#Headers],[Transportation distance (km)]],MOD(PipelineInfrastructureCost[[#This Row],[ID]]-1,Total_transportation_distances)+1,0))) -> 476 | AH26: =IF(PipelineInfrastructureCost[[#This Row],[Active]]=0,"",MAX(IF(TransmissionPipelineCost[Transmission pipeline length (km)]<=PipelineInfrastructureCost[[#This Row],[Transportation distance (km)]],TransmissionPipelineCost[Transmission pipeline length (km)]))) -> 400 | AI26: =IF(PipelineInfrastructureCost[[#This Row],[Active]]=0,"",PipelineInfrastructureCost[[#This Row],[Pressure drop (MPa)]]/PipelineInfrastructureCost[[#This Row],[Transportation distance (km)]]/10^3) -> 2.100840336e-05 | AJ26: =IF(PipelineInfrastructureCost[[#This Row],[Active]]=0,"",MIN(IF(FrictionLossesBySizeFlow[Flow rate (Mt CO2/y)]=PipelineInfrastructureCost[[#This Row],[Flow rate (Mt CO2/y)]],IF(FrictionLossesBySizeFlow[Pressure drop (MPa/m)]<PipelineInfrastructureCost[[#This Row],[Pressure drop (MPa/m)]],FrictionLossesBySizeFlow[Pipeline diameter (inches)])))) -> 14 | AK26: =IF(PipelineInfrastructureCost[[#This Row],[Active]]=0,"",PipelineInfrastructureCost[[#This Row],[Flow rate (Mt CO2/y)]]/Pipe_utilisation_factor*SUMIFS(ConversionFactors[Conversion value],ConversionFactors[Initial unit],"Mt",ConversionFactors[Final unit],"kg")/SUMIFS(ConversionFactors[Conversion value],ConversionFactors[Initial unit],"Year",ConversionFactors[Final unit],"second")/SUMIFS(CO2PhysicalProperties[Density (kg/m3)],CO2PhysicalProperties[Pressure (MPa)],Shoreline_supply_pressure)*(Maximum_pipeline_pressure-Minimum_pipeline_pressure)/Compressor_efficiency) -> 2.068403686 | AL26: =IF(PipelineInfrastructureCost[[#This Row],[Active]]=0,"",PipelineInfrastructureCost[[#This Row],[Compressor size (MW)]]*CompressorCost[Compressor capex (£/MW)]) -> 7756513.823 | AM26: =IF(PipelineInfrastructureCost[[#This Row],[Active]]=0,"",PipelineInfrastructureCost[[#This Row],[Compressor capex (£)]]*CompressorCost[Opex (share of capex)]) -> 310260.5529 | AN26: =IF(PipelineInfrastructureCost[[#This Row],[Active]]=0,"",PipelineInfrastructureCost[[#This Row],[Compressor size (MW)]]*8760*Pipe_utilisation_factor*10^3*SUMIFS(FuelCost[Cost (£/kWh)],FuelCost[Fuel],CompressionFuel,FuelCost[Scenario],Liquefaction_compression_fuel_cost)) -> 1087152.977 | AO26: =IF(PipelineInfrastructureCost[[#This Row],[Active]]=0,"",SUMIFS(TransmissionPipelineCost[Capex (£/inch/km)],TransmissionPipelineCost[Transmission pipeline length (km)],PipelineInfrastructureCost[[#This Row],[Matching transportation distance (km)]])*PipelineInfrastructureCost[[#This Row],[Pipeline diameter (inches)]]*PipelineInfrastructureCost[[#This Row],[Transportation distance (km)]]) -> 372947716.3 | AP26: =IF(PipelineInfrastructureCost[[#This Row],[Active]]=0,"",SUMIFS(TransmissionPipelineCost[Opex (share of capex)],TransmissionPipelineCost[Transmission pipeline length (km)],PipelineInfrastructureCost[[#This Row],[Matching transportation distance (km)]])*PipelineInfrastructureCost[[#This Row],[Transmission pipeline capex (£)]]) -> 3729477.163 | AQ26: =IF(PipelineInfrastructureCost[[#This Row],[Active]]=0,"",PipelineInfrastructureCost[[#This Row],[Compressor capex (£)]]+PipelineInfrastructureCost[[#This Row],[Transmission pipeline capex (£)]]) -> 380704230.2 | AR26: =IF(PipelineInfrastructureCost[[#This Row],[Active]]=0,"",-PV(Discount_rate,PipelineLifetime,PipelineInfrastructureCost[[#This Row],[Compressor opex (£/y)]]+PipelineInfrastructureCost[[#This Row],[Compressor energy cost (£/y)]]+PipelineInfrastructureCost[[#This Row],[Transmission pipeline opex (£/y)]])) -> 102537813.9 | AS26: =IF(PipelineInfrastructureCost[[#This Row],[Active]]=0,"",SUM(PipelineInfrastructureCost[[#This Row],[Total capex (£/y)]:[Total lifetime discounted opex (£/y)]])/-PV(Discount_rate,PipelineLifetime,PipelineInfrastructureCost[[#This Row],[Flow rate (Mt CO2/y)]])/10^6) -> 12.0810511 | BG26: 0 | BH26: =IF($AU12>Total_transportation_distances,"",IF(Active_scenario_switch="Yes",Selected_distance,OFFSET(TransportationDistances[[#Headers],[Transportation distance (km)]],$AU12,0))) ->  | BI26: =IF(OR($AU12>Total_transportation_distances,BI$6>Total_flow_rates),"",BI12/'Shipping infrastructure costs'!DB12) ->  | BJ26: =IF(OR($AU12>Total_transportation_distances,BJ$6>Total_flow_rates),"",BJ12/'Shipping infrastructure costs'!DC12) ->  | BK26: =IF(OR($AU12>Total_transportation_distances,BK$6>Total_flow_rates),"",BK12/'Shipping infrastructure costs'!DD12) ->  | BL26: =IF(OR($AU12>Total_transportation_distances,BL$6>Total_flow_rates),"",BL12/'Shipping infrastructure costs'!DE12) ->  | BM26: =IF(OR($AU12>Total_transportation_distances,BM$6>Total_flow_rates),"",BM12/'Shipping infrastructure costs'!DF12) ->  | BN26: =IF(OR($AU12>Total_transportation_distances,BN$6>Total_flow_rates),"",BN12/'Shipping infrastructure costs'!DG12) ->  | BO26: =IF(OR($AU12>Total_transportation_distances,BO$6>Total_flow_rates),"",BO12/'Shipping infrastructure costs'!DH12) ->  | BP26: =IF(OR($AU12>Total_transportation_distances,BP$6>Total_flow_rates),"",BP12/'Shipping infrastructure costs'!DI12) ->  | BQ26: =IF(OR($AU12>Total_transportation_distances,BQ$6>Total_flow_rates),"",BQ12/'Shipping infrastructure costs'!DJ12) ->  | BR26: =IF(OR($AU12>Total_transportation_distances,BR$6>Total_flow_rates),"",BR12/'Shipping infrastructure costs'!DK12) -> 
I27: 20 | J27: =IF(FrictionLossesBySizeFlow[[#This Row],[ID]]>Total_flow_rates*Total_pipeline_sizes,"",OFFSET(FlowRates[[#Headers],[Flow rate (Mt CO2/y)]],QUOTIENT(FrictionLossesBySizeFlow[[#This Row],[ID]]-1,Total_pipeline_sizes)+1,0)) -> 0.1 | K27: =IF(FrictionLossesBySizeFlow[[#This Row],[ID]]>Total_flow_rates*Total_pipeline_sizes,"",OFFSET(PipelineSizes[[#Headers],[Pipeline diameter (inches)]],MOD(FrictionLossesBySizeFlow[[#This Row],[ID]]-1,Total_pipeline_sizes)+1,0)) -> 56 | L27: =IF(FrictionLossesBySizeFlow[[#This Row],[ID]]>Total_flow_rates*Total_pipeline_sizes,"",4*FrictionLossesBySizeFlow[[#This Row],[Flow rate (Mt CO2/y)]]/Pipe_utilisation_factor*SUMIFS(ConversionFactors[Conversion value],ConversionFactors[Initial unit],"Mt",ConversionFactors[Final unit],"kg")/SUMIFS(ConversionFactors[Conversion value],ConversionFactors[Initial unit],"Year",ConversionFactors[Final unit],"second")/(PI()*SUMIFS(CO2PhysicalProperties[Viscosity (Pas)],CO2PhysicalProperties[Pressure (MPa)],Minimum_pipeline_pressure)*FrictionLossesBySizeFlow[[#This Row],[Pipeline diameter (inches)]]*SUMIFS(ConversionFactors[Conversion value],ConversionFactors[Initial unit],"Inch",ConversionFactors[Final unit],"metre"))) -> 51228.45444 | M27: =IF(FrictionLossesBySizeFlow[[#This Row],[ID]]>Total_flow_rates*Total_pipeline_sizes,"",1.325/(LN(Pipeline_roughness/(3.7*FrictionLossesBySizeFlow[[#This Row],[Pipeline diameter (inches)]]*SUMIFS(ConversionFactors[Conversion value],ConversionFactors[Initial unit],"Inch",ConversionFactors[Final unit],"metre"))+(5.74/FrictionLossesBySizeFlow[[#This Row],[Reynold''s Number]]^0.9)))^2) -> 0.02077381499 | N27: =IF(FrictionLossesBySizeFlow[[#This Row],[ID]]>Total_flow_rates*Total_pipeline_sizes,"",8*FrictionLossesBySizeFlow[[#This Row],[Friction factor]]*(FrictionLossesBySizeFlow[[#This Row],[Flow rate (Mt CO2/y)]]/Pipe_utilisation_factor*SUMIFS(ConversionFactors[Conversion value],ConversionFactors[Initial unit],"Mt",ConversionFactors[Final unit],"kg")/SUMIFS(ConversionFactors[Conversion value],ConversionFactors[Initial unit],"Year",ConversionFactors[Final unit],"second"))^2/(SUMIFS(CO2PhysicalProperties[Density (kg/m3)],CO2PhysicalProperties[Pressure (MPa)],Minimum_pipeline_pressure)*PI()^2*(FrictionLossesBySizeFlow[[#This Row],[Pipeline diameter (inches)]]*SUMIFS(ConversionFactors[Conversion value],ConversionFactors[Initial unit],"Inch",ConversionFactors[Final unit],"metre"))^5)/10^6) -> 6.322738558e-11 | P27: 19 | Q27: =IF($P27>Total_pipeline_sizes,"",OFFSET(PipelineSizes[[#Headers],[Pipeline diameter (inches)]],$P27,0)) -> 52 | R27: =IF(OR($P27>Total_pipeline_sizes,R$6>Total_flow_rates),"",SUMIFS(FrictionLossesBySizeFlow[Pressure drop (MPa/m)],FrictionLossesBySizeFlow[Pipeline diameter (inches)],$Q27,FrictionLossesBySizeFlow[Flow rate (Mt CO2/y)],R$8)*10^3) -> 9.016119776e-08 | S27: =IF(OR($P27>Total_pipeline_sizes,S$6>Total_flow_rates),"",SUMIFS(FrictionLossesBySizeFlow[Pressure drop (MPa/m)],FrictionLossesBySizeFlow[Pipeline diameter (inches)],$Q27,FrictionLossesBySizeFlow[Flow rate (Mt CO2/y)],S$8)*10^3) -> 3.124278517e-07 | T27: =IF(OR($P27>Total_pipeline_sizes,T$6>Total_flow_rates),"",SUMIFS(FrictionLossesBySizeFlow[Pressure drop (MPa/m)],FrictionLossesBySizeFlow[Pipeline diameter (inches)],$Q27,FrictionLossesBySizeFlow[Flow rate (Mt CO2/y)],T$8)*10^3) -> 1.650372825e-06 | U27: =IF(OR($P27>Total_pipeline_sizes,U$6>Total_flow_rates),"",SUMIFS(FrictionLossesBySizeFlow[Pressure drop (MPa/m)],FrictionLossesBySizeFlow[Pipeline diameter (inches)],$Q27,FrictionLossesBySizeFlow[Flow rate (Mt CO2/y)],U$8)*10^3) -> 5.91604535e-06 | V27: =IF(OR($P27>Total_pipeline_sizes,V$6>Total_flow_rates),"",SUMIFS(FrictionLossesBySizeFlow[Pressure drop (MPa/m)],FrictionLossesBySizeFlow[Pipeline diameter (inches)],$Q27,FrictionLossesBySizeFlow[Flow rate (Mt CO2/y)],V$8)*10^3) -> 2.157785821e-05 | W27: =IF(OR($P27>Total_pipeline_sizes,W$6>Total_flow_rates),"",SUMIFS(FrictionLossesBySizeFlow[Pressure drop (MPa/m)],FrictionLossesBySizeFlow[Pipeline diameter (inches)],$Q27,FrictionLossesBySizeFlow[Flow rate (Mt CO2/y)],W$8)*10^3) -> 0.0001229686325 | X27: =IF(OR($P27>Total_pipeline_sizes,X$6>Total_flow_rates),"",SUMIFS(FrictionLossesBySizeFlow[Pressure drop (MPa/m)],FrictionLossesBySizeFlow[Pipeline diameter (inches)],$Q27,FrictionLossesBySizeFlow[Flow rate (Mt CO2/y)],X$8)*10^3) -> 0.0004691008793 | Y27: =IF(OR($P27>Total_pipeline_sizes,Y$6>Total_flow_rates),"",SUMIFS(FrictionLossesBySizeFlow[Pressure drop (MPa/m)],FrictionLossesBySizeFlow[Pipeline diameter (inches)],$Q27,FrictionLossesBySizeFlow[Flow rate (Mt CO2/y)],Y$8)*10^3) ->  | Z27: =IF(OR($P27>Total_pipeline_sizes,Z$6>Total_flow_rates),"",SUMIFS(FrictionLossesBySizeFlow[Pressure drop (MPa/m)],FrictionLossesBySizeFlow[Pipeline diameter (inches)],$Q27,FrictionLossesBySizeFlow[Flow rate (Mt CO2/y)],Z$8)*10^3) ->  | AA27: =IF(OR($P27>Total_pipeline_sizes,AA$6>Total_flow_rates),"",SUMIFS(FrictionLossesBySizeFlow[Pressure drop (MPa/m)],FrictionLossesBySizeFlow[Pipeline diameter (inches)],$Q27,FrictionLossesBySizeFlow[Flow rate (Mt CO2/y)],AA$8)*10^3) ->  | AC27: 20 | AD27: =IF(PipelineInfrastructureCost[[#This Row],[ID]]>Total_pressure_drop*Total_flow_rates*Total_transportation_distances,0,1) -> 1 | AE27: =IF(PipelineInfrastructureCost[[#This Row],[Active]]=0,"",OFFSET(PressureDrop[[#Headers],[Pressure drop (MPa)]],QUOTIENT(PipelineInfrastructureCost[[#This Row],[ID]]-1,Total_flow_rates*Total_transportation_distances)+1,0)) -> 10 | AF27: =IF(PipelineInfrastructureCost[[#This Row],[Active]]=0,"",OFFSET(FlowRates[[#Headers],[Flow rate (Mt CO2/y)]],MOD(QUOTIENT(PipelineInfrastructureCost[[#This Row],[ID]]-1,Total_transportation_distances),Total_flow_rates)+1,0)) -> 5 | AG27: =IF(PipelineInfrastructureCost[[#This Row],[Active]]=0,"",IF(Active_scenario_switch="Yes",Selected_distance,OFFSET(TransportationDistances[[#Headers],[Transportation distance (km)]],MOD(PipelineInfrastructureCost[[#This Row],[ID]]-1,Total_transportation_distances)+1,0))) -> 476 | AH27: =IF(PipelineInfrastructureCost[[#This Row],[Active]]=0,"",MAX(IF(TransmissionPipelineCost[Transmission pipeline length (km)]<=PipelineInfrastructureCost[[#This Row],[Transportation distance (km)]],TransmissionPipelineCost[Transmission pipeline length (km)]))) -> 400 | AI27: =IF(PipelineInfrastructureCost[[#This Row],[Active]]=0,"",PipelineInfrastructureCost[[#This Row],[Pressure drop (MPa)]]/PipelineInfrastructureCost[[#This Row],[Transportation distance (km)]]/10^3) -> 2.100840336e-05 | AJ27: =IF(PipelineInfrastructureCost[[#This Row],[Active]]=0,"",MIN(IF(FrictionLossesBySizeFlow[Flow rate (Mt CO2/y)]=PipelineInfrastructureCost[[#This Row],[Flow rate (Mt CO2/y)]],IF(FrictionLossesBySizeFlow[Pressure drop (MPa/m)]<PipelineInfrastructureCost[[#This Row],[Pressure drop (MPa/m)]],FrictionLossesBySizeFlow[Pipeline diameter (inches)])))) -> 20 | AK27: =IF(PipelineInfrastructureCost[[#This Row],[Active]]=0,"",PipelineInfrastructureCost[[#This Row],[Flow rate (Mt CO2/y)]]/Pipe_utilisation_factor*SUMIFS(ConversionFactors[Conversion value],ConversionFactors[Initial unit],"Mt",ConversionFactors[Final unit],"kg")/SUMIFS(ConversionFactors[Conversion value],ConversionFactors[Initial unit],"Year",ConversionFactors[Final unit],"second")/SUMIFS(CO2PhysicalProperties[Density (kg/m3)],CO2PhysicalProperties[Pressure (MPa)],Shoreline_supply_pressure)*(Maximum_pipeline_pressure-Minimum_pipeline_pressure)/Compressor_efficiency) -> 5.171009215 | AL27: =IF(PipelineInfrastructureCost[[#This Row],[Active]]=0,"",PipelineInfrastructureCost[[#This Row],[Compressor size (MW)]]*CompressorCost[Compressor capex (£/MW)]) -> 19391284.56 | AM27: =IF(PipelineInfrastructureCost[[#This Row],[Active]]=0,"",PipelineInfrastructureCost[[#This Row],[Compressor capex (£)]]*CompressorCost[Opex (share of capex)]) -> 775651.3823 | AN27: =IF(PipelineInfrastructureCost[[#This Row],[Active]]=0,"",PipelineInfrastructureCost[[#This Row],[Compressor size (MW)]]*8760*Pipe_utilisation_factor*10^3*SUMIFS(FuelCost[Cost (£/kWh)],FuelCost[Fuel],CompressionFuel,FuelCost[Scenario],Liquefaction_compression_fuel_cost)) -> 2717882.443 | AO27: =IF(PipelineInfrastructureCost[[#This Row],[Active]]=0,"",SUMIFS(TransmissionPipelineCost[Capex (£/inch/km)],TransmissionPipelineCost[Transmission pipeline length (km)],PipelineInfrastructureCost[[#This Row],[Matching transportation distance (km)]])*PipelineInfrastructureCost[[#This Row],[Pipeline diameter (inches)]]*PipelineInfrastructureCost[[#This Row],[Transportation distance (km)]]) -> 532782451.9 | AP27: =IF(PipelineInfrastructureCost[[#This Row],[Active]]=0,"",SUMIFS(TransmissionPipelineCost[Opex (share of capex)],TransmissionPipelineCost[Transmission pipeline length (km)],PipelineInfrastructureCost[[#This Row],[Matching transportation distance (km)]])*PipelineInfrastructureCost[[#This Row],[Transmission pipeline capex (£)]]) -> 5327824.519 | AQ27: =IF(PipelineInfrastructureCost[[#This Row],[Active]]=0,"",PipelineInfrastructureCost[[#This Row],[Compressor capex (£)]]+PipelineInfrastructureCost[[#This Row],[Transmission pipeline capex (£)]]) -> 552173736.5 | AR27: =IF(PipelineInfrastructureCost[[#This Row],[Active]]=0,"",-PV(Discount_rate,PipelineLifetime,PipelineInfrastructureCost[[#This Row],[Compressor opex (£/y)]]+PipelineInfrastructureCost[[#This Row],[Compressor energy cost (£/y)]]+PipelineInfrastructureCost[[#This Row],[Transmission pipeline opex (£/y)]])) -> 176427166.9 | AS27: =IF(PipelineInfrastructureCost[[#This Row],[Active]]=0,"",SUM(PipelineInfrastructureCost[[#This Row],[Total capex (£/y)]:[Total lifetime discounted opex (£/y)]])/-PV(Discount_rate,PipelineLifetime,PipelineInfrastructureCost[[#This Row],[Flow rate (Mt CO2/y)]])/10^6) -> 7.286009034 | BG27: 0 | BH27: =IF($AU13>Total_transportation_distances,"",IF(Active_scenario_switch="Yes",Selected_distance,OFFSET(TransportationDistances[[#Headers],[Transportation distance (km)]],$AU13,0))) ->  | BI27: =IF(OR($AU13>Total_transportation_distances,BI$6>Total_flow_rates),"",BI13/'Shipping infrastructure costs'!DB13) ->  | BJ27: =IF(OR($AU13>Total_transportation_distances,BJ$6>Total_flow_rates),"",BJ13/'Shipping infrastructure costs'!DC13) ->  | BK27: =IF(OR($AU13>Total_transportation_distances,BK$6>Total_flow_rates),"",BK13/'Shipping infrastructure costs'!DD13) ->  | BL27: =IF(OR($AU13>Total_transportation_distances,BL$6>Total_flow_rates),"",BL13/'Shipping infrastructure costs'!DE13) ->  | BM27: =IF(OR($AU13>Total_transportation_distances,BM$6>Total_flow_rates),"",BM13/'Shipping infrastructure costs'!DF13) ->  | BN27: =IF(OR($AU13>Total_transportation_distances,BN$6>Total_flow_rates),"",BN13/'Shipping infrastructure costs'!DG13) ->  | BO27: =IF(OR($AU13>Total_transportation_distances,BO$6>Total_flow_rates),"",BO13/'Shipping infrastructure costs'!DH13) ->  | BP27: =IF(OR($AU13>Total_transportation_distances,BP$6>Total_flow_rates),"",BP13/'Shipping infrastructure costs'!DI13) ->  | BQ27: =IF(OR($AU13>Total_transportation_distances,BQ$6>Total_flow_rates),"",BQ13/'Shipping infrastructure costs'!DJ13) ->  | BR27: =IF(OR($AU13>Total_transportation_distances,BR$6>Total_flow_rates),"",BR13/'Shipping infrastructure costs'!DK13) -> 
